Workbook

Sheet Acctg
H6: Use these columns.
A7: Raw Data from Gulf Acctg file | H7: Separated Unit Code from Description | O7: From RUC Manual
A8: FERC 364-368 ASSETS BY RUC AT 12-31-2010.xlsx
A9: Investment as of 12/31/2010
Q10: RUC Only | R10: Compound Description
A11: Retirement Unit | B11: Utility Account | C11: Accum Quantity | D11: Accum Cost | G11: Retirement Unit | H11: Utility Account | J11: Accum Quantity | K11: Accum Cost | O11: 3640000FPC | P11: 36400001324 CONCRETE POLE, 125 FT. | Q11: =LEFT(P11,11) -> 36400001324 | R11: =CONCATENATE(MID(P11,12,30)," ",MID(O11,7,20)) -> CONCRETE POLE, 125 FT. 0FPC
A12: 36400001005 30 Ft. | B12: 364 - Poles, Towers and Fixtures | C12: 48912 | D12: 5945009.39 | G12: =TRIM(LEFT(A12,12)) -> 36400001005 | H12: =VLOOKUP(G12,Q11:R1348,2,FALSE) -> 30 Ft. Pole - Wood | J12: 48912 | K12: 5945009.39 | O12: 3640000FPC | P12: 36400009999 To be Adjusted | Q12: =LEFT(P12,11) -> 36400009999 | R12: =CONCATENATE(MID(P12,12,30)," ",MID(O12,7,20)) -> To be Adjusted 0FPC
A13: 36400001006 35 Ft. | B13: 364 - Poles, Towers and Fixtures | C13: 85602 | D13: 21775715.41 | G13: =TRIM(LEFT(A13,12)) -> 36400001006 | H13: =VLOOKUP(G13,Q12:R1349,2,FALSE) -> 35 Ft. Pole - Wood | J13: 85602 | K13: 21775715.41 | O13: 364100 Pole - Wood | P13: 36400001004 25 Ft. | Q13: 36400001004 | R13: 25 Ft. Pole - Wood
A14: 36400001007 40 Ft. | B14: 364 - Poles, Towers and Fixtures | C14: 75626 | D14: 24527131.59 | G14: 36400001007 | H14: 40 Ft. Pole - Wood | J14: 75626 | K14: 24527131.59 | O14: 364100 Pole - Wood | P14: 36400001005 30 Ft. | Q14: 36400001005 | R14: 30 Ft. Pole - Wood
A15: 36400001008 45 Ft. | B15: 364 - Poles, Towers and Fixtures | C15: 30039 | D15: 15065224.98 | G15: 36400001008 | H15: 45 Ft. Pole - Wood | J15: 30039 | K15: 15065224.98 | O15: 364100 Pole - Wood | P15: 36400001006 35 Ft. | Q15: 36400001006 | R15: 35 Ft. Pole - Wood
A16: 36400001009 50 Ft. | B16: 364 - Poles, Towers and Fixtures | C16: 9091 | D16: 6165490.86 | G16: 36400001009 | H16: 50 Ft. Pole - Wood | J16: 9091 | K16: 6165490.86 | O16: 364100 Pole - Wood | P16: 36400001007 40 Ft. | Q16: 36400001007 | R16: 40 Ft. Pole - Wood
A17: 36400001010 55 Ft. | B17: 364 - Poles, Towers and Fixtures | C17: 2731 | D17: 2602056.76 | G17: 36400001010 | H17: 55 Ft. Pole - Wood | J17: 2731 | K17: 2602056.76 | O17: 364100 Pole - Wood | P17: 36400001008 45 Ft. | Q17: 36400001008 | R17: 45 Ft. Pole - Wood
A18: 36400001011 60 Ft. | B18: 364 - Poles, Towers and Fixtures | C18: 515 | D18: 642872.66 | G18: 36400001011 | H18: 60 Ft. Pole - Wood | J18: 515 | K18: 642872.66 | O18: 364100 Pole - Wood | P18: 36400001009 50 Ft. | Q18: 36400001009 | R18: 50 Ft. Pole - Wood
A19: 36400001012 65 Ft. | B19: 364 - Poles, Towers and Fixtures | C19: 124 | D19: 199376.62 | G19: 36400001012 | H19: 65 Ft. Pole - Wood | J19: 124 | K19: 199376.62 | O19: 364100 Pole - Wood | P19: 36400001010 55 Ft. | Q19: 36400001010 | R19: 55 Ft. Pole - Wood
A20: 36400001013 70 Ft. | B20: 364 - Poles, Towers and Fixtures | C20: 51 | D20: 96625.66 | G20: 36400001013 | H20: 70 Ft. Pole - Wood | J20: 51 | K20: 96625.66 | O20: 364100 Pole - Wood | P20: 36400001011 60 Ft. | Q20: 36400001011 | R20: 60 Ft. Pole - Wood
A21: 36400001014 75 Ft. | B21: 364 - Poles, Towers and Fixtures | C21: 19 | D21: 54269.18 | G21: 36400001014 | H21: 75 Ft. Pole - Wood | J21: 19 | K21: 54269.18 | O21: 364100 Pole - Wood | P21: 36400001012 65 Ft. | Q21: 36400001012 | R21: 65 Ft. Pole - Wood
A22: 36400001015 80 Ft. | B22: 364 - Poles, Towers and Fixtures | C22: 25 | D22: 37015.5 | G22: 36400001015 | H22: 80 Ft. Pole - Wood | J22: 25 | K22: 37015.5 | O22: 364100 Pole - Wood | P22: 36400001013 70 Ft. | Q22: 36400001013 | R22: 70 Ft. Pole - Wood
A23: 36400001016 85 Ft. | B23: 364 - Poles, Towers and Fixtures | C23: 14 | D23: 22475.93 | G23: 36400001016 | H23: 85 Ft. Pole - Wood | J23: 14 | K23: 22475.93 | O23: 364100 Pole - Wood | P23: 36400001014 75 Ft. | Q23: 36400001014 | R23: 75 Ft. Pole - Wood
A24: 36400001017 90 Ft. | B24: 364 - Poles, Towers and Fixtures | C24: 1 | D24: 647.92 | G24: 36400001017 | H24: 90 Ft. Pole - Wood | J24: 1 | K24: 647.92 | O24: 364100 Pole - Wood | P24: 36400001015 80 Ft. | Q24: 36400001015 | R24: 80 Ft. Pole - Wood
A25: 36400001018 95 Ft. | B25: 364 - Poles, Towers and Fixtures | C25: 4 | D25: 19685.91 | G25: 36400001018 | H25: 95 Ft. Pole - Wood | J25: 4 | K25: 19685.91 | O25: 364100 Pole - Wood | P25: 36400001016 85 Ft. | Q25: 36400001016 | R25: 85 Ft. Pole - Wood
A26: 36400001019 100 Ft. | B26: 364 - Poles, Towers and Fixtures | C26: 6 | D26: 17265.82 | G26: 36400001019 | H26: 100 Ft. Pole - Wood | J26: 6 | K26: 17265.82 | O26: 364100 Pole - Wood | P26: 36400001017 90 Ft. | Q26: 36400001017 | R26: 90 Ft. Pole - Wood
A27: 36400001306 35 Ft. | B27: 364 - Poles, Towers and Fixtures | C27: 12 | D27: 13554.75 | G27: 36400001306 | H27: 35 Ft. Pole - Concrete | J27: 12 | K27: 13554.75 | O27: 364100 Pole - Wood | P27: 36400001018 95 Ft. | Q27: 36400001018 | R27: 95 Ft. Pole - Wood
A28: 36400001307 40 Ft. | B28: 364 - Poles, Towers and Fixtures | C28: 15 | D28: 11339.16 | G28: 36400001307 | H28: 40 Ft. Pole - Concrete | J28: 15 | K28: 11339.16 | O28: 364100 Pole - Wood | P28: 36400001019 100 Ft. | Q28: 36400001019 | R28: 100 Ft. Pole - Wood
A29: 36400001308 45 Ft. | B29: 364 - Poles, Towers and Fixtures | C29: 76 | D29: 157179.42 | G29: 36400001308 | H29: 45 Ft. Pole - Concrete | J29: 76 | K29: 157179.42 | O29: 364100 Pole - Wood | P29: 36400001020 105 Ft. | Q29: 36400001020 | R29: 105 Ft. Pole - Wood
A30: 36400001309 50 Ft. | B30: 364 - Poles, Towers and Fixtures | C30: 172 | D30: 509737.75 | G30: 36400001309 | H30: 50 Ft. Pole - Concrete | J30: 172 | K30: 509737.75 | O30: 364100 Pole - Wood | P30: 36400001021 110 Ft. | Q30: 36400001021 | R30: 110 Ft. Pole - Wood
A31: 36400001310 55 Ft. | B31: 364 - Poles, Towers and Fixtures | C31: 118 | D31: 524223.29 | G31: 36400001310 | H31: 55 Ft. Pole - Concrete | J31: 118 | K31: 524223.29 | O31: 364100 Pole - Wood | P31: 36400001022 115 Ft. | Q31: 36400001022 | R31: 115 Ft. Pole - Wood
A32: 36400001311 60 Ft. | B32: 364 - Poles, Towers and Fixtures | C32: 21 | D32: 166909.98 | G32: 36400001311 | H32: 60 Ft. Pole - Concrete | J32: 21 | K32: 166909.98 | O32: 3641000 Tower - Steel, Double Circu | P32: 36400001906 35 Ft. | Q32: 36400001906 | R32: 35 Ft. 0 Tower - Steel, Dou
A33: 36400001312 65 Ft. | B33: 364 - Poles, Towers and Fixtures | C33: 161 | D33: 749677.76 | G33: 36400001312 | H33: 65 Ft. Pole - Concrete | J33: 161 | K33: 749677.76 | O33: 3641000 Tower - Steel, Double Circu | P33: 36400001907 40 Ft. | Q33: 36400001907 | R33: 40 Ft. 0 Tower - Steel, Dou
A34: 36400001313 70 Ft. | B34: 364 - Poles, Towers and Fixtures | C34: 21 | D34: 82061 | G34: 36400001313 | H34: 70 Ft. Pole - Concrete | J34: 21 | K34: 82061 | O34: 3641000 Tower - Steel, Double Circu | P34: 36400001908 45 Ft. | Q34: 36400001908 | R34: 45 Ft. 0 Tower - Steel, Dou
A35: 36400001314 75 Ft. | B35: 364 - Poles, Towers and Fixtures | C35: 5 | D35: 20551.76 | G35: 36400001314 | H35: 75 Ft. Pole - Concrete | J35: 5 | K35: 20551.76 | O35: 3641000 Tower - Steel, Double Circu | P35: 36400001909 50 Ft. | Q35: 36400001909 | R35: 50 Ft. 0 Tower - Steel, Dou
A36: 36400001324 CONCRETE POLE, 125 FT. | B36: 364 - Poles, Towers and Fixtures | C36: 4 | D36: 43942.27 | G36: 36400001324 | H36: 125 Ft. Pole - Concrete | J36: 4 | K36: 43942.27 | O36: 3641000 Tower - Steel, Double Circu | P36: 36400001910 55 Ft. | Q36: 36400001910 | R36: 55 Ft. 0 Tower - Steel, Dou
A37: 36400001500 Steel Reinforced | B37: 364 - Poles, Towers and Fixtures | C37: 2338 | D37: 1345191.74 | G37: 36400001500 | H37: Steel Reinforced Pole Truss | J37: 2338 | K37: 1345191.74 | O37: 3641000 Tower - Steel, Double Circu | P37: 36400001911 60 Ft. | Q37: 36400001911 | R37: 60 Ft. 0 Tower - Steel, Dou
A38: 36400002300 All | B38: 364 - Poles, Towers and Fixtures | C38: 308225 | D38: 42553058.16 | G38: 36400002300 | H38: Set of Fixtures | J38: 308225 | K38: 42553058.16 | O38: 3641000 Tower - Steel, Double Circu | P38: 36400001917 90 Ft. | Q38: 36400001917 | R38: 90 Ft. 0 Tower - Steel, Dou
A39: 36400009999 To be Adjusted | B39: 364 - Poles, Towers and Fixtures | C39: 0 | D39: 197945.31 | G39: 36400009999 | H39: Adjustment | J39: 0 | K39: 197945.31 | O39: 3641100 Foundation - Tower | P39: 36400002000 All | Q39: 36400002000 | R39: All 0 Foundation - Tower
A40: Non-unitized | B40: 364 - Poles, Towers and Fixtures | C40: 1281 | D40: 1773701.81 | E40: In Balance With | G40: Non-unitized | H40: =G40 -> Non-unitized | J40: 1281 | K40: 1773701.81 | O40: 3641200 Set of Fixtures | P40: 36400002300 All | Q40: 36400002300 | R40: Set of Fixtures
B41: 364 - Poles, Towers and Fixtures Total | D41: =SUBTOTAL(9,D12:D40) -> 125319938.4 | E41: Schedule 71-December, 2010 | H41: 364 - Poles, Towers and Fixtures Total | K41: =SUBTOTAL(9,K12:K40) -> 125319938.4 | O41: 364200 Pole - Steel | P41: 36400001202 15 Ft. | Q41: 36400001202 | R41: 15 Ft. Pole - Steel
A42: 36500001000 All Sizes, continous si | B42: 365 - Overhead Conductors, Devices | C42: 4958010 | D42: 10922206.9 | G42: 36500001000 | H42: All Sizes, continous single c Wire - Copper, Bare | J42: 4958010 | K42: 10922206.9 | O42: 364200 Pole - Steel | P42: 36400001203 20 Ft. | Q42: 36400001203 | R42: 20 Ft. Pole - Steel
A43: 36500001100 All Sizes, continous si | B43: 365 - Overhead Conductors, Devices | C43: 1370655 | D43: 3055597.54 | G43: 36500001100 | H43: All Sizes, continous single c Wire - Copper, Cove | J43: 1370655 | K43: 3055597.54 | O43: 364200 Pole - Steel | P43: 36400001204 25 Ft. | Q43: 36400001204 | R43: 25 Ft. Pole - Steel
A44: 36500001200 All Sizes, continous si | B44: 365 - Overhead Conductors, Devices | C44: 12922077 | D44: 68163385.66 | G44: 36500001200 | H44: All Sizes, continous single c Wire - Aluminum, Ba | J44: 12922077 | K44: 68163385.66 | O44: 364200 Pole - Steel | P44: 36400001205 30 Ft. | Q44: 36400001205 | R44: 30 Ft. Pole - Steel
A45: 36500001300 All Sizes, continous si | B45: 365 - Overhead Conductors, Devices | C45: 155005 | D45: 1018753.78 | G45: 36500001300 | H45: All Sizes, continous single c Wire - Aluminum, Co | J45: 155005 | K45: 1018753.78 | O45: 364200 Pole - Steel | P45: 36400001206 35 Ft. | Q45: 36400001206 | R45: 35 Ft. Pole - Steel
A46: 36500002100 All Sizes, continous du | B46: 365 - Overhead Conductors, Devices | C46: 113841 | D46: 188828.94 | G46: 36500002100 | H46: All Sizes, continous duplex c Duplex | J46: 113841 | K46: 188828.94 | O46: 364200 Pole - Steel | P46: 36400001207 40 Ft. | Q46: 36400001207 | R46: 40 Ft. Pole - Steel
A47: 36500002200 All Sizes, continous tr | B47: 365 - Overhead Conductors, Devices | C47: 10602171 | D47: 20781806.99 | G47: 36500002200 | H47: All Sizes, continous triplex Triplex | J47: 10602171 | K47: 20781806.99 | O47: 364200 Pole - Steel | P47: 36400001208 45 Ft. | Q47: 36400001208 | R47: 45 Ft. Pole - Steel
A48: 36500002300 All Sizes, continous qu | B48: 365 - Overhead Conductors, Devices | C48: 798464 | D48: 2858595.18 | G48: 36500002300 | H48: All Sizes, continous quadrupl Quadruplex | J48: 798464 | K48: 2858595.18 | O48: 364200 Pole - Steel | P48: 36400001209 50 Ft. | Q48: 36400001209 | R48: 50 Ft. Pole - Steel
A49: 36500002403 3 Conductor, continous | B49: 365 - Overhead Conductors, Devices | C49: 12765 | D49: 77398.61 | G49: 36500002403 | H49: 3 Conductor, continous aerial Aerial Cable | J49: 12765 | K49: 77398.61 | O49: 364200 Pole - Steel | P49: 36400001210 55 Ft. | Q49: 36400001210 | R49: 55 Ft. Pole - Steel
A50: 36500004999 INTERIM RETIRE UNIT CO | B50: 365 - Overhead Conductors, Devices | C50: 4903 | D50: 1102573.19 | G50: 36500004999 | H50: INTERIM RETIREMENT UNIT CODE 0FPC | J50: 4903 | K50: 1102573.19 | O50: 364200 Pole - Steel | P50: 36400001211 60 Ft. | Q50: 36400001211 | R50: 60 Ft. Pole - Steel
A51: 36500005001 0 - 5 KV | B51: 365 - Overhead Conductors, Devices | C51: 103 | D51: 9930.73 | G51: 36500005001 | H51: 0 - 5 KV 0 SPST Switch | J51: 103 | K51: 9930.73 | O51: 364200 Pole - Steel | P51: 36400001212 65 Ft. | Q51: 36400001212 | R51: 65 Ft. Pole - Steel
A52: 36500005002 5.1 - 15 KV | B52: 365 - Overhead Conductors, Devices | C52: 1684 | D52: 901334.28 | G52: 36500005002 | H52: 5.1 - 15 KV 0 SPST Switch | J52: 1684 | K52: 901334.28 | O52: 364200 Pole - Steel | P52: 36400001213 70 Ft. | Q52: 36400001213 | R52: 70 Ft. Pole - Steel
A53: 36500005003 15.1 - 25 KV | B53: 365 - Overhead Conductors, Devices | C53: 3 | D53: 1028.09 | G53: 36500005003 | H53: 15.1 - 25 KV 0 SPST Switch | J53: 3 | K53: 1028.09 | O53: 364200 Pole - Steel | P53: 36400001214 75 Ft. | Q53: 36400001214 | R53: 75 Ft. Pole - Steel
A54: 36500005005 Over 35 KV | B54: 365 - Overhead Conductors, Devices | C54: 3 | D54: 2776.4 | G54: 36500005005 | H54: Over 35 KV 0 SPST Switch | J54: 3 | K54: 2776.4 | O54: 364200 Pole - Steel | P54: 36400001215 80 Ft. | Q54: 36400001215 | R54: 80 Ft. Pole - Steel
A55: 36500005101 0 - 5 KV | B55: 365 - Overhead Conductors, Devices | C55: 52 | D55: 90313.87 | G55: 36500005101 | H55: 0 - 5 KV 0 Gang Operated Swit | J55: 52 | K55: 90313.87 | O55: 364200 Pole - Steel | P55: 36400001216 85 Ft. | Q55: 36400001216 | R55: 85 Ft. Pole - Steel
A56: 36500005102 5.1 - 15 KV | B56: 365 - Overhead Conductors, Devices | C56: 699 | D56: 3263629.79 | G56: 36500005102 | H56: 5.1 - 15 KV 0 Gang Operated Swit | J56: 699 | K56: 3263629.79 | O56: 364200 Pole - Steel | P56: 36400001217 90 Ft. | Q56: 36400001217 | R56: 90 Ft. Pole - Steel
A57: 36500005103 15.1 - 25 KV | B57: 365 - Overhead Conductors, Devices | C57: 31 | D57: 66850.92 | G57: 36500005103 | H57: 15.1 - 25 KV 0 Gang Operated Swit | J57: 31 | K57: 66850.92 | O57: 364200 Pole - Steel | P57: 36400001218 95 Ft. | Q57: 36400001218 | R57: 95 Ft. Pole - Steel
A58: 36500005105 Over 35 KV | B58: 365 - Overhead Conductors, Devices | C58: 3 | D58: 8783.29 | G58: 36500005105 | H58: Over 35 KV 0 Gang Operated Swit | J58: 3 | K58: 8783.29 | O58: 364200 Pole - Steel | P58: 36400001219 100 Ft. | Q58: 36400001219 | R58: 100 Ft. Pole - Steel
A59: 36500005200 All Sizes | B59: 365 - Overhead Conductors, Devices | C59: 13 | D59: 1720.36 | G59: 36500005200 | H59: All Sizes 0 Repeater Fuse - 3 | J59: 13 | K59: 1720.36 | O59: 364300 Pole - Concrete | P59: 36400001304 25 Ft. | Q59: 36400001304 | R59: 25 Ft. Pole - Concrete
A60: 36500005311 1m 0 - 15 KV | B60: 365 - Overhead Conductors, Devices | C60: 744 | D60: 1965885.59 | G60: 36500005311 | H60: 1m 0 - 15 KV 0 Oil Circuit Reclos | J60: 744 | K60: 1965885.59 | O60: 364300 Pole - Concrete | P60: 36400001305 30 Ft. | Q60: 36400001305 | R60: 30 Ft. Pole - Concrete
A61: 36500005312 1m 15.1 - 25 KV | B61: 365 - Overhead Conductors, Devices | C61: 18 | D61: 69921.26 | G61: 36500005312 | H61: 1m 15.1 - 25 KV 0 Oil Circuit Reclos | J61: 18 | K61: 69921.26 | O61: 364300 Pole - Concrete | P61: 36400001306 35 Ft. | Q61: 36400001306 | R61: 35 Ft. Pole - Concrete
A62: 36500005331 3m 0 - 15 KV | B62: 365 - Overhead Conductors, Devices | C62: 130 | D62: 1150249.45 | G62: 36500005331 | H62: 3m 0 - 15 KV 0 Oil Circuit Reclos | J62: 130 | K62: 1150249.45 | O62: 364300 Pole - Concrete | P62: 36400001307 40 Ft. | Q62: 36400001307 | R62: 40 Ft. Pole - Concrete
A63: 36500005335 3m Electronic | B63: 365 - Overhead Conductors, Devices | C63: 13 | D63: 233403.99 | G63: 36500005335 | H63: 3m Electronic 0 Oil Circuit Reclos | J63: 13 | K63: 233403.99 | O63: 364300 Pole - Concrete | P63: 36400001308 45 Ft. | Q63: 36400001308 | R63: 45 Ft. Pole - Concrete
A64: 36500005410 1m | B64: 365 - Overhead Conductors, Devices | C64: 521 | D64: 623345.2 | G64: 36500005410 | H64: 1m 0 Sectionalizer | J64: 521 | K64: 623345.2 | O64: 364300 Pole - Concrete | P64: 36400001309 50 Ft. | Q64: 36400001309 | R64: 50 Ft. Pole - Concrete
A65: 36500005430 3m | B65: 365 - Overhead Conductors, Devices | C65: 2 | D65: 27374.26 | G65: 36500005430 | H65: 3m 0 Sectionalizer | J65: 2 | K65: 27374.26 | O65: 364300 Pole - Concrete | P65: 36400001310 55 Ft. | Q65: 36400001310 | R65: 55 Ft. Pole - Concrete
A66: 36500005510 1m | B66: 365 - Overhead Conductors, Devices | C66: 10 | D66: 52180.88 | G66: 36500005510 | H66: 1m 0 Vacuum Recloser | J66: 10 | K66: 52180.88 | O66: 364300 Pole - Concrete | P66: 36400001311 60 Ft. | Q66: 36400001311 | R66: 60 Ft. Pole - Concrete
A67: 36500005530 3m | B67: 365 - Overhead Conductors, Devices | C67: 60 | D67: 1158668.82 | G67: 36500005530 | H67: 3m 0 Vacuum Recloser | J67: 60 | K67: 1158668.82 | O67: 364300 Pole - Concrete | P67: 36400001312 65 Ft. | Q67: 36400001312 | R67: 65 Ft. Pole - Concrete
A68: 36500005535 3m Electronic | B68: 365 - Overhead Conductors, Devices | C68: 52 | D68: 1175490.16 | G68: 36500005535 | H68: 3m Electronic 0 Vacuum Recloser | J68: 52 | K68: 1175490.16 | O68: 364300 Pole - Concrete | P68: 36400001313 70 Ft. | Q68: 36400001313 | R68: 70 Ft. Pole - Concrete
A69: 36500005710 1m | B69: 365 - Overhead Conductors, Devices | C69: 2 | D69: 2663.32 | G69: 36500005710 | H69: 1m 0 Automatic Transfer | J69: 2 | K69: 2663.32 | O69: 364300 Pole - Concrete | P69: 36400001314 75 Ft. | Q69: 36400001314 | R69: 75 Ft. Pole - Concrete
A70: 36500005730 3m | B70: 365 - Overhead Conductors, Devices | C70: 10 | D70: 135355.12 | G70: 36500005730 | H70: 3m 0 Automatic Transfer | J70: 10 | K70: 135355.12 | O70: 364300 Pole - Concrete | P70: 36400001315 80 Ft. | Q70: 36400001315 | R70: 80 Ft. Pole - Concrete
A71: 36500005800 All Sizes | B71: 365 - Overhead Conductors, Devices | C71: 70 | D71: 6116.54 | G71: 36500005800 | H71: All Sizes 0 Recloser By-Pass S | J71: 70 | K71: 6116.54 | O71: 364300 Pole - Concrete | P71: 36400001316 Poles - Concrete - Ea. 85 " | Q71: 36400001316 | R71: Poles - Concrete - Ea. 85 Pole - Concrete
A72: 36500006200 Control Box, including | B72: 365 - Overhead Conductors, Devices | C72: 25 | D72: 212694.4 | G72: 36500006200 | H72: Control Box, including wiring 0 Distribution Line | J72: 25 | K72: 212694.4 | O72: 364300 Pole - Concrete | P72: 36400001317 Poles - Concrete - Ea. 90 " | Q72: 36400001317 | R72: Poles - Concrete - Ea. 90 Pole - Concrete
A73: Non-unitized | B73: 365 - Overhead Conductors, Devices | C73: 776 | D73: 2652667.21 | E73: In Balance With | G73: Non-unitized | H73: =G73 -> Non-unitized | J73: 776 | K73: 2652667.21 | O73: 364300 Pole - Concrete | P73: 36400001318 95 Ft. | Q73: 36400001318 | R73: 95 Ft. Pole - Concrete
B74: 365 - Overhead Conductors, Devices Total | D74: =SUBTOTAL(9,D42:D73) -> 121981530.7 | E74: Schedule 71-December, 2010 | H74: 365 - Overhead Conductors, Devices Total | K74: =SUBTOTAL(9,K42:K73) -> 121981530.7 | O74: 364300 Pole - Concrete | P74: 36400001319 100 Ft. | Q74: 36400001319 | R74: 100 Ft. Pole - Concrete
A75: 36600001000 All Sizes of duct line | B75: 366 - Underground Conduit | C75: 526738 | D75: 877034.65 | G75: 36600001000 | H75: All Sizes of duct line measur Duct Line - Fiber, | J75: 526738 | K75: 877034.65 | O75: 364300 Pole - Concrete | P75: 36400001320 105 Ft. | Q75: 36400001320 | R75: 105 Ft. Pole - Concrete
A76: 36600001701 For 1 Transformer | B76: 366 - Underground Conduit | C76: 110 | D76: 113356 | G76: 36600001701 | H76: For 1 Transformer Transformer Vault | J76: 110 | K76: 113356 | O76: 364300 Pole - Concrete | P76: 36400001321 Poles - Concrete - Ea. 110 " | Q76: =LEFT(P76,11) -> 36400001321 | R76: =CONCATENATE(MID(P76,12,30)," ",MID(O76,7,20)) -> Poles - Concrete - Ea. 110 Pole - Concrete
A77: 36600001702 For 2 Transformers | B77: 366 - Underground Conduit | C77: 3 | D77: 22057.17 | G77: =TRIM(LEFT(A77,12)) -> 36600001702 | H77: =VLOOKUP(G77,Q76:R1413,2,FALSE) -> For 2 Transformers Transformer Vault | J77: 3 | K77: 22057.17 | O77: 364300 Pole - Concrete | P77: 36400001322 115 Ft. | Q77: 36400001322 | R77: 115 Ft. Pole - Concrete
A78: 36600001800 All Sizes | B78: 366 - Underground Conduit | C78: 99 | D78: 92921.33 | G78: =TRIM(LEFT(A78,12)) -> 36600001800 | H78: =VLOOKUP(G78,Q77:R1414,2,FALSE) -> All Sizes Manhole - Cable | J78: 99 | K78: 92921.33 | O78: 364300 Pole - Concrete | P78: 36400001323 120 Ft. | Q78: 36400001323 | R78: 120 Ft. Pole - Concrete
A79: 36600001900 All Sizes | B79: 366 - Underground Conduit | C79: 209 | D79: 24402.69 | G79: =TRIM(LEFT(A79,12)) -> 36600001900 | H79: =VLOOKUP(G79,Q78:R1415,2,FALSE) -> All Sizes Service Hole or Spl | J79: 209 | K79: 24402.69 | O79: 364300 Pole - Concrete | P79: 36400001325 130 Ft. | Q79: 36400001325 | R79: 130 Ft. Pole - Concrete
A80: 36600002300 Sump Pump, complete sum | B80: 366 - Underground Conduit | C80: 51 | D80: 87683.16 | E80: In Balance With | G80: =TRIM(LEFT(A80,12)) -> 36600002300 | H80: =VLOOKUP(G80,Q79:R1416,2,FALSE) -> Sump Pump, complete sump pump 0 Sump Pumps | J80: 51 | K80: 87683.16 | O80: 364300 Pole - Concrete | P80: 36400001327 Poles - Concrete - Ea. 140 " | Q80: 36400001327 | R80: Poles - Concrete - Ea. 140 Pole - Concrete
B81: 366 - Underground Conduit Total | D81: =SUBTOTAL(9,D75:D80) -> 1217455 | E81: Schedule 71-December, 2010 | H81: 366 - Underground Conduit Total | K81: =SUBTOTAL(9,K75:K80) -> 1217455 | O81: 364300 Pole - Concrete | P81: 36400001328 Poles - Concrete - Ea. 145 " | Q81: 36400001328 | R81: Poles - Concrete - Ea. 145 Pole - Concrete
A82: 36700001201 # 1/0 and below | B82: 367 - Undergrnd conductors,devices | C82: 361 | D82: 3421.92 | G82: =TRIM(LEFT(A82,12)) -> 36700001201 | H82: =VLOOKUP(G82,Q81:R1418,2,FALSE) -> # 1/0 and below 5 - 15 KV Cable, Le | J82: 361 | K82: 3421.92 | O82: 364400 Pole - Aluminum | P82: 36400001404 25 Ft. | Q82: 36400001404 | R82: 25 Ft. Pole - Aluminum
A83: 36700001302 # 2/0 - 4/0 | B83: 367 - Undergrnd conductors,devices | C83: 1050 | D83: 98300.74 | G83: 36700001302 | H83: # 2/0 - 4/0 5 - 15 KV Cable, Le | J83: 1050 | K83: 98300.74 | O83: 364400 Pole - Aluminum | P83: 36400001405 30 Ft. | Q83: 36400001405 | R83: 30 Ft. Pole - Aluminum
A84: 36700001551 # 1/0 and below | B84: 367 - Undergrnd conductors,devices | C84: 41008 | D84: 19190.79 | G84: 36700001551 | H84: # 1/0 and below 0 0-4.9KV Cable, Non | J84: 41008 | K84: 19190.79 | O84: 364400 Pole - Aluminum | P84: 36400001406 35 Ft. | Q84: 36400001406 | R84: 35 Ft. Pole - Aluminum
A85: 36700001552 # 2/0 - 4/0 | B85: 367 - Undergrnd conductors,devices | C85: 160047 | D85: 834442.17 | G85: 36700001552 | H85: # 2/0 - 4/0 0 0-4.9KV Cable, Non | J85: 160047 | K85: 834442.17 | O85: 364400 Pole - Aluminum | P85: 36400001407 40 Ft. | Q85: 36400001407 | R85: 40 Ft. Pole - Aluminum
A86: 36700001555 300 MCM | B86: 367 - Undergrnd conductors,devices | C86: 11442 | D86: 60230.65 | G86: 36700001555 | H86: 300 MCM 0 0-4.9KV Cable, Non | J86: 11442 | K86: 60230.65 | O86: 364400 Pole - Aluminum | P86: 36400001408 45 Ft. | Q86: 36400001408 | R86: 45 Ft. Pole - Aluminum
A87: 36700001556 350 MCM | B87: 367 - Undergrnd conductors,devices | C87: 823 | D87: 5795.78 | G87: 36700001556 | H87: 350 MCM 0 0-4.9KV Cable, Non | J87: 823 | K87: 5795.78 | O87: 364500 Pole Truss | P87: 36400001500 Steel Reinforced | Q87: 36400001500 | R87: Steel Reinforced Pole Truss
A88: 36700001558 500 MCM | B88: 367 - Undergrnd conductors,devices | C88: 67872 | D88: 281378.09 | G88: 36700001558 | H88: 500 MCM 0 0-4.9KV Cable, Non | J88: 67872 | K88: 281378.09 | O88: 364500 Pole Truss | P88: 36400001505 Tubular Encasement | Q88: 36400001505 | R88: Tubular Encasement Pole Truss
A89: 36700001601 # 1/0 and below | B89: 367 - Undergrnd conductors,devices | C89: 1910 | D89: 2954.58 | G89: 36700001601 | H89: # 1/0 and below 0 0-4.9KV Cable, Non | J89: 1910 | K89: 2954.58 | O89: 364600 Foundation - Bolted | P89: 36400001600 All | Q89: 36400001600 | R89: All Foundation - Bolted
A90: 36700001602 # 2/0-4/0 | B90: 367 - Undergrnd conductors,devices | C90: 300 | D90: 830.96 | G90: 36700001602 | H90: # 2/0-4/0 0 0-4.9KV Cable, Non | J90: 300 | K90: 830.96 | O90: 364700 Piling - Wood | P90: 36400001654 25 Ft. | Q90: 36400001654 | R90: 25 Ft. Piling - Wood
A91: 36700001651 # 1/0 and below | B91: 367 - Undergrnd conductors,devices | C91: 3264547 | D91: 10008695.31 | G91: 36700001651 | H91: # 1/0 and below 0 0-4.9KV Cable, Non | J91: 3264547 | K91: 10008695.31 | O91: 364700 Piling - Wood | P91: 36400001655 30 Ft. | Q91: 36400001655 | R91: 30 Ft. Piling - Wood
A92: 36700001652 # 2/0 - 4/0 | B92: 367 - Undergrnd conductors,devices | C92: 3762117 | D92: 15504778.91 | G92: 36700001652 | H92: # 2/0 - 4/0 0 0-4.9KV Cable, Non | J92: 3762117 | K92: 15504778.91 | O92: 364700 Piling - Wood | P92: 36400001656 35 Ft. | Q92: 36400001656 | R92: 35 Ft. Piling - Wood
A93: 36700001658 0-4.9KV CBL-NL-3/C-500 | B93: 367 - Undergrnd conductors,devices | C93: 7342 | D93: 81856.08 | G93: 36700001658 | H93: 0-4.9KV CBL-NL-3/C-500 MCM 0FPC | J93: 7342 | K93: 81856.08 | O93: 364700 Piling - Wood | P93: 36400001657 40 Ft. | Q93: 36400001657 | R93: 40 Ft. Piling - Wood
A94: 36700001671 # 1/0 and below | B94: 367 - Undergrnd conductors,devices | C94: 34303 | D94: 119688.03 | G94: 36700001671 | H94: # 1/0 and below 0 0-4.9KV Cable, Non | J94: 34303 | K94: 119688.03 | O94: 364700 Piling - Wood | P94: 36400001658 45 Ft. | Q94: 36400001658 | R94: 45 Ft. Piling - Wood
A95: 36700001672 # 2/0 - 4/0 | B95: 367 - Undergrnd conductors,devices | C95: 158219 | D95: 888610.29 | G95: 36700001672 | H95: # 2/0 - 4/0 0 0-4.9KV Cable, Non | J95: 158219 | K95: 888610.29 | O95: 364700 Piling - Wood | P95: 36400001659 50 Ft. | Q95: 36400001659 | R95: 50 Ft. Piling - Wood
A96: 36700001675 0-4.9KV CBL-NL-4/C-500 | B96: 367 - Undergrnd conductors,devices | C96: 4023 | D96: 55856.82 | G96: 36700001675 | H96: 0-4.9KV CBL-NL-4/C-500 MCM 0FPC | J96: 4023 | K96: 55856.82 | O96: 364800 Tower - Wood | P96: 36400001719 100 Ft. | Q96: 36400001719 | R96: 100 Ft. Tower - Wood
A97: 36700001675 0-4.9KV CBL-NL-4/C-500 | B97: 367 - Undergrnd conductors,devices | C97: 4649 | D97: 72972.79 | G97: 36700001675 | H97: 0-4.9KV CBL-NL-4/C-500 MCM 0FPC | J97: 4649 | K97: 72972.79 | O97: 364900 Tower - Steel, Single Circui | P97: 36400001805 30 Ft. | Q97: 36400001805 | R97: 30 Ft. Tower - Steel, Sing
A98: 36700001751 # 1/0 and below | B98: 367 - Undergrnd conductors,devices | C98: 46303 | D98: 70015.41 | G98: 36700001751 | H98: # 1/0 and below 0 5-15KV Cable, Non- | J98: 46303 | K98: 70015.41 | O98: 364900 Tower - Steel, Single Circui | P98: 36400001806 35 Ft. | Q98: 36400001806 | R98: 35 Ft. Tower - Steel, Sing
A99: 36700001752 # 2/0 - 4/0 | B99: 367 - Undergrnd conductors,devices | C99: 3730 | D99: 484.47 | G99: 36700001752 | H99: # 2/0 - 4/0 0 5-15KV Cable, Non- | J99: 3730 | K99: 484.47 | O99: 364900 Tower - Steel, Single Circui | P99: 36400001807 40 Ft. | Q99: 36400001807 | R99: 40 Ft. Tower - Steel, Sing
A100: 36700001758 500 MCM | B100: 367 - Undergrnd conductors,devices | C100: 7793 | D100: 27224.57 | G100: 36700001758 | H100: 500 MCM 0 5-15KV Cable, Non- | J100: 7793 | K100: 27224.57 | O100: 364900 Tower - Steel, Single Circui | P100: 36400001808 45 Ft. | Q100: 36400001808 | R100: 45 Ft. Tower - Steel, Sing
A101: 36700001764 1000 MCM | B101: 367 - Undergrnd conductors,devices | C101: 9490 | D101: 79577.67 | G101: 36700001764 | H101: 1000 MCM 0 5-15KV Cable, Non- | J101: 9490 | K101: 79577.67 | O101: 364900 Tower - Steel, Single Circui | P101: 36400001809 50 Ft. | Q101: 36400001809 | R101: 50 Ft. Tower - Steel, Sing
A102: 36700001801 # 1/0 and below | B102: 367 - Undergrnd conductors,devices | C102: 2075 | D102: 7824.47 | G102: 36700001801 | H102: # 1/0 and below 0 5-15KV Cable, Non- | J102: 2075 | K102: 7824.47 | O102: 364900 Tower - Steel, Single Circui | P102: 36400001810 55 Ft. | Q102: 36400001810 | R102: 55 Ft. Tower - Steel, Sing
A103: 36700001851 # 1/0 and below | B103: 367 - Undergrnd conductors,devices | C103: 440 | D103: 159.99 | G103: 36700001851 | H103: # 1/0 and below 0 5-15KV Cable, Non- | J103: 440 | K103: 159.99 | O103: 364900 Tower - Steel, Single Circui | P103: 36400001811 60 Ft. | Q103: 36400001811 | R103: 60 Ft. Tower - Steel, Sing
A104: 36700001858 500 MCM | B104: 367 - Undergrnd conductors,devices | C104: 530 | D104: 2512.92 | G104: 36700001858 | H104: 500 MCM 0 5-15KV Cable, Non- | J104: 530 | K104: 2512.92 | O104: 364900 Tower - Steel, Single Circui | P104: 36400001815 80 Ft. | Q104: 36400001815 | R104: 80 Ft. Tower - Steel, Sing
A105: 36700002901 # 1/0 and below | B105: 367 - Undergrnd conductors,devices | C105: 3045 | D105: 3208.85 | G105: 36700002901 | H105: # 1/0 and below 0 0-4.9KV Cable, 2 C | J105: 3045 | K105: 3208.85 | O105: 364900 Tower - Steel, Single Circui | P105: 36400001816 85 Ft. | Q105: 36400001816 | R105: 85 Ft. Tower - Steel, Sing
A106: 36700002902 # 2/0 - 4/0 | B106: 367 - Undergrnd conductors,devices | C106: 1920 | D106: 3923.02 | G106: 36700002902 | H106: # 2/0 - 4/0 0 0-4.9KV Cable, 2 C | J106: 1920 | K106: 3923.02 | O106: 3650000FPC | P106: 36500004999 INTERIM RETIREMENT UNIT CODE | Q106: 36500004999 | R106: INTERIM RETIREMENT UNIT CODE 0FPC
A107: 36700003001 # 1/0 and below | B107: 367 - Undergrnd conductors,devices | C107: 11919 | D107: 7241.09 | G107: 36700003001 | H107: # 1/0 and below 0 0-4.9KV Cable, 3 C | J107: 11919 | K107: 7241.09 | O107: 3650000FPC | P107: 36500005106 GANG OPERATED SWITCH EXCHANGE | Q107: 36500005106 | R107: GANG OPERATED SWITCH EXCHANGE 0FPC
A108: 36700003002 # 2/0 - 4/0 | B108: 367 - Undergrnd conductors,devices | C108: 4865 | D108: 5304.09 | G108: 36700003002 | H108: # 2/0 - 4/0 0 0-4.9KV Cable, 3 C | J108: 4865 | K108: 5304.09 | O108: 3650000FPC | P108: 36500009999 To be Adjusted | Q108: 36500009999 | R108: To be Adjusted 0FPC
A109: 36700003101 # 1/0 and below | B109: 367 - Undergrnd conductors,devices | C109: 16609094 | D109: 55168803.43 | G109: 36700003101 | H109: # 1/0 and below 0 5-15KV Cbl, 1 Cond | J109: 16609094 | K109: 55168803.43 | O109: 365100 Wire - Copper, Bare | P109: 36500001000 All Sizes, continous single conductor measured in lbs. of line wire | Q109: 36500001000 | R109: All Sizes, continous single c Wire - Copper, Bare
A110: 36700003106 350 MCM | B110: 367 - Undergrnd conductors,devices | C110: 48490 | D110: 258025.79 | G110: 36700003106 | H110: 350 MCM 0 5-15KV Cbl, 1 Cond | J110: 48490 | K110: 258025.79 | O110: 365100 Wire - Copper, Bare | P110: 36500001001 CU BA - 3 CU | Q110: 36500001001 | R110: CU BA - 3 CU Wire - Copper, Bare
A111: 36700003108 500 MCM | B111: 367 - Undergrnd conductors,devices | C111: 15875 | D111: 52196.63 | G111: 36700003108 | H111: 500 MCM 0 5-15KV Cbl, 1 Cond | J111: 15875 | K111: 52196.63 | O111: 365100 Wire - Copper, Bare | P111: 36500001002 CU BA - 2 CU | Q111: 36500001002 | R111: CU BA - 2 CU Wire - Copper, Bare
A112: 36700003301 # 1/0 and below | B112: 367 - Undergrnd conductors,devices | C112: 11475 | D112: 9738.34 | G112: 36700003301 | H112: # 1/0 and below 0 5-15KV Cbl, 3 Cond | J112: 11475 | K112: 9738.34 | O112: 365100 Wire - Copper, Bare | P112: 36500001003 CU BA - 1/0 CU | Q112: 36500001003 | R112: CU BA - 1/0 CU Wire - Copper, Bare
A113: 36700003302 # 2/0 - 4/0 | B113: 367 - Undergrnd conductors,devices | C113: 8320 | D113: 11954.07 | G113: 36700003302 | H113: # 2/0 - 4/0 0 5-15KV Cbl, 3 Cond | J113: 8320 | K113: 11954.07 | O113: 365100 Wire - Copper, Bare | P113: 36500001004 CU BA - 4/0 CU | Q113: 36500001004 | R113: CU BA - 4/0 CU Wire - Copper, Bare
A114: 36700003306 350 MCM | B114: 367 - Undergrnd conductors,devices | C114: 7920 | D114: 11892.98 | G114: 36700003306 | H114: 350 MCM 0 5-15KV Cbl, 3 Cond | J114: 7920 | K114: 11892.98 | O114: 365100 Wire - Copper, Bare | P114: 36500001005 CU BA - 350 CU | Q114: 36500001005 | R114: CU BA - 350 CU Wire - Copper, Bare
A115: 36700003401 # 1/0 and below | B115: 367 - Undergrnd conductors,devices | C115: 193094 | D115: 677116.96 | G115: 36700003401 | H115: # 1/0 and below 0 15.1-25KV Cbl, 1 C | J115: 193094 | K115: 677116.96 | O115: 365100 Wire - Copper, Bare | P115: 36500001006 CU BA - 500 CU | Q115: 36500001006 | R115: CU BA - 500 CU Wire - Copper, Bare
A116: 36700003411 750 MCM | B116: 367 - Undergrnd conductors,devices | C116: 44400 | D116: 311830.4 | G116: 36700003411 | H116: 750 MCM 0 15.1-25KV Cbl, 1 C | J116: 44400 | K116: 311830.4 | O116: 365100 Wire - Copper, Bare | P116: 36500001007 CU BA - 750 CU | Q116: 36500001007 | R116: CU BA - 750 CU Wire - Copper, Bare
A117: 36700003414 1000 MCM | B117: 367 - Undergrnd conductors,devices | C117: 675882 | D117: 7472421.83 | G117: 36700003414 | H117: 1000 MCM 0 15.1-25KV Cbl, 1 C | J117: 675882 | K117: 7472421.83 | O117: 365100 Wire - Copper, Bare | P117: 36500001008 CU BA - 1000 CU | Q117: 36500001008 | R117: CU BA - 1000 CU Wire - Copper, Bare
A118: 36700004001 # 1/0 and below | B118: 367 - Undergrnd conductors,devices | C118: 17100 | D118: 14235.68 | G118: 36700004001 | H118: # 1/0 and below 0 Neutrl Cond, Bare | J118: 17100 | K118: 14235.68 | O118: 3651000 Spacer Cable | P118: 36500002503 3 Conductor, continous spacer cable measured in circuit feet of cable | Q118: 36500002503 | R118: 3 Conductor, continous spacer 0 Spacer Cable
A119: 36700004002 # 2/0 - 4/0 | B119: 367 - Undergrnd conductors,devices | C119: 2576 | D119: 10430.68 | G119: 36700004002 | H119: # 2/0 - 4/0 0 Neutrl Cond, Bare | J119: 2576 | K119: 10430.68 | O119: 3651100 SPST Switch | P119: 36500005001 0 - 5 KV | Q119: 36500005001 | R119: 0 - 5 KV 0 SPST Switch
A120: 36700004004 250 MCM | B120: 367 - Undergrnd conductors,devices | C120: 30 | D120: 75.09 | G120: 36700004004 | H120: 250 MCM 0 Neutrl Cond, Bare | J120: 30 | K120: 75.09 | O120: 3651100 SPST Switch | P120: 36500005002 5.1 - 15 KV | Q120: 36500005002 | R120: 5.1 - 15 KV 0 SPST Switch
A121: 36700004006 350 MCM | B121: 367 - Undergrnd conductors,devices | C121: 30 | D121: 266.73 | G121: 36700004006 | H121: 350 MCM 0 Neutrl Cond, Bare | J121: 30 | K121: 266.73 | O121: 3651100 SPST Switch | P121: 36500005003 15.1 - 25 KV | Q121: 36500005003 | R121: 15.1 - 25 KV 0 SPST Switch
A122: 36700004008 500 MCM | B122: 367 - Undergrnd conductors,devices | C122: 1329 | D122: 6876.29 | G122: 36700004008 | H122: 500 MCM 0 Neutrl Cond, Bare | J122: 1329 | K122: 6876.29 | O122: 3651100 SPST Switch | P122: 36500005004 25.1 - 35 KV | Q122: 36500005004 | R122: 25.1 - 35 KV 0 SPST Switch
A123: 36700004404 250 MCM | B123: 367 - Undergrnd conductors,devices | C123: 5100 | D123: 34448.72 | G123: 36700004404 | H123: 250 MCM 0 5-15KV Submarine C | J123: 5100 | K123: 34448.72 | O123: 3651100 SPST Switch | P123: 36500005005 Over 35 KV | Q123: 36500005005 | R123: Over 35 KV 0 SPST Switch
A124: 36700004408 500 MCM | B124: 367 - Undergrnd conductors,devices | C124: 198 | D124: 402.4 | G124: 36700004408 | H124: 500 MCM 0 5-15KV Submarine C | J124: 198 | K124: 402.4 | O124: 3651100 SPST Switch | P124: 36500005022 5.1 - 15 KV, Oil Type | Q124: 36500005022 | R124: 5.1 - 15 KV, Oil Type 0 SPST Switch
A125: 36700004608 500 MCM | B125: 367 - Undergrnd conductors,devices | C125: 2100 | D125: 10373.59 | G125: 36700004608 | H125: 500 MCM 0 5-15KV Submarine C | J125: 2100 | K125: 10373.59 | O125: 3651100 SPST Switch | P125: 36500005023 15.1 - 25 KV, Oil Type | Q125: 36500005023 | R125: 15.1 - 25 KV, Oil Type 0 SPST Switch
A126: 36700004702 # 2/0 - 4/0 | B126: 367 - Undergrnd conductors,devices | C126: 1400 | D126: 7883.4 | G126: 36700004702 | H126: # 2/0 - 4/0 0 15.1-25KV Submarin | J126: 1400 | K126: 7883.4 | O126: 3651200 Gang Operated Switch | P126: 36500005101 0 - 5 KV | Q126: 36500005101 | R126: 0 - 5 KV 0 Gang Operated Swit
A127: 36700004709 750 MCM | B127: 367 - Undergrnd conductors,devices | C127: 109461 | D127: 2291350.02 | G127: 36700004709 | H127: 750 MCM 0 15.1-25KV Submarin | J127: 109461 | K127: 2291350.02 | O127: 3651200 Gang Operated Switch | P127: 36500005102 5.1 - 15 KV | Q127: 36500005102 | R127: 5.1 - 15 KV 0 Gang Operated Swit
A128: 36700005000 SILICONE CABLE TREATM | B128: 367 - Undergrnd conductors,devices | C128: 138480 | D128: 1664183.28 | G128: 36700005000 | H128: SILICONE CABLE TREATMENT- GUL 0FPC | J128: 138480 | K128: 1664183.28 | O128: 3651200 Gang Operated Switch | P128: 36500005103 15.1 - 25 KV | Q128: 36500005103 | R128: 15.1 - 25 KV 0 Gang Operated Swit
A129: 36700006100 Conductor Sensor (Insul | B129: 367 - Undergrnd conductors,devices | C129: 9 | D129: 29987.24 | G129: 36700006100 | H129: Conductor Sensor (Insulator) 0 Distribution Line | J129: 9 | K129: 29987.24 | O129: 3651200 Gang Operated Switch | P129: 36500005104 25.1 - 35 KV | Q129: 36500005104 | R129: 25.1 - 35 KV 0 Gang Operated Swit
A130: 36700006200 Control Box, including | B130: 367 - Undergrnd conductors,devices | C130: 1 | D130: 8481.2 | G130: 36700006200 | H130: Control Box, including wiring 0 Distribution Line | J130: 1 | K130: 8481.2 | O130: 3651200 Gang Operated Switch | P130: 36500005105 Over 35 KV | Q130: 36500005105 | R130: Over 35 KV 0 Gang Operated Swit
A131: 36700006300 Remote Terminal Unit | B131: 367 - Undergrnd conductors,devices | C131: 2 | D131: 25944.28 | G131: 36700006300 | H131: Remote Terminal Unit 0 Distribution Line | J131: 2 | K131: 25944.28 | O131: 3651200 Gang Operated Switch | P131: 36500005151 23 KV, 2 Way | Q131: 36500005151 | R131: 23 KV, 2 Way 0 Gang Operated Swit
A132: 36700006400 Radio | B132: 367 - Undergrnd conductors,devices | C132: 1 | D132: 4941.17 | G132: 36700006400 | H132: Radio 0 Distribution Line | J132: 1 | K132: 4941.17 | O132: 3651200 Gang Operated Switch | P132: 36500005152 23 KV, 3 Way | Q132: 36500005152 | R132: 23 KV, 3 Way 0 Gang Operated Swit
A133: 36700007032 5.1 - 15 KV | B133: 367 - Undergrnd conductors,devices | C133: 3 | D133: 22687.16 | G133: 36700007032 | H133: 5.1 - 15 KV 0 Oil Switch - 3m | J133: 3 | K133: 22687.16 | O133: 3651300 Repeater Fuse - 3 Shot | P133: 36500005200 All Sizes | Q133: 36500005200 | R133: All Sizes 0 Repeater Fuse - 3
A134: 36700007033 15.1 - 25 KV | B134: 367 - Undergrnd conductors,devices | C134: 2 | D134: 4213.09 | G134: 36700007033 | H134: 15.1 - 25 KV 0 Oil Switch - 3m | J134: 2 | K134: 4213.09 | O134: 3651400 Oil Circuit Recloser | P134: 36500005311 1m 0 - 15 KV | Q134: 36500005311 | R134: 1m 0 - 15 KV 0 Oil Circuit Reclos
A135: 36700007052 5.1 - 15 KV | B135: 367 - Undergrnd conductors,devices | C135: 11 | D135: 17556.5 | G135: 36700007052 | H135: 5.1 - 15 KV 0 Fused Switch | J135: 11 | K135: 17556.5 | O135: 3651400 Oil Circuit Recloser | P135: 36500005312 1m 15.1 - 25 KV | Q135: 36500005312 | R135: 1m 15.1 - 25 KV 0 Oil Circuit Reclos
A136: 36700007111 0 - 5 KV | B136: 367 - Undergrnd conductors,devices | C136: 1 | D136: 9208.97 | G136: 36700007111 | H136: 0 - 5 KV 0 Switchgear Assembl | J136: 1 | K136: 9208.97 | O136: 3651400 Oil Circuit Recloser | P136: 36500005313 1m 25.1 - 35 KV | Q136: 36500005313 | R136: 1m 25.1 - 35 KV 0 Oil Circuit Reclos
A137: 36700007112 5.1 - 15 KV | B137: 367 - Undergrnd conductors,devices | C137: 213 | D137: 3078019.03 | G137: 36700007112 | H137: 5.1 - 15 KV 0 Switchgear Assembl | J137: 213 | K137: 3078019.03 | O137: 3651400 Oil Circuit Recloser | P137: 36500005314 1m Over 35 KV | Q137: 36500005314 | R137: 1m Over 35 KV 0 Oil Circuit Reclos
A138: 36700007113 15.1 - 25 KV | B138: 367 - Undergrnd conductors,devices | C138: 2 | D138: 17565.56 | G138: 36700007113 | H138: 15.1 - 25 KV 0 Switchgear Assembl | J138: 2 | K138: 17565.56 | O138: 3651400 Oil Circuit Recloser | P138: 36500005331 3m 0 - 15 KV | Q138: 36500005331 | R138: 3m 0 - 15 KV 0 Oil Circuit Reclos
A139: 36700007271 0 - 15 KV | B139: 367 - Undergrnd conductors,devices | C139: 8 | D139: 279542.02 | G139: 36700007271 | H139: 0 - 15 KV 0 Automatic Transfer | J139: 8 | K139: 279542.02 | O139: 3651400 Oil Circuit Recloser | P139: 36500005332 3m 15.1 - 25 KV | Q139: 36500005332 | R139: 3m 15.1 - 25 KV 0 Oil Circuit Reclos
A140: 36700007301 Dry | B140: 367 - Undergrnd conductors,devices | C140: 373 | D140: 550152.61 | G140: 36700007301 | H140: Dry 0 Junction Box | J140: 373 | K140: 550152.61 | O140: 3651400 Oil Circuit Recloser | P140: 36500005333 3m 25.1 - 35 KV | Q140: =LEFT(P140,11) -> 36500005333 | R140: =CONCATENATE(MID(P140,12,30)," ",MID(O140,7,20)) -> 3m 25.1 - 35 KV 0 Oil Circuit Reclos
A141: 36700007450 All | B141: 367 - Undergrnd conductors,devices | C141: 1 | D141: 3225.56 | G141: 36700007450 | H141: All 0 Demand Meter Assem | J141: 1 | K141: 3225.56 | O141: 3651400 Oil Circuit Recloser | P141: 36500005334 3m Over 35 KV | Q141: 36500005334 | R141: 3m Over 35 KV 0 Oil Circuit Reclos
A142: 36700007540 All | B142: 367 - Undergrnd conductors,devices | C142: 638 | D142: 379765.32 | G142: 36700007540 | H142: All 0 Switch Pad | J142: 638 | K142: 379765.32 | O142: 3651400 Oil Circuit Recloser | P142: 36500005335 3m Electronic | Q142: 36500005335 | R142: 3m Electronic 0 Oil Circuit Reclos
A143: 36700007571 1 Phase | B143: 367 - Undergrnd conductors,devices | C143: 30120 | D143: 11887776.01 | G143: 36700007571 | H143: 1 Phase 0 Terminating Cabine | J143: 30120 | K143: 11887776.01 | O143: 3651400 Oil Circuit Recloser | P143: 36500005336 3m 15 KV, 400A, Submersible | Q143: 36500005336 | R143: 3m 15 KV, 400A, Submersible 0 Oil Circuit Reclos
A144: 36700007573 3 Phase | B144: 367 - Undergrnd conductors,devices | C144: 2454 | D144: 2450147.25 | G144: 36700007573 | H144: 3 Phase 0 Terminating Cabine | J144: 2454 | K144: 2450147.25 | O144: 3651400 Oil Circuit Recloser | P144: 36500005337 3m Type REX 14.4KV | Q144: 36500005337 | R144: 3m Type REX 14.4KV 0 Oil Circuit Reclos
A145: 36706999 INTERIM RETIREMENT UNIT CO | B145: 367 - Undergrnd conductors,devices | C145: 269314 | D145: 2222485.78 | G145: 36706999 INT | J145: 269314 | K145: 2222485.78 | O145: 3651500 Sectionalizer | P145: 36500005410 1m | Q145: 36500005410 | R145: 1m 0 Sectionalizer
A146: Non-unitized | B146: 367 - Undergrnd conductors,devices | C146: 383 | D146: 1080422.49 | E146: In Balance With | G146: =TRIM(LEFT(A146,12)) -> Non-unitized | H146: =G146 -> Non-unitized | J146: 383 | K146: 1080422.49 | O146: 3651500 Sectionalizer | P146: 36500005430 3m | Q146: 36500005430 | R146: 3m 0 Sectionalizer
B147: 367 - Undergrnd conductors,devices Total | D147: =SUBTOTAL(9,D82:D146) -> 118333108 | E147: Schedule 71-December, 2010 | H147: 367 - Undergrnd conductors,devices Total | K147: =SUBTOTAL(9,K82:K146) -> 118333108 | O147: 3651600 Vacuum Recloser | P147: 36500005510 1m | Q147: 36500005510 | R147: 1m 0 Vacuum Recloser
A148: 36800001001 5 KVA & below | B148: 368 - Line Transformers | C148: 989 | D148: 254343.57 | G148: =TRIM(LEFT(A148,12)) -> 36800001001 | H148: =VLOOKUP(G148,Q147:R1484,2,FALSE) -> 5 KVA & below Overhead Transforme | J148: 989 | K148: 254343.57 | O148: 3651600 Vacuum Recloser | P148: 36500005530 3m | Q148: 36500005530 | R148: 3m 0 Vacuum Recloser
A149: 36800001002 7.5 KVA | B149: 368 - Line Transformers | C149: 13 | D149: 11488.25 | G149: 36800001002 | H149: 7.5 KVA Overhead Transforme | J149: 13 | K149: 11488.25 | O149: 3651600 Vacuum Recloser | P149: 36500005535 3m Electronic | Q149: 36500005535 | R149: 3m Electronic 0 Vacuum Recloser
A150: 36800001003 10 KVA | B150: 368 - Line Transformers | C150: 8035 | D150: 2655246.9 | G150: 36800001003 | H150: 10 KVA Overhead Transforme | J150: 8035 | K150: 2655246.9 | O150: 3651700 Vacuum Switch | P150: 36500005630 3m | Q150: 36500005630 | R150: 3m 0 Vacuum Switch
A151: 36800001004 15 KVA | B151: 368 - Line Transformers | C151: 22201 | D151: 10141977.86 | G151: 36800001004 | H151: 15 KVA Overhead Transforme | J151: 22201 | K151: 10141977.86 | O151: 3651800 Automatic Transfer Switch ( | P151: 36500005710 1m | Q151: 36500005710 | R151: 1m 0 Automatic Transfer
A152: 36800001006 25 KVA | B152: 368 - Line Transformers | C152: 54828 | D152: 29843126.87 | G152: 36800001006 | H152: 25 KVA Overhead Transforme | J152: 54828 | K152: 29843126.87 | O152: 3651800 Automatic Transfer Switch ( | P152: 36500005730 3m | Q152: 36500005730 | R152: 3m 0 Automatic Transfer
A153: 36800001008 37.5 KVA | B153: 368 - Line Transformers | C153: 17695 | D153: 12633582.94 | G153: 36800001008 | H153: 37.5 KVA Overhead Transforme | J153: 17695 | K153: 12633582.94 | O153: 3651900 Recloser By-Pass Switch | P153: 36500005800 All Sizes | Q153: 36500005800 | R153: All Sizes 0 Recloser By-Pass S
A154: 36800001010 50 KVA | B154: 368 - Line Transformers | C154: 9776 | D154: 8145704.1 | G154: 36800001010 | H154: 50 KVA Overhead Transforme | J154: 9776 | K154: 8145704.1 | O154: 365200 Wire - Copper, Covered | P154: 36500001100 All Sizes, continous single conductor measured in lbs. of line wire | Q154: 36500001100 | R154: All Sizes, continous single c Wire - Copper, Cove
A155: 36800001013 75 KVA | B155: 368 - Line Transformers | C155: 2711 | D155: 3418405.32 | G155: 36800001013 | H155: 75 KVA Overhead Transforme | J155: 2711 | K155: 3418405.32 | O155: 365200 Wire - Copper, Covered | P155: 36500001101 CU CV - WP 4/0 CU | Q155: 36500001101 | R155: CU CV - WP 4/0 CU Wire - Copper, Cove
A156: 36800001016 100 KVA | B156: 368 - Line Transformers | C156: 1215 | D156: 1872326.43 | G156: 36800001016 | H156: 100 KVA Overhead Transforme | J156: 1215 | K156: 1872326.43 | O156: 365200 Wire - Copper, Covered | P156: 36502001102 Wire -covered cu 250-1000cm in lbs | Q156: 36502001102 | R156: Wire -covered cu 250-1000cm i Wire - Copper, Cove
A157: 36800001020 150 KVA | B157: 368 - Line Transformers | C157: 2 | D157: 1499.64 | G157: 36800001020 | H157: 150 KVA Overhead Transforme | J157: 2 | K157: 1499.64 | O157: 3652000 Switch Structure with Found | P157: 36500005900 All Sizes | Q157: 36500005900 | R157: All Sizes 0 Switch Structure w
A158: 36800001021 167 KVA | B158: 368 - Line Transformers | C158: 522 | D158: 1121314.38 | G158: 36800001021 | H158: 167 KVA Overhead Transforme | J158: 522 | K158: 1121314.38 | O158: 3652100 Protective Relaying at Tie | P158: 36500006000 Protective Relaying Installation | Q158: 36500006000 | R158: Protective Relaying Installat 0 Protective Relayin
A159: 36800001023 200 KVA | B159: 368 - Line Transformers | C159: 4 | D159: 1581.33 | G159: 36800001023 | H159: 200 KVA Overhead Transforme | J159: 4 | K159: 1581.33 | O159: 3652200 Distribution Line Sensoring | P159: 36500006100 Conductor Sensor (Insulator) | Q159: 36500006100 | R159: Conductor Sensor (Insulator) 0 Distribution Line
A160: 36800001026 250 KVA | B160: 368 - Line Transformers | C160: 5 | D160: 21725 | G160: 36800001026 | H160: 250 KVA Overhead Transforme | J160: 5 | K160: 21725 | O160: 3652200 Distribution Line Sensoring | P160: 36500006101 Open Conductor Detector Device | Q160: 36500006101 | R160: Open Conductor Detector Devic 0 Distribution Line
A161: 36800001029 333 KVA | B161: 368 - Line Transformers | C161: 24 | D161: 67841.82 | G161: 36800001029 | H161: 333 KVA Overhead Transforme | J161: 24 | K161: 67841.82 | O161: 3652200 Distribution Line Sensoring | P161: 36500006200 Control Box, including wiring | Q161: 36500006200 | R161: Control Box, including wiring 0 Distribution Line
A162: 36800001039 833 KVA | B162: 368 - Line Transformers | C162: 1 | D162: 4719.31 | G162: 36800001039 | H162: 833 KVA Overhead Transforme | J162: 1 | K162: 4719.31 | O162: 3652200 Distribution Line Sensoring | P162: 36500006300 Remote Terminal Unit | Q162: 36500006300 | R162: Remote Terminal Unit 0 Distribution Line
A163: 36800001110 50 KVA | B163: 368 - Line Transformers | C163: 3 | D163: 1080.81 | G163: 36800001110 | H163: 50 KVA Overhead Transforme | J163: 3 | K163: 1080.81 | O163: 3652200 Distribution Line Sensoring | P163: 36500006400 Radio | Q163: 36500006400 | R163: Radio 0 Distribution Line
A164: 36800001113 75 KVA | B164: 368 - Line Transformers | C164: 2 | D164: 758.51 | G164: 36800001113 | H164: 75 KVA Overhead Transforme | J164: 2 | K164: 758.51 | O164: 365300 Wire - Aluminum, Bare | P164: 36500001200 All Sizes, continous single conductor measured in lbs. of line wire | Q164: 36500001200 | R164: All Sizes, continous single c Wire - Aluminum, Ba
A165: 36800001116 100 KVA | B165: 368 - Line Transformers | C165: 1 | D165: 435.27 | G165: 36800001116 | H165: 100 KVA Overhead Transforme | J165: 1 | K165: 435.27 | O165: 365300 Wire - Aluminum, Bare | P165: 36500001201 AL BA - 4ACSR | Q165: 36500001201 | R165: AL BA - 4ACSR Wire - Aluminum, Ba
A166: 36800001120 150 KVA | B166: 368 - Line Transformers | C166: 1 | D166: 594.84 | G166: 36800001120 | H166: 150 KVA Overhead Transforme | J166: 1 | K166: 594.84 | O166: 365300 Wire - Aluminum, Bare | P166: 36500001202 AL BA - 2ACSR | Q166: 36500001202 | R166: AL BA - 2ACSR Wire - Aluminum, Ba
A167: 36800001128 300 KVA | B167: 368 - Line Transformers | C167: 2 | D167: 1997.33 | G167: 36800001128 | H167: 300 KVA Overhead Transforme | J167: 2 | K167: 1997.33 | O167: 365300 Wire - Aluminum, Bare | P167: 36500001203 AL BA - 1/0 ACSR | Q167: 36500001203 | R167: AL BA - 1/0 ACSR Wire - Aluminum, Ba
A168: 36800001143 2500 KVA | B168: 368 - Line Transformers | C168: 1 | D168: 10034.4 | G168: 36800001143 | H168: 2500 KVA Overhead Transforme | J168: 1 | K168: 10034.4 | O168: 365300 Wire - Aluminum, Bare | P168: 36500001204 AL BA - 4/0 ACSR | Q168: 36500001204 | R168: AL BA - 4/0 ACSR Wire - Aluminum, Ba
A169: 36800001208 37.5 KVA | B169: 368 - Line Transformers | C169: 2 | D169: 1247.1 | G169: 36800001208 | H169: 37.5 KVA Transformer - Vault | J169: 2 | K169: 1247.1 | O169: 365300 Wire - Aluminum, Bare | P169: 36500001205 AL BA - 336 ACSR | Q169: 36500001205 | R169: AL BA - 336 ACSR Wire - Aluminum, Ba
A170: 36800001210 50 KVA | B170: 368 - Line Transformers | C170: 4 | D170: 3004.97 | G170: 36800001210 | H170: 50 KVA Transformer - Vault | J170: 4 | K170: 3004.97 | O170: 365300 Wire - Aluminum, Bare | P170: 36500001206 AL BA - 477 AAC | Q170: 36500001206 | R170: AL BA - 477 AAC Wire - Aluminum, Ba
A171: 36800001213 75 KVA | B171: 368 - Line Transformers | C171: 48 | D171: 49562.86 | G171: 36800001213 | H171: 75 KVA Transformer - Vault | J171: 48 | K171: 49562.86 | O171: 365300 Wire - Aluminum, Bare | P171: 36500001207 AL BA - 477 ACSR | Q171: 36500001207 | R171: AL BA - 477 ACSR Wire - Aluminum, Ba
A172: 36800001216 100 KVA | B172: 368 - Line Transformers | C172: 13 | D172: 13317.54 | G172: 36800001216 | H172: 100 KVA Transformer - Vault | J172: 13 | K172: 13317.54 | O172: 365300 Wire - Aluminum, Bare | P172: 36500001208 AL BA - 795 AAC | Q172: 36500001208 | R172: AL BA - 795 AAC Wire - Aluminum, Ba
A173: 36800001335 500 KVA | B173: 368 - Line Transformers | C173: 31 | D173: 235223.32 | G173: 36800001335 | H173: 500 KVA Transformer - Vault | J173: 31 | K173: 235223.32 | O173: 365300 Wire - Aluminum, Bare | P173: 36500001209 AL BA - 795 ACSR | Q173: 36500001209 | R173: AL BA - 795 ACSR Wire - Aluminum, Ba
A174: 36800001406 25 KVA | B174: 368 - Line Transformers | C174: 6827 | D174: 8407150.46 | G174: 36800001406 | H174: 25 KVA Transformer - Pad M | J174: 6827 | K174: 8407150.46 | O174: 365300 Wire - Aluminum, Bare | P174: 36500001210 AL BA - 1351 AAC | Q174: 36500001210 | R174: AL BA - 1351 AAC Wire - Aluminum, Ba
A175: 36800001408 37.5 KVA | B175: 368 - Line Transformers | C175: 8364 | D175: 11237550.52 | G175: 36800001408 | H175: Transformer - Pad Mount - 1m: Transformer - Pad M | J175: 8364 | K175: 11237550.52 | O175: 365400 Wire - Aluminum, Covered | P175: 36500001300 All Sizes, continous single conductor measured in feet of line wire | Q175: 36500001300 | R175: All Sizes, continous single c Wire - Aluminum, Co
A176: 36800001410 50 KVA | B176: 368 - Line Transformers | C176: 5598 | D176: 7993835.6 | G176: 36800001410 | H176: 50 KVA Transformer - Pad M | J176: 5598 | K176: 7993835.6 | O176: 365400 Wire - Aluminum, Covered | P176: 36500001301 AL CV - TW 2 ACSR | Q176: 36500001301 | R176: AL CV - TW 2 ACSR Wire - Aluminum, Co
A177: 36800001413 75 KVA | B177: 368 - Line Transformers | C177: 3310 | D177: 5583534.8 | G177: 36800001413 | H177: 75 KVA Transformer - Pad M | J177: 3310 | K177: 5583534.8 | O177: 365400 Wire - Aluminum, Covered | P177: 36500001302 AL CV - TW 1/0 ACSR | Q177: 36500001302 | R177: AL CV - TW 1/0 ACSR Wire - Aluminum, Co
A178: 36800001416 100 KVA | B178: 368 - Line Transformers | C178: 1209 | D178: 2493019.93 | G178: 36800001416 | H178: 100 KVA Transformer - Pad M | J178: 1209 | K178: 2493019.93 | O178: 365400 Wire - Aluminum, Covered | P178: 36500001303 AL CV - TW 4/0 ACSR | Q178: 36500001303 | R178: AL CV - TW 4/0 ACSR Wire - Aluminum, Co
A179: 36800001421 167 KVA | B179: 368 - Line Transformers | C179: 527 | D179: 1584996.36 | G179: 36800001421 | H179: 167 KVA Transformer - Pad M | J179: 527 | K179: 1584996.36 | O179: 365400 Wire - Aluminum, Covered | P179: 36500001304 AL CV - WP 1/0 AAC | Q179: 36500001304 | R179: AL CV - WP 1/0 AAC Wire - Aluminum, Co
A180: 36800001430 333 KVA | B180: 368 - Line Transformers | C180: 1 | D180: 7941.17 | G180: 36800001430 | H180: 333 KVA Transformer - Pad M | J180: 1 | K180: 7941.17 | O180: 365400 Wire - Aluminum, Covered | P180: 36500001305 AL CV - WP 4/0 AAC | Q180: 36500001305 | R180: AL CV - WP 4/0 AAC Wire - Aluminum, Co
A181: 36800001510 50 KVA | B181: 368 - Line Transformers | C181: 1 | D181: 1091.36 | G181: 36800001510 | H181: 50 KVA Transformer - Pad M | J181: 1 | K181: 1091.36 | O181: 365400 Wire - Aluminum, Covered | P181: 36500001306 AL CV - WP 336 AAC | Q181: 36500001306 | R181: AL CV - WP 336 AAC Wire - Aluminum, Co
A182: 36800001513 75 KVA | B182: 368 - Line Transformers | C182: 4 | D182: 10067 | G182: 36800001513 | H182: 75 KVA Transformer - Pad M | J182: 4 | K182: 10067 | O182: 365400 Wire - Aluminum, Covered | P182: 36500001307 AL CV - WP 556 AAC | Q182: 36500001307 | R182: AL CV - WP 556 AAC Wire - Aluminum, Co
A183: 36800001518 112.5 KVA | B183: 368 - Line Transformers | C183: 824 | D183: 5049481.91 | G183: 36800001518 | H183: 112.5 KVA Transformer - Pad M | J183: 824 | K183: 5049481.91 | O183: 365400 Wire - Aluminum, Covered | P183: 36500001308 AL CV - WP 1033 AAC | Q183: 36500001308 | R183: AL CV - WP 1033 AAC Wire - Aluminum, Co
A184: 36800001520 150 KVA | B184: 368 - Line Transformers | C184: 446 | D184: 2494113.23 | G184: 36800001520 | H184: 150 KVA Transformer - Pad M | J184: 446 | K184: 2494113.23 | O184: 365500 Wire - Amerductor, Bare | P184: 36500001400 All Sizes, continous single conductor measured in lbs. of line wire | Q184: 36500001400 | R184: All Sizes, continous single c Wire - Amerductor,
A185: 36800001524 225 KVA | B185: 368 - Line Transformers | C185: 513 | D185: 3705818.35 | G185: 36800001524 | H185: 225 KVA Transformer - Pad M | J185: 513 | K185: 3705818.35 | O185: 365600 Duplex | P185: 36500002100 All Sizes, continous duplex conductor measured in feet of cable | Q185: 36500002100 | R185: All Sizes, continous duplex c Duplex
A186: 36800001528 300 KVA | B186: 368 - Line Transformers | C186: 509 | D186: 4017247.86 | G186: 36800001528 | H186: 300 KVA Transformer - Pad M | J186: 509 | K186: 4017247.86 | O186: 365600 Duplex | P186: 36500002101 DPX 4 | Q186: 36500002101 | R186: DPX 4 Duplex
A187: 36800001535 500 KVA | B187: 368 - Line Transformers | C187: 649 | D187: 6658981.33 | G187: 36800001535 | H187: 500 KVA Transformer - Pad M | J187: 649 | K187: 6658981.33 | O187: 365600 Duplex | P187: 36500002102 Desc N/A | Q187: 36500002102 | R187: Desc N/A Duplex
A188: 36800001538 750 KVA | B188: 368 - Line Transformers | C188: 352 | D188: 5137636.71 | G188: 36800001538 | H188: 750 KVA Transformer - Pad M | J188: 352 | K188: 5137636.71 | O188: 365700 Triplex | P188: 36500002200 All Sizes, continous triplex conductor measured in feet of cable | Q188: 36500002200 | R188: All Sizes, continous triplex Triplex
A189: 36800001540 1000 KVA | B189: 368 - Line Transformers | C189: 161 | D189: 2625517.28 | G189: 36800001540 | H189: 1000 KVA Transformer - Pad M | J189: 161 | K189: 2625517.28 | O189: 365700 Triplex | P189: 36500002201 TPX 2 | Q189: 36500002201 | R189: TPX 2 Triplex
A190: 36800001541 1500 KVA | B190: 368 - Line Transformers | C190: 114 | D190: 2445107.07 | G190: 36800001541 | H190: 1500 KVA Transformer - Pad M | J190: 114 | K190: 2445107.07 | O190: 365700 Triplex | P190: 36500002202 TPX 1/0 | Q190: 36500002202 | R190: TPX 1/0 Triplex
A191: 36800001542 2000 KVA | B191: 368 - Line Transformers | C191: 27 | D191: 655415.19 | G191: 36800001542 | H191: 2000 KVA Transformer - Pad M | J191: 27 | K191: 655415.19 | O191: 365700 Triplex | P191: 36500002203 TPX 4/0 | Q191: 36500002203 | R191: TPX 4/0 Triplex
A192: 36800001543 2500 KVA | B192: 368 - Line Transformers | C192: 57 | D192: 1733315.65 | G192: 36800001543 | H192: 2500 KVA Transformer - Pad M | J192: 57 | K192: 1733315.65 | O192: 365800 Quadruplex | P192: 36500002300 All Sizes, continous quadruplex conductor measured in feet of cable | Q192: 36500002300 | R192: All Sizes, continous quadrupl Quadruplex
A193: 36800001544 3000 KVA | B193: 368 - Line Transformers | C193: 3 | D193: 120499.46 | G193: 36800001544 | H193: 3000 KVA Transformer - Pad M | J193: 3 | K193: 120499.46 | O193: 365800 Quadruplex | P193: 36500002301 QPX 2 | Q193: 36500002301 | R193: QPX 2 Quadruplex
A194: 36800001621 167 KVA | B194: 368 - Line Transformers | C194: 7 | D194: 14138.89 | G194: 36800001621 | H194: 167 KVA Transformer - U.G. | J194: 7 | K194: 14138.89 | O194: 365800 Quadruplex | P194: 36500002302 QPX 1/0 | Q194: 36500002302 | R194: QPX 1/0 Quadruplex
A195: 36800001626 250 KVA | B195: 368 - Line Transformers | C195: 11 | D195: 58086.64 | G195: 36800001626 | H195: 250 KVA Transformer - U.G. | J195: 11 | K195: 58086.64 | O195: 365800 Quadruplex | P195: 36500002303 QPX 4/0 | Q195: 36500002303 | R195: QPX 4/0 Quadruplex
A196: 36800001629 333 KVA | B196: 368 - Line Transformers | C196: 2 | D196: 7693.66 | G196: 36800001629 | H196: 333 KVA Transformer - U.G. | J196: 2 | K196: 7693.66 | O196: 365900 Aerial Cable | P196: 36500002403 3 Conductor, continous aerial cable measured in circuit feet of cable | Q196: 36500002403 | R196: 3 Conductor, continous aerial Aerial Cable
A197: 36800001735 500 KVA | B197: 368 - Line Transformers | C197: 1 | D197: 8478.74 | G197: 36800001735 | H197: 500 KVA Transformer - U.G. | J197: 1 | K197: 8478.74 | O197: 3660000 | P197: 36600009999 To be Adjusted | Q197: 36600009999 | R197: To be Adjusted 0
A198: 36800001808 37.5/10 KVA | B198: 368 - Line Transformers | C198: 1 | D198: 1249.24 | G198: 36800001808 | H198: 37.5/10 KVA Transformer - Duple | J198: 1 | K198: 1249.24 | O198: 366100 Duct Line - Fiber, Plastic o | P198: 36600001000 All Sizes of duct line measured in feet between two termini | Q198: 36600001000 | R198: All Sizes of duct line measur Duct Line - Fiber,
A199: 36800001821 167 /37.5 KVA | B199: 368 - Line Transformers | C199: 3 | D199: 12592.97 | G199: 36800001821 | H199: 167 /37.5 KVA Transformer - Duple | J199: 3 | K199: 12592.97 | O199: 3661000 Fire Protection System | P199: 36600002100 All Systems recorded as a complete system at a location | Q199: 36600002100 | R199: All Systems recorded as a com 0 Fire Protection Sy
A200: 36800001826 250 /37.5 KVA | B200: 368 - Line Transformers | C200: 15 | D200: 115820.28 | G200: 36800001826 | H200: 250 /37.5 KVA Transformer - Duple | J200: 15 | K200: 115820.28 | O200: 3661100 Special Installation (Recor | P200: 36600002201 Pilaster | Q200: 36600002201 | R200: Pilaster 0 Special Installati
A201: 36800001905 216 V - 1600 A | B201: 368 - Line Transformers | C201: 18 | D201: 154277.62 | G201: 36800001905 | H201: 216 V - 1600 A 0 Network Protector | J201: 18 | K201: 154277.62 | O201: 3661100 Special Installation (Recor | P201: 36600002202 Tunnel - 60" | Q201: 36600002202 | R201: Tunnel - 60" 0 Special Installati
A202: 36800004015 38.1 KVA | B202: 368 - Line Transformers | C202: 15 | D202: 22068.57 | G202: 36800004015 | H202: 38.1 KVA 0 Regulator - 1m | J202: 15 | K202: 22068.57 | O202: 3661200 Sump Pumps | P202: 36600002300 Sump Pump, complete sump pump installation at one location | Q202: 36600002300 | R202: Sump Pump, complete sump pump 0 Sump Pumps
A203: 36800004023 76.2 KVA | B203: 368 - Line Transformers | C203: 182 | D203: 1147453.06 | G203: 36800004023 | H203: 76.2 KVA 0 Regulator - 1m | J203: 182 | K203: 1147453.06 | O203: 366200 Duct Line - Tile | P203: 36600001100 All Sizes of duct line measured in feet between two termini | Q203: 36600001100 | R203: All Sizes of duct line measur Duct Line - Tile
A204: 36800004025 100 KVA | B204: 368 - Line Transformers | C204: 2 | D204: 6073.38 | G204: 36800004025 | H204: 100 KVA 0 Regulator - 1m | J204: 2 | K204: 6073.38 | O204: 366300 Duct Line - Brass | P204: 36600001200 All Sizes of duct line measured in feet between two termini | Q204: =LEFT(P204,11) -> 36600001200 | R204: =CONCATENATE(MID(P204,12,30)," ",MID(O204,7,20)) -> All Sizes of duct line measur Duct Line - Brass
A205: 36800004027 114.3 KVA | B205: 368 - Line Transformers | C205: 96 | D205: 503786.37 | G205: 36800004027 | H205: 114.3 KVA 0 Regulator - 1m | J205: 96 | K205: 503786.37 | O205: 366400 Duct Line - Iron and Galvani | P205: 36600001300 All Sizes of duct line measured in feet between two termini | Q205: 36600001300 | R205: All Sizes of duct line measur Duct Line - Iron an
... 1143 more rows

Sheet Regress
A1: Gulf Power Company | J1: Account 365
A2: February 8, 2011 Unit Costs from Maximo | J2: Attachment 2 of 4
D29: Account 365--Overhead Primary Conductors
D30: Size | E30: MCM | F30: $ / ft
D31: # 2 | E31: 77.47 | F31: 0.49837
D32: 1/0 | E32: 123.3 | F32: 0.54648
D33: 4/0 | E33: 246.9 | F33: 1.10754
D34: 477 | E34: 477 | F34: 1.63739
D35: 795 | E35: 795 | F35: 2.4275
E37: Zero Intercept = | F37: 0.3087
A42: Gulf Power Company | J42: Account 368
A43: =A2 -> February 8, 2011 Unit Costs from Maximo | J43: Attachment 2 of 4
C70: Account 368--Single-Phase Overhead Transformers < 100 KVA
D71: KVA | E71: $ / ea
D72: 15 | E72: 1028.12
D73: 25 | E73: 1190.22491
D74: 37.5 | E74: 1464.76
D75: 50 | E75: 1698.88
D76: 75 | E76: 2360.26
D77: 100 | E77: 2947.02
D79: Zero Intercept = | E79: 623.34

Sheet DistGIS
D1: GULF POWER COMPANY | H1: Account 365
D2: DISTRIBUTION GEOGRAPHIC INFORMATION SYTEM | H2: Attachment 3 of 4
D3: CIRCUIT-MILE SUMMARY
D4: DECEMBER, 2009
B8: Total Primary Overhead Circuit-Miles | E8: 5891
B11: Minimum Length Calculation = Ovhd Circuit-Miles x 5,280 x 2
B13: Overhead Minimum Length | E13: =ROUND(E8*5280*2,0) -> 62208960 | F13: feet
D34: =D1 -> GULF POWER COMPANY | H34: Account 367
D35: DISTRIBUTION GEOGRAPHIC INFORMATION SYTEM | H35: Attachment 2 of 3
D36: CIRCUIT-MILE SUMMARY
D37: =D4 -> DECEMBER, 2009
B41: Total Primary Underground Circuit-Miles | E41: 1751
B44: Minimum Length Calculation = Ungd Circuit-Miles x 5,280 x 2
B46: Underground Minimum Length = | E46: =ROUND(E41*5280*2,0) -> 18490560 | F46: feet

Sheet HWI-Age
B2: Handy Whitman from January, 2011
E5: COST INDEX NUMBERS
D6: FERC | E6: 1978 | F6: 1979 | G6: 1980 | H6: 1981 | I6: 1982 | J6: 1983 | K6: 1984 | L6: 1985 | M6: 1986 | N6: 1987 | O6: 1988 | P6: 1989 | Q6: 1990 | R6: 1991 | S6: 1992 | T6: 1993 | U6: 1994 | V6: 1995 | W6: 1996 | X6: 1997 | Y6: 1998 | Z6: 1999 | AA6: 2000 | AB6: 2001 | AD6: 2002 | AF6: 2003 | AH6: 2004 | AJ6: 2005 | AL6: 2006 | AN6: 2007 | AP6: 2008 | AR6: 2009 | AT6: 2010
B7: Line | C7: CONSTRUCTION AND EQUIPMENT | AB7: Jan. 1 | AC7: Jul. 1 | AD7: Jan. 1 | AE7: Jul. 1 | AF7: Jan. 1 | AG7: Jul. 1 | AH7: Jan. 1 | AI7: Jul. 1 | AJ7: Jan. 1 | AK7: Jul. 1 | AL7: Jan. 1 | AM7: Jul. 1 | AN7: Jan. 1 | AO7: Jul. 1 | AP7: Jan. 1 | AQ7: Jul. 1 | AR7: Jan. 1 | AS7: Jul. 1 | AT7: Jan. 1 | AU7: Jul. 1
B8: 40
B9: 41 | C9: Distribution Plant
B10: 42 | C10: Total Distribution Plant | E10: 163 | F10: 177 | G10: 192 | H10: 210 | I10: 221 | J10: 225 | K10: 227 | L10: 228 | M10: 229 | N10: 231 | O10: 242.25 | P10: 255.25 | Q10: 261.75 | R10: 264.25 | S10: 266.75 | T10: 271.5 | U10: 280 | V10: 288.75 | W10: 289 | X10: 291.25 | Y10: 298.5 | Z10: 298.25 | AA10: 304.5 | AB10: 311 | AC10: 313 | AD10: 319 | AE10: 322 | AF10: 324 | AG10: 326 | AH10: 332 | AI10: 354 | AJ10: 366 | AK10: 375 | AL10: 400 | AM10: 420 | AN10: 453 | AO10: 461.4374647 | AP10: 518 | AQ10: 510 | AR10: 535 | AS10: 523 | AT10: 538 | AU10: 547
B11: 43 | C11: Station Equipment | D11: 362 | E11: 170 | F11: 182 | G11: 198 | H11: 213 | I11: 224 | J11: 222 | K11: 225 | L11: 229 | M11: 232 | N11: 241 | O11: 258.5 | P11: 280.5 | Q11: 302.75 | R11: 304 | S11: 312.25 | T11: 315 | U11: 325.25 | V11: 341 | W11: 334.5 | X11: 338.5 | Y11: 355.5 | Z11: 357.75 | AA11: 360.75 | AB11: 364 | AC11: 364 | AD11: 367 | AE11: 355 | AF11: 357 | AG11: 355 | AH11: 362 | AI11: 432 | AJ11: 449 | AK11: 456 | AL11: 482 | AM11: 492 | AN11: 532 | AO11: 551.9452036 | AP11: 568 | AQ11: 590 | AR11: 606 | AS11: 605 | AT11: 626 | AU11: 633
B12: 44 | C12: Poles, Towers & Fixtures | D12: 364 | E12: 163 | F12: 184 | G12: 202 | H12: 220 | I12: 229 | J12: 229 | K12: 230 | L12: 231 | M12: 234 | N12: 235 | O12: 241.25 | P12: 252.25 | Q12: 260.25 | R12: 268.75 | S12: 281 | T12: 289.25 | U12: 306.5 | V12: 318.25 | W12: 325 | X12: 332.75 | Y12: 337 | Z12: 338.25 | AA12: 343 | AB12: 349 | AC12: 351 | AD12: 358 | AE12: 367 | AF12: 364 | AG12: 368 | AH12: 374 | AI12: 383 | AJ12: 397 | AK12: 401 | AL12: 407 | AM12: 417 | AN12: 434 | AO12: 435.0997178 | AP12: 438 | AQ12: 453 | AR12: 472 | AS12: 472 | AT12: 478 | AU12: 475
B13: 45 | C13: Overhead Conductors & Devices | D13: 365 | E13: 168 | F13: 181 | G13: 201 | H13: 218 | I13: 227 | J13: 238 | K13: 238 | L13: 237 | M13: 238 | N13: 236 | O13: 275.75 | P13: 287.25 | Q13: 287.25 | R13: 292.25 | S13: 283.75 | T13: 293.75 | U13: 305.5 | V13: 326.5 | W13: 330.5 | X13: 336.75 | Y13: 347.25 | Z13: 336.5 | AA13: 357.25 | AB13: 371 | AC13: 373 | AD13: 382 | AE13: 381 | AF13: 386 | AG13: 388 | AH13: 397 | AI13: 414 | AJ13: 429 | AK13: 450 | AL13: 482 | AM13: 504 | AN13: 530 | AO13: 543.8018466 | AP13: 578 | AQ13: 619 | AR13: 638 | AS13: 535 | AT13: 582 | AU13: 593
B14: 46 | C14: Underground Conduit | D14: 366 | E14: 149 | F14: 162 | G14: 175 | H14: 191 | I14: 196 | J14: 204 | K14: 208 | L14: 207 | M14: 207 | N14: 211 | O14: 224 | P14: 246 | Q14: 241.25 | R14: 233.25 | S14: 231.25 | T14: 236.5 | U14: 244.5 | V14: 249 | W14: 252.25 | X14: 257.5 | Y14: 264 | Z14: 271.5 | AA14: 280.25 | AB14: 287 | AC14: 287 | AD14: 293 | AE14: 312 | AF14: 303 | AG14: 300 | AH14: 324 | AI14: 327 | AJ14: 344 | AK14: 346 | AL14: 368 | AM14: 371 | AN14: 397 | AO14: 394.0918623 | AP14: 399 | AQ14: 406 | AR14: 426 | AS14: 425 | AT14: 419 | AU14: 421
B15: 47 | C15: Underground Conductors & Devices | D15: 367 | E15: 151 | F15: 184 | G15: 209 | H15: 212 | I15: 210 | J15: 210 | K15: 209 | L15: 213 | M15: 222 | N15: 227 | O15: 229.75 | P15: 245.75 | Q15: 254.5 | R15: 259.25 | S15: 261.5 | T15: 264.25 | U15: 266 | V15: 277.25 | W15: 281.75 | X15: 283.25 | Y15: 289 | Z15: 294.5 | AA15: 301.5 | AB15: 311 | AC15: 296 | AD15: 301 | AE15: 303 | AF15: 303 | AG15: 305 | AH15: 307 | AI15: 324 | AJ15: 347 | AK15: 358 | AL15: 381.5 | AM15: 386 | AN15: 461 | AO15: 468 | AP15: 499 | AQ15: 530 | AR15: 594.5 | AS15: 587 | AT15: 542 | AU15: 548.5
B16: 48 | C16: Line Transformers | D16: 368 | E16: 155 | F16: 163 | G16: 165 | H16: 192 | I16: 206 | J16: 209 | K16: 210 | L16: 211 | M16: 212 | N16: 211 | O16: 212.5 | P16: 221.25 | Q16: 223.75 | R16: 222.5 | S16: 227 | T16: 227.5 | U16: 231.75 | V16: 228.25 | W16: 222.75 | X16: 213.5 | Y16: 218 | Z16: 218.5 | AA16: 219 | AB16: 222 | AC16: 227 | AD16: 232 | AE16: 236 | AF16: 236 | AG16: 241 | AH16: 232 | AI16: 251 | AJ16: 261 | AK16: 269 | AL16: 304 | AM16: 345 | AN16: 391 | AO16: 398.6142983 | AP16: 582 | AQ16: 486 | AR16: 514 | AS16: 537 | AT16: 562 | AU16: 587
B17: 49 | C17: Pad Mounted Transformers | D17: 368 | E17: 132 | F17: 139 | G17: 160 | H17: 187 | I17: 185 | J17: 186 | K17: 202 | L17: 204 | M17: 210 | N17: 233 | O17: 254.75 | P17: 270 | Q17: 274.75 | R17: 282.5 | S17: 281 | T17: 288.25 | U17: 288.75 | V17: 290.5 | W17: 301.75 | X17: 306.25 | Y17: 308.25 | Z17: 310 | AA17: 311.75 | AB17: 314 | AC17: 332 | AD17: 334 | AE17: 343 | AF17: 336 | AG17: 336 | AH17: 366 | AI17: 435 | AJ17: 467 | AK17: 515 | AL17: 535 | AM17: 625 | AN17: 660 | AO17: 790.5629671 | AP17: 610 | AQ17: 725 | AR17: 698 | AS17: 636 | AT17: 638 | AU17: 617
B18: 50 | C18: Services-Overhead | D18: 369 | E18: 152 | F18: 165 | G18: 185 | H18: 196 | I18: 204 | J18: 206 | K18: 218 | L18: 214 | M18: 213 | N18: 218 | O18: 235.5 | P18: 251 | Q18: 249.5 | R18: 248.75 | S18: 245.25 | T18: 250.5 | U18: 260 | V18: 273.5 | W18: 272 | X18: 274 | Y18: 280.5 | Z18: 280.25 | AA18: 288.5 | AB18: 296 | AC18: 294 | AD18: 302 | AE18: 299 | AF18: 304 | AG18: 304 | AH18: 314 | AI18: 322 | AJ18: 331 | AK18: 340 | AL18: 358 | AM18: 358 | AN18: 378 | AO18: 379.0898188 | AP18: 393 | AQ18: 403 | AR18: 419 | AS18: 382 | AT18: 398 | AU18: 406
B19: 51 | C19: Services-Underground | D19: 369 | E19: 125 | F19: 136 | G19: 163 | H19: 180 | I19: 179 | J19: 197 | K19: 199 | L19: 181 | M19: 174 | N19: 186 | O19: 198.5 | P19: 216.25 | Q19: 218 | R19: 207.75 | S19: 203.75 | T19: 203.25 | U19: 211 | V19: 218 | W19: 215.75 | X19: 218.25 | Y19: 213.75 | Z19: 211 | AA19: 222.25 | AB19: 227 | AC19: 222 | AD19: 225 | AE19: 232 | AF19: 233 | AG19: 233 | AH19: 237 | AI19: 238 | AJ19: 245 | AK19: 258 | AL19: 298 | AM19: 337 | AN19: 318 | AO19: 313.5604054 | AP19: 305 | AQ19: 306 | AR19: 284 | AS19: 286 | AT19: 285 | AU19: 308
B20: 52 | C20: Meters Installed | D20: 370 | E20: 144 | F20: 149 | G20: 147 | H20: 164 | I20: 189 | J20: 202 | K20: 202 | L20: 203 | M20: 208 | N20: 207 | O20: 193.25 | P20: 184 | Q20: 183.25 | R20: 197 | S20: 196 | T20: 198.25 | U20: 187.25 | V20: 184.25 | W20: 187.5 | X20: 200.5 | Y20: 207 | Z20: 198.5 | AA20: 196.25 | AB20: 207 | AC20: 222 | AD20: 244 | AE20: 256 | AF20: 265 | AG20: 265 | AH20: 302 | AI20: 302 | AJ20: 288 | AK20: 288 | AL20: 289 | AM20: 294 | AN20: 297 | AO20: 303.53469 | AP20: 305 | AQ20: 306 | AR20: 312 | AS20: 312 | AT20: 322 | AU20: 323
B21: 53 | C21: Street Lighting-Overhead | D21: 373 | E21: 184 | F21: 204 | G21: 223 | H21: 244 | I21: 258 | J21: 258 | K21: 268 | L21: 276 | M21: 275 | N21: 262 | O21: 264 | P21: 274.25 | Q21: 281.5 | R21: 289.75 | S21: 298.75 | T21: 311 | U21: 325.75 | V21: 340.75 | W21: 357.5 | X21: 366.25 | Y21: 368.5 | Z21: 373.75 | AA21: 379.75 | AB21: 387 | AC21: 391 | AD21: 398 | AE21: 414 | AF21: 434 | AG21: 437 | AH21: 440 | AI21: 446 | AJ21: 461 | AK21: 469 | AL21: 485 | AM21: 551 | AN21: 571 | AO21: 580.8165223 | AP21: 589 | AQ21: 619 | AR21: 692 | AS21: 704 | AT21: 723 | AU21: 672
B22: 54 | C22: Mast Arms & Luminaires Installed | D22: 373 | E22: 182 | F22: 199 | G22: 222 | H22: 248 | I22: 260 | J22: 265 | K22: 281 | L22: 291 | M22: 283 | N22: 272 | O22: 273.5 | P22: 288 | Q22: 296.25 | R22: 307.75 | S22: 319 | T22: 327.75 | U22: 347 | V22: 359.25 | W22: 381.5 | X22: 390.75 | Y22: 388.25 | Z22: 387.75 | AA22: 392.75 | AB22: 399 | AC22: 399 | AD22: 406 | AE22: 409 | AF22: 411 | AG22: 417 | AH22: 420 | AI22: 426 | AJ22: 451 | AK22: 465 | AL22: 489 | AM22: 520 | AN22: 536 | AO22: 547.5299012 | AP22: 534 | AQ22: 544 | AR22: 670 | AS22: 666 | AT22: 673 | AU22: 686
B23: 55 | C23: Street Lighting-Underground | D23: 373 | E23: 187 | F23: 208 | G23: 225 | H23: 245 | I23: 262 | J23: 261 | K23: 269 | L23: 277 | M23: 276 | N23: 262 | O23: 263.5 | P23: 272.75 | Q23: 280 | R23: 287 | S23: 295.25 | T23: 307.75 | U23: 319.5 | V23: 334.25 | W23: 350.25 | X23: 358.5 | Y23: 362.25 | Z23: 368.25 | AA23: 376 | AB23: 384 | AC23: 387 | AD23: 395 | AE23: 417 | AF23: 440 | AG23: 443 | AH23: 450 | AI23: 454 | AJ23: 467 | AK23: 474 | AL23: 488 | AM23: 566 | AN23: 592 | AO23: 601.3966394 | AP23: 614 | AQ23: 649 | AR23: 714 | AS23: 732 | AT23: 755 | AU23: 683
B24: 56
J31: HANDY-WHITMAN INDICES
J32: FERC ACCOUNTS 365-368
J33: THROUGH 2010
I35: Index | J35: ----->
H36: Year | I36: 365 | J36: 367 | K36: 368-Ohd | L36: 368-Pad
H37: =G37+1 -> 1 | I37: =H37+1 -> 2 | J37: =I37+1 -> 3 | K37: =J37+1 -> 4 | L37: =K37+1 -> 5
H38: =1970 -> 1970 | I38: 85 | J38: 85 | K38: 100 | L38: 95
H39: =H38+1 -> 1971 | I39: 93 | J39: 86 | K39: 101 | L39: 97
H40: =H39+1 -> 1972 | I40: 98 | J40: 98 | K40: 99 | L40: 100
H41: 1973 | I41: 100 | J41: 100 | K41: 100 | L41: 100
H42: 1974 | I42: 115 | J42: 124 | K42: 109 | L42: 104
H43: 1975 | I43: 143 | J43: 129 | K43: 130 | L43: 106
H44: 1976 | I44: 162 | J44: 134 | K44: 134 | L44: 108
H45: 1977 | I45: 173 | J45: 143 | K45: 145 | L45: 119
H46: 1978 | I46: 168 | J46: 151 | K46: 155 | L46: 132
H47: 1979 | I47: 181 | J47: 184 | K47: 163 | L47: 139
H48: 1980 | I48: 201 | J48: 209 | K48: 165 | L48: 160
H49: 1981 | I49: 218 | J49: 212 | K49: 192 | L49: 187
H50: 1982 | I50: 227 | J50: 210 | K50: 206 | L50: 185
H51: 1983 | I51: 238 | J51: 210 | K51: 209 | L51: 186
H52: 1984 | I52: 238 | J52: 209 | K52: 210 | L52: 202
H53: 1985 | I53: 237 | J53: 213 | K53: 211 | L53: 204
H54: 1986 | I54: 238 | J54: 222 | K54: 212 | L54: 210
H55: 1987 | I55: 236 | J55: 227 | K55: 211 | L55: 233
H56: 1988 | I56: 275.75 | J56: 229.75 | K56: 212.5 | L56: 254.75
H57: 1989 | I57: 287.25 | J57: 245.75 | K57: 221.25 | L57: 270
H58: 1990 | I58: 287.25 | J58: 254.5 | K58: 223.75 | L58: 274.75
H59: 1991 | I59: 292.25 | J59: 259.25 | K59: 222.5 | L59: 282.5
H60: 1992 | I60: 283.75 | J60: 261.5 | K60: 227 | L60: 281
H61: =H60+1 -> 1993 | I61: 293.75 | J61: 264.25 | K61: 227.5 | L61: 288.25
H62: =H61+1 -> 1994 | I62: 305.5 | J62: 266 | K62: 231.75 | L62: 288.75
H63: =H62+1 -> 1995 | I63: 326.5 | J63: 277.25 | K63: 228.25 | L63: 290.5
H64: 1996 | I64: 330.5 | J64: 281.75 | K64: 222.75 | L64: 301.75
H65: 1997 | I65: 336.75 | J65: 283.25 | K65: 213.5 | L65: 306.25
H66: 1998 | I66: 347.25 | J66: 289 | K66: 218 | L66: 308.25
H67: 1999 | I67: 336.5 | J67: 294.5 | K67: 218.5 | L67: 310
H68: 2000 | I68: 357.25 | J68: 301.5 | K68: 219 | L68: 311.75
H69: 2001 | I69: =ROUND(AVERAGE(371,373),2) -> 372 | J69: =ROUND(AVERAGE(311,296),2) -> 303.5 | K69: =ROUND(AVERAGE(222,227),2) -> 224.5 | L69: =ROUND(AVERAGE(314,332),2) -> 323
H70: 2002 | I70: =ROUND(AVERAGE(382,381),2) -> 381.5 | J70: =ROUND(AVERAGE(301,303),2) -> 302 | K70: =ROUND(AVERAGE(232,236),2) -> 234 | L70: =ROUND(AVERAGE(334,343),2) -> 338.5
H71: =H70+1 -> 2003 | I71: =ROUND(AVERAGE(386,388),2) -> 387 | J71: =ROUND(AVERAGE(303,305),2) -> 304 | K71: =ROUND(AVERAGE(236,241),2) -> 238.5 | L71: =ROUND(AVERAGE(336,336),2) -> 336
H72: 2004 | I72: =ROUND(AVERAGE(397,414),2) -> 405.5 | J72: =ROUND(AVERAGE(307,324),2) -> 315.5 | K72: =ROUND(AVERAGE(232,251),2) -> 241.5 | L72: =ROUND(AVERAGE(366,435),2) -> 400.5
H73: 2005 | I73: =ROUND(AVERAGE(429,450),2) -> 439.5 | J73: =ROUND(AVERAGE(347,358),2) -> 352.5 | K73: =ROUND(AVERAGE(261,269),2) -> 265 | L73: =ROUND(AVERAGE(467,515),2) -> 491
H74: 2006 | I74: =ROUND(AVERAGE(482,504),2) -> 493 | J74: =ROUND(AVERAGE(382,386),2) -> 384 | K74: =ROUND(AVERAGE(304,345),2) -> 324.5 | L74: =ROUND(AVERAGE(535,625),2) -> 580
H75: 2007 | I75: =ROUND(AVERAGE(530,544),2) -> 537 | J75: =ROUND(AVERAGE(461,468),2) -> 464.5 | K75: =ROUND(AVERAGE(391,399),2) -> 395 | L75: =ROUND(AVERAGE(660,791),2) -> 725.5
H76: 2008 | I76: =ROUND(AVERAGE(578,619),2) -> 598.5 | J76: =ROUND(AVERAGE(499,530),2) -> 514.5 | K76: =ROUND(AVERAGE(582,486),2) -> 534 | L76: =ROUND(AVERAGE(610,725),2) -> 667.5
H77: 2009 | I77: =ROUND(AVERAGE(638,535),2) -> 586.5 | J77: =ROUND(AVERAGE(595,587),2) -> 591 | K77: =ROUND(AVERAGE(514,537),2) -> 525.5 | L77: =ROUND(AVERAGE(698,636),2) -> 667
H78: 2010 | I78: =ROUND(AVERAGE(582,593),2) -> 587.5 | J78: =ROUND(AVERAGE(542,548.5),2) -> 545.25 | K78: =ROUND(AVERAGE(562,587),2) -> 574.5 | L78: =ROUND(AVERAGE(638,617),2) -> 627.5
H79: 2011
H80: 2012
H81: 2013
H82: 2014
B92: from Distribution Study, 2009 | D92: FERC Account
D93: 365 | E93: 367 | F93: 368
C94: Average Service Life | D94: 38 | E94: 32 | F94: 30
C95: Average Remaining Life | D95: 27.1 | E95: 22.8 | F95: 21.2

Sheet Summary
B1: RATE CASE VERSION | E1: as of | F1: 2011-03-18
A4: Account | B4: Bi-Level | C4: Cust | D4: Demand | E4: 1-Level | F4: Cust | G4: Demand | J4: Account | K4: Cust | L4: Demand
A5: 364 | B5: F | C5: =Calc364!G34 -> 0.5094676156 | D5: =Calc364!H34 -> 0.271673331 | E5: =A5 -> 364 | F5: =C5+C6 -> 0.6522095949 | G5: =1-F5 -> 0.3477904051 | J5: 364 | K5: =F5 -> 0.6522095949 | L5: =G5 -> 0.3477904051
B6: G | C6: =Calc364!K34 -> 0.1427419793 | D6: =Calc364!L34 -> 0.07611707404
A7: 365 | B7: F | C7: =Calc365!F37 -> 0.1037024449 | D7: =Calc365!G37 -> 0.6810639637 | E7: =A7 -> 365 | F7: =C7+C8 -> 0.132144349 | G7: =1-F7 -> 0.867855651 | J7: 365 | K7: =F7 -> 0.132144349 | L7: =G7 -> 0.867855651
B8: G | C8: =Calc365!J37 -> 0.02844190405 | D8: =Calc365!K37 -> 0.1867916873
A9: 366 | B9: F | C9: =Calc366!G22 -> 0.02744167136 | D9: =Calc366!H22 -> 0.5478477644 | E9: =A9 -> 366 | F9: =C9+C10 -> 0.03895996156 | G9: =1-F9 -> 0.9610400384 | J9: 366 | K9: =F9 -> 0.03895996156 | L9: =G9 -> 0.9610400384
B10: G | C10: =Calc366!K22 -> 0.0115182902 | D10: =Calc366!L22 -> 0.413192274
A11: 367 | B11: F | C11: =Calc367!F41 -> 0.03400570701 | D11: =Calc367!G41 -> 0.6788935604 | E11: =A11 -> 367 | F11: =C11+C12 -> 0.04770057252 | G11: =1-F11 -> 0.9522994275 | J11: 367 | K11: =F11 -> 0.04770057252 | L11: =G11 -> 0.9522994275
B12: G | C12: =Calc367!J41 -> 0.01369486551 | D12: =Calc367!K41 -> 0.2734058671
A13: 368 | B13: F | C13: =Calc368!C68 -> 0.009463261958 | D13: =Calc368!C67 -> 0.1559418355 | J13: 368 | K13: =F14 -> 0.2543244339 | L13: =G14 -> 0.7456755661
B14: G | C14: =Calc368!C70 -> 0.2448611719 | D14: =Calc368!C69 -> 0.5897337306 | E14: =A13 -> 368 | F14: =SUM(C13:C17) -> 0.2543244339 | G14: =1-F14 -> 0.7456755661
A21: Overall Customer Component of Distribution System:
C22: (Accounts 364-368)
B23: Customer | C23: =(Calc364!G31+Calc364!K31)+(Calc365!F34+Calc365!J34)+(Calc366!G19+Calc366!K19)+(Calc367!F38+Calc367!J38)+(Calc368!E57+Calc368!I57) -> 159542614 | D23: =C23/C24 -> 0.2717794071
B24: Total | C24: =Calc364!D31+Calc365!C34+Calc366!D19+Calc367!C38+Calc368!C57 -> 587029811

Sheet Calc364
C1: GULF POWER COMPANY
C2: Twelve Months Ended 12/31/10
C3: Minimum Distribution System
C4: Account 364--Poles, Towers, and Fixtures
F7: -------- | G7: Poles & Towers | H7: --------
B8: Line | C8: Component Split Analysis of Mass Account Records | F8: Total | G8: Customer | H8: Demand | M8: Notes
B10: 1 | C10: Average Unit Cost of MFUS Poles | G10: =U109 -> 206.0805924 | M10: (a)
B11: 2 | C11: Total Number of Poles | G11: =R135 -> 255703 | M11: (b)
B12: 3 | C12: Total Cost of Poles | F12: =S135 -> 80795233.07 | G12: =G11*G10 -> 52695425.71 | H12: =F12-G12 -> 28099807.36 | M12: (c)
G13: =G12/$F$12 -> 0.6522095884 | H13: =H12/$F$12 -> 0.3477904116
F15: -------- | G15: Primary | H15: -------- | J15: -------- | K15: Secondary | L15: --------
F16: Primary | G16: (Level F) | J16: Secondary | K16: (Level G)
D17: Total | F17: Total | G17: Customer | H17: Demand | J17: Total | K17: Customer | L17: Demand
B19: 4 | C19: Primary/Secondary Split of Overhead Lines from | D19: =Calc365!C23 -> 107066574 | F19: =Calc365!E23 -> 83237343 | J19: =Calc365!I23 -> 23829231 | M19: (d)
C20: Account 365
C22: Analysis of Account 364
B24: 5 | C24: Poles (Wood, Concrete) | D24: =ROUND(S135-S133,0) -> 79450041 | F24: =ROUND(D24/D19*F19,0) -> 61767273 | G24: =ROUND(F24/F12*G12,0) -> 40285208 | H24: =F24-G24 -> 21482065 | J24: =D24-F24 -> 17682768 | K24: =ROUND(J24/F12*G12,0) -> 11532871 | L24: =J24-K24 -> 6149897 | M24: (e)
B25: 6 | C25: Steel-Reinforced Pole Truss | D25: =ROUND(S133,0) -> 1345192 | F25: =D25 -> 1345192 | G25: =ROUND(F25/F12*G12,0) -> 877347 | H25: =F25-G25 -> 467845 | J25: 0 | K25: 0 | L25: 0 | M25: ( f )
B26: 7 | C26: Total Poles | D26: =SUM(D24:D25) -> 80795233 | F26: =SUM(F24:F25) -> 63112465 | G26: =SUM(G24:G25) -> 41162555 | H26: =SUM(H24:H25) -> 21949910 | J26: =SUM(J24:J25) -> 17682768 | K26: =SUM(K24:K25) -> 11532871 | L26: =SUM(L24:L25) -> 6149897
B28: 8 | C28: Fixture Sets | D28: =ROUND(S137,0) -> 42553058 | F28: =ROUND(D28/D26*F26,0) -> 33239936 | G28: =ROUND(F28/F26*G26,0) -> 21679405 | H28: =F28-G28 -> 11560531 | J28: =D28-F28 -> 9313122 | K28: =ROUND(J28/J26*K26,0) -> 6074108 | L28: =J28-K28 -> 3239014 | M28: ( g )
B29: 9 | C29: Other Account 364 | D29: =ROUND(S142,0) -> 1971647 | F29: =ROUND(D29/D26*F26,0) -> 1540134 | G29: =ROUND(F29/F26*G26,0) -> 1004490 | H29: =F29-G29 -> 535644 | J29: =D29-F29 -> 431513 | K29: =ROUND(J29/J26*K26,0) -> 281437 | L29: =J29-K29 -> 150076 | M29: ( h )
B31: 10 | C31: Total Account 364 | D31: =SUM(D26:D29) -> 125319938 | E31: =IF(ABS(D31-S144)>1,"Check","") ->  | F31: =SUM(F26:F29) -> 97892535 | G31: 63846450 | H31: 34046085 | J31: 27427403 | K31: 17888416 | L31: 9538987
B33: 11 | C33: Percentages at Level | G33: =G31/F31 -> 0.6522095888 | H33: =1-G33 -> 0.3477904112 | K33: =K31/J31 -> 0.6522096168 | L33: =1-K33 -> 0.3477903832
B34: 12 | C34: Percentages of Total | F34: =F31/$D31 -> 0.7811409466 | G34: =G31/$D31 -> 0.5094676156 | H34: =H31/$D31 -> 0.271673331 | J34: =J31/$D31 -> 0.2188590534 | K34: =K31/$D31 -> 0.1427419793 | L34: =L31/$D31 -> 0.07611707404
B37: Notes
B39: (a) | C39: Includes 35-foot wooden poles (most frequently used) and smaller--MFUS.
B41: (b) | C41: Includes all pole sizes.
B43: (c) | C43: Total amount for all poles. Customer component equals Total Number of Poles (Line 2)
C44: times Average Unit Cost of MFUS Poles (Line 1). Demand Component is Total minus Customer Component.
B46: (d) | C46: From Account 365, Line 7, Total Overhead Lines.
B48: (e) | C48: Total amount allocated to level per Primary/Secondary Split of Overhead Lines from Account 365 (Line 4).
C49: Within level, allocated to component per Total Cost of Poles (Line 3).
B51: (f) | C51: Total amount assigned to Primary level. Allocated to component per Total Cost of Poles (Line 3).
B53: (g) | C53: Allocated per Total Poles (Line 7).
B55: (h) | C55: Includes Adjustments, Interim RUCs, and Non-Unitized. Allocated per Total Poles (Line 7).
O101: MASS DISTRIBUTION INVESTMENT | V101: Account 364
O102: GULF POWER COMPANY | V102: Attachment 1 of 1
O103: =Acctg!$A$9 -> Investment as of 12/31/2010
O106: RUC | P106: DESCRIPTION | R106: QUANTITY | S106: AMOUNT ($) | U106: Most Frequently Used
U107: & Smaller (MFUS)
O108: 36400001005 | P108: 30 Ft. Pole - Wood | R108: 48912 | S108: 5945009.39
O109: 36400001006 | P109: 35 Ft. Pole - Wood | R109: 85602 | S109: 21775715.41 | U109: =SUM(S108:S109)/SUM(R108:R109) -> 206.0805924 | V109: = MFUS Average
O110: 36400001007 | P110: 40 Ft. Pole - Wood | R110: 75626 | S110: 24527131.59 | V110: Unit Cost
O111: 36400001008 | P111: 45 Ft. Pole - Wood | R111: 30039 | S111: 15065224.98
O112: 36400001009 | P112: 50 Ft. Pole - Wood | R112: 9091 | S112: 6165490.86
O113: 36400001010 | P113: 55 Ft. Pole - Wood | R113: 2731 | S113: 2602056.76
O114: 36400001011 | P114: 60 Ft. Pole - Wood | R114: 515 | S114: 642872.66
O115: 36400001012 | P115: 65 Ft. Pole - Wood | R115: 124 | S115: 199376.62
O116: 36400001013 | P116: 70 Ft. Pole - Wood | R116: 51 | S116: 96625.66
O117: 36400001014 | P117: 75 Ft. Pole - Wood | R117: 19 | S117: 54269.18
O118: 36400001015 | P118: 80 Ft. Pole - Wood | R118: 25 | S118: 37015.5
O119: 36400001016 | P119: 85 Ft. Pole - Wood | R119: 14 | S119: 22475.93
O120: 36400001017 | P120: 90 Ft. Pole - Wood | R120: 1 | S120: 647.92
O121: 36400001018 | P121: 95 Ft. Pole - Wood | R121: 4 | S121: 19685.91
O122: 36400001019 | P122: 100 Ft. Pole - Wood | R122: 6 | S122: 17265.82
O123: 36400001306 | P123: 35 Ft. Pole - Concrete | R123: 12 | S123: 13554.75
O124: 36400001307 | P124: 40 Ft. Pole - Concrete | R124: 15 | S124: 11339.16
O125: 36400001308 | P125: 45 Ft. Pole - Concrete | R125: 76 | S125: 157179.42
O126: 36400001309 | P126: 50 Ft. Pole - Concrete | R126: 172 | S126: 509737.75
O127: 36400001310 | P127: 55 Ft. Pole - Concrete | R127: 118 | S127: 524223.29
O128: 36400001311 | P128: 60 Ft. Pole - Concrete | R128: 21 | S128: 166909.98
O129: 36400001312 | P129: 65 Ft. Pole - Concrete | R129: 161 | S129: 749677.76
O130: 36400001313 | P130: 70 Ft. Pole - Concrete | R130: 21 | S130: 82061
O131: 36400001314 | P131: 75 Ft. Pole - Concrete | R131: 5 | S131: 20551.76
O132: 36400001324 | P132: 125 Ft. Pole - Concrete | R132: 4 | S132: 43942.27
O133: 36400001500 | P133: Steel Reinforced Pole Truss | R133: 2338 | S133: 1345191.74
P135: Total Poles | R135: =SUM(R108:R134) -> 255703 | S135: =SUM(S108:S134) -> 80795233.07
O137: 36400002300 | P137: Set of Fixtures | R137: 308225 | S137: 42553058.16
O139: 36400009999 | P139: To be Adjusted | R139: 0 | S139: 197945.31
P140: Non-Unitized Account 364 | R140: 1281 | S140: 1773701.81
P142: Total Other 364 | S142: =SUM(S139:S141) -> 1971647.12
P144: Total Account 364 | S144: =SUM(S135,S137,S142) -> 125319938.4
P171: Total Adjustments | R171: =SUM(R168:R169) -> 0 | S171: =SUM(S168:S169) -> 0
P173: Total Cost of Towers and Foundations | S173: =S171+S164 -> 0

Sheet Calc365
B1: GULF POWER COMPANY
B2: =Calc364!$C$2 -> Twelve Months Ended 12/31/10
B3: Minimum Distribution System
B4: Account 365--Overhead Conductors and Devices
A6: Line | E6: -------- | F6: Overhead | G6: -------- | L6: Notes
F7: Lines
E8: Total | F8: Customer | G8: Demand
B9: Component Split Analysis of Mass Account Records
A11: 1 | B11: Zero-Intercept Unit Cost of AAC/AAAC Wire ($/ft) | F11: =Regress!F37 -> 0.3087 | L11: (a)
A12: 2 | B12: Total Feet of Minimum System Primary Overhead Lines | F12: =DistGIS!E13 -> 62208960 | L12: (b)
A13: 3 | B13: Total Cost of Primary Overhead Lines (adj. for vintage) | E13: =AJ265 -> 145325226.5 | F13: =F12*F11 -> 19203905.95 | G13: =E13-F13 -> 126121320.5 | L13: (c)
A14: 4 | B14: Percentage of Total Cost of Overhead Lines | F14: =F13/E13 -> 0.1321443387 | G14: =1-F14 -> 0.8678556613
E17: -------- | F17: Primary | G17: -------- | I17: -------- | J17: Secondary | K17: --------
E18: Primary | F18: (Level F) | I18: Secondary | J18: (Level G)
B19: Analysis of Account 365 | C19: Total | E19: Total | F19: Customer | G19: Demand | I19: Total | J19: Customer | K19: Demand
A21: 5 | B21: Primary Lines | C21: =ROUND(X113,0)+1 -> 83237343 | E21: =C21 -> 83237343 | F21: =ROUND(E21/E13*F13,0) -> 10999344 | G21: =E21-F21 -> 72237999 | I21: 0 | J21: 0 | K21: 0 | L21: (d)
A22: 6 | B22: Secondary Lines | C22: =ROUND(X118,0) -> 23829231 | E22: 0 | F22: 0 | G22: 0 | I22: =C22 -> 23829231 | J22: =ROUND(I22/E13*F13,0) -> 3148898 | K22: =I22-J22 -> 20680333 | L22: (e)
A23: 7 | B23: Total Overhead Lines | C23: =SUM(C21:C22) -> 107066574 | E23: =SUM(E21:E22) -> 83237343 | F23: 10999344 | G23: 72237999 | I23: 23829231 | J23: 3148898 | K23: 20680333
A25: 8 | B25: Primary Switchgear | C25: =ROUND(X132,0) -> 4244403 | E25: =C25 -> 4244403 | F25: =ROUND($C25/$C21*F21,0) -> 560874 | G25: =E25-F25 -> 3683529 | I25: 0 | J25: 0 | K25: 0 | L25: ( f )
A26: 9 | B26: Secondary Switchgear | C26: =ROUND(X124,0) -> 100245 | E26: 0 | F26: 0 | G26: 0 | I26: =C26 -> 100245 | J26: =ROUND(I26/I22*J22,0) -> 13247 | K26: =I26-J26 -> 86998 | L26: (g)
A27: 10 | B27: Other Equipment | C27: =ROUND(X148,0) -> 6815069 | E27: =ROUND($C27/$C23*E23,0) -> 5298276 | F27: =ROUND($C27/$C23*F23,0) -> 700137 | G27: =E27-F27 -> 4598139 | I27: =ROUND($C27/$C23*I23,0) -> 1516793 | J27: =ROUND($C27/$C23*J23,0) -> 200436 | K27: =I27-J27 -> 1316357 | L27: (h)
A28: 11 | B28: Total Switchgear & Other Equipment | C28: =SUM(C25:C27) -> 11159717 | E28: =SUM(E25:E27) -> 9542679 | F28: =SUM(F25:F27) -> 1261011 | G28: =SUM(G25:G27) -> 8281668 | I28: =SUM(I25:I27) -> 1617038 | J28: =SUM(J25:J27) -> 213683 | K28: =SUM(K25:K27) -> 1403355
A30: 12 | B30: Subtotal | C30: =SUM(C23,C28) -> 118226291 | E30: =SUM(E23,E28) -> 92780022 | F30: =SUM(F23,F28) -> 12260355 | G30: =SUM(G23,G28) -> 80519667 | I30: =SUM(I23,I28) -> 25446269 | J30: =SUM(J23,J28) -> 3362581 | K30: =SUM(K23,K28) -> 22083688
A32: 13 | B32: Other 365 | C32: =ROUND(X154,0) -> 3755240 | E32: =ROUND($C32/$C30*E30,0) -> 2946986 | F32: =ROUND($E32/$E30*F30,0) -> 389428 | G32: =E32-F32 -> 2557558 | I32: =C32-E32 -> 808254 | J32: =ROUND($I32/$I30*J30,0) -> 106806 | K32: =I32-J32 -> 701448 | L32: ( i )
A34: 14 | B34: Total Account 365 | C34: =SUM(C30:C32) -> 121981531 | D34: =IF(ABS(C34-X156)>1,"Check","") ->  | E34: =SUM(E30:E32) -> 95727008 | F34: 12649783 | G34: 83077225 | I34: 26254523 | J34: 3469387 | K34: 22785136
A36: 15 | B36: Percentages at Level | F36: =F34/E34 -> 0.1321443474 | G36: =1-F36 -> 0.8678556526 | J36: =J34/I34 -> 0.1321443547 | K36: =1-J36 -> 0.8678556453
A37: 16 | B37: Percentages of Total | E37: =E34/$C34 -> 0.7847664086 | F37: =F34/$C34 -> 0.1037024449 | G37: =G34/$C34-0.001*0 -> 0.6810639637 | I37: =I34/$C34 -> 0.2152335914 | J37: =J34/$C34 -> 0.02844190405 | K37: =K34/$C34 -> 0.1867916873
A40: Notes
A42: (a) | B42: Y-axis intercept of regression based on cost from Maximo system of AAC and AAAC wire sizes.
A44: (b) | B44: Two times Total Primary Overhead Circuit-Miles from DistGIS automated mapping system, converted to feet.
A46: (c) | B46: Total amount for all overhead primary wire types and sizes, adjusted for vintage by Handy-Whitman ratios. Customer component equals Total Feet of
B47: Minimum System Overhead Lines (Line 2) times Unit Cost of Zero Intercept (Line 1). Demand Component is Total minus Customer Component.
A49: (d) | B49: Includes all overhead wire types and sizes except n-plex. Allocated per Total Cost of Primary Overhead Lines (adj. for vintage) (Line 3).
A51: (e) | B51: Includes all Duplex, Triplex, and Quadruplex. Allocated to component per Line 3.
A53: ( f ) | B53: Includes all switches specified for usage at 5 KV and above. Allocated per Primary Lines (Line 5).
A55: (g) | B55: Includes all switches specified for usage at 4.9 KV and below. Allocated per Secondary Lines (Line 6).
A57: (h) | B57: Includes all other unitized equipment. Allocated per Total Overhead Lines (Line 7).
A59: ( i ) | B59: Includes Adjustments, Interim RUCs, and Non-Unitized. Allocated per Subtotal (Line 12).
U101: MASS DISTRIBUTION INVESTMENT | AA101: Account 365
U102: GULF POWER COMPANY | AA102: Attachment 1 of 4
U103: =Acctg!$A$9 -> Investment as of 12/31/2010
T106: RUC | U106: DESCRIPTION | V106: LEVEL | W106: QUANTITY | X106: AMOUNT ($)
T108: 36500001000 | U108: All Sizes, cont single conductor Wire - Copper, Bare | V108: Primary | W108: 4958010 | X108: 10922206.9
T109: 36500001100 | U109: All Sizes, cont single conductor Wire - Copper, Cov'd | V109: Primary | W109: 1370655 | X109: 3055597.54
T110: 36500001200 | U110: All Sizes, cont single cond Wire - Aluminum, Bare | V110: Primary | W110: 12922077 | X110: 68163385.66
T111: 36500001300 | U111: All Sizes, cont single cond Wire - Aluminum, Covered | V111: Primary | W111: 155005 | X111: 1018753.78
T112: 36500002403 | U112: Aerial cable 3/cond | V112: Primary | W112: 12765 | X112: 77398.61
U113: Total Primary Lines | X113: =SUM(X108:X112) -> 83237342.49
T115: 36500002100 | U115: Duplex - All Sizes | V115: Secondary | W115: 113841 | X115: 188828.94
T116: 36500002200 | U116: Triplex - All Sizes | V116: Secondary | W116: 10602171 | X116: 20781806.99
T117: 36500002300 | U117: Quadruplex - All sizes | V117: Secondary | W117: 798464 | X117: 2858595.18
U118: Total Secondary Lines | X118: =SUM(X115:X117) -> 23829231.11
U120: Total Overhead Lines | X120: =X113+X118 -> 107066573.6
T122: 36500005001 | U122: 0 - 5 KV 0 SPST Switch | V122: Sec Switch | W122: 103 | X122: 9930.73
T123: 36500005101 | U123: 0 - 5 KV 0 Gang Operated Swit | V123: Sec Switch | W123: 52 | X123: 90313.87
U124: Total Secondary Switchgear | X124: =SUM(X122:X123) -> 100244.6
T126: 36500005002 | U126: 5.1 - 15 KV 0 SPST Switch | V126: Pri Switch | W126: 1684 | X126: 901334.28
T127: 36500005003 | U127: 15.1 - 25 KV 0 SPST Switch | V127: Pri Switch | W127: 3 | X127: 1028.09
T128: 36500005005 | U128: Over 35 KV 0 SPST Switch | V128: Pri Switch | W128: 3 | X128: 2776.4
T129: 36500005102 | U129: 5.1 - 15 KV 0 Gang Operated Swit | V129: Pri Switch | W129: 699 | X129: 3263629.79
T130: 36500005103 | U130: 15.1 - 25 KV 0 Gang Operated Swit | V130: Pri Switch | W130: 31 | X130: 66850.92
T131: 36500005105 | U131: Over 35 KV 0 Gang Operated Swit | V131: Pri Switch | W131: 3 | X131: 8783.29
U132: Total Primary Switchgear | X132: =SUM(X126:X131) -> 4244402.77
T134: 36500005200 | U134: All Sizes 0 Repeater Fuse - 3 | W134: 13 | X134: 1720.36
T135: 36500005311 | U135: 1m 0 - 15 KV 0 Oil Circuit Reclos | W135: 744 | X135: 1965885.59
T136: 36500005312 | U136: 1m 15.1 - 25 KV 0 Oil Circuit Reclos | W136: 18 | X136: 69921.26
T137: 36500005331 | U137: 3m 0 - 15 KV 0 Oil Circuit Reclos | W137: 130 | X137: 1150249.45
T138: 36500005335 | U138: 3m Electronic 0 Oil Circuit Reclos | W138: 13 | X138: 233403.99
T139: 36500005410 | U139: 1m 0 Sectionalizer | W139: 521 | X139: 623345.2
T140: 36500005430 | U140: 3m 0 Sectionalizer | W140: 2 | X140: 27374.26
T141: 36500005510 | U141: 1m 0 Vacuum Recloser | W141: 10 | X141: 52180.88
T142: 36500005530 | U142: 3m 0 Vacuum Recloser | W142: 60 | X142: 1158668.82
T143: 36500005535 | U143: 3m Electronic 0 Vacuum Recloser | W143: 52 | X143: 1175490.16
T144: 36500005710 | U144: 1m 0 Automatic Transfer | W144: 2 | X144: 2663.32
T145: 36500005730 | U145: 3m 0 Automatic Transfer | W145: 10 | X145: 135355.12
T146: 36500005800 | U146: All Sizes 0 Recloser By-Pass S | W146: 70 | X146: 6116.54
T147: 36500006200 | U147: Control Box, including wiring 0 Distribution Line | W147: 25 | X147: 212694.4
U148: Total Other Unitized Equipment | X148: =SUM(X134:X147) -> 6815069.35
U150: Total Switchgear and Other Equipment | X150: =SUM(X124,X132,X148) -> 11159716.72
T152: 36500004999 | U152: Interim Retirement Unit Code | W152: 4903 | X152: 1102573.19
U153: Non-Unitized Account 365 | W153: 776 | X153: 2652667.21
U154: Total Other 365 | X154: =SUM(X152:X153) -> 3755240.4
U156: Total Account 365 | X156: =SUM(X113,X118,X124,X132,X148,X154) -> 121981530.7
AI208: HANDY-WHITMAN INDICES | AM208: Account 365
AI209: FERC ACCOUNT 365 | AM209: Attachment 4 of 4
AI210: THROUGH 2009
AI213: Year | AJ213: Index
AI215: =1980 -> 1980 | AJ215: =VLOOKUP(AI215,[0]!hwvalues,2) -> 201
AI216: =AI215+1 -> 1981 | AJ216: =VLOOKUP(AI216,[0]!hwvalues,2) -> 218
AI217: =AI216+1 -> 1982 | AJ217: =VLOOKUP(AI217,[0]!hwvalues,2) -> 227
AI218: 1983 | AJ218: =VLOOKUP(AI218,[0]!hwvalues,2) -> 238
AI219: 1984 | AJ219: =VLOOKUP(AI219,[0]!hwvalues,2) -> 238
AI220: 1985 | AJ220: =VLOOKUP(AI220,[0]!hwvalues,2) -> 237
AI221: 1986 | AJ221: =VLOOKUP(AI221,[0]!hwvalues,2) -> 238
AI222: 1987 | AJ222: =VLOOKUP(AI222,[0]!hwvalues,2) -> 236
AI223: 1988 | AJ223: =VLOOKUP(AI223,[0]!hwvalues,2) -> 275.75
AI224: 1989 | AJ224: =VLOOKUP(AI224,[0]!hwvalues,2) -> 287.25
AI225: 1990 | AJ225: =VLOOKUP(AI225,[0]!hwvalues,2) -> 287.25
AI226: 1991 | AJ226: =VLOOKUP(AI226,[0]!hwvalues,2) -> 292.25
AI227: 1992 | AJ227: =VLOOKUP(AI227,[0]!hwvalues,2) -> 283.75
AI228: 1993 | AJ228: =VLOOKUP(AI228,[0]!hwvalues,2) -> 293.75
AI229: 1994 | AJ229: =VLOOKUP(AI229,[0]!hwvalues,2) -> 305.5
AI230: 1995 | AJ230: =VLOOKUP(AI230,[0]!hwvalues,2) -> 326.5
AI231: 1996 | AJ231: =VLOOKUP(AI231,[0]!hwvalues,2) -> 330.5
AI232: 1997 | AJ232: =VLOOKUP(AI232,[0]!hwvalues,2) -> 336.75
AI233: 1998 | AJ233: =VLOOKUP(AI233,[0]!hwvalues,2) -> 347.25
AI234: 1999 | AJ234: =VLOOKUP(AI234,[0]!hwvalues,2) -> 336.5
AI235: 2000 | AJ235: =VLOOKUP(AI235,[0]!hwvalues,2) -> 357.25
AI236: 2001 | AJ236: =VLOOKUP(AI236,[0]!hwvalues,2) -> 372
AI237: 2002 | AJ237: =VLOOKUP(AI237,[0]!hwvalues,2) -> 381.5
AI238: =AI237+1 -> 2003 | AJ238: =VLOOKUP(AI238,[0]!hwvalues,2) -> 387
AI239: =AI238+1 -> 2004 | AJ239: =VLOOKUP(AI239,[0]!hwvalues,2) -> 405.5
AI240: =AI239+1 -> 2005 | AJ240: =VLOOKUP(AI240,[0]!hwvalues,2) -> 439.5
AI241: 2006 | AJ241: =VLOOKUP(AI241,[0]!hwvalues,2) -> 493
AI242: 2007 | AJ242: =VLOOKUP(AI242,[0]!hwvalues,2) -> 537
AI243: 2008 | AJ243: =VLOOKUP(AI243,[0]!hwvalues,2) -> 598.5
AI244: 2009 | AJ244: =VLOOKUP(AI244,[0]!hwvalues,2) -> 586.5
AI245: 2010 | AJ245: =VLOOKUP(AI245,[0]!hwvalues,2) -> 587.5
AH246: n/a | AI246: 2011 | AJ246: =VLOOKUP(AI246,[0]!hwvalues,2) -> 0
AH247: n/a | AI247: 2012 | AJ247: =VLOOKUP(AI247,[0]!hwvalues,2) -> 0
AH248: n/a | AI248: =AI247+1 -> 2013 | AJ248: =VLOOKUP(AI248,[0]!hwvalues,2) -> 0
AH249: n/a | AI249: =AI248+1 -> 2014 | AJ249: =VLOOKUP(AI249,[0]!hwvalues,2) -> 0
AH250: n/a | AI250: =AI249+1 -> 2015 | AJ250: =VLOOKUP(AI250,[0]!hwvalues,2) -> 0
AH251: n/a | AI251: =AI250+1 -> 2016 | AJ251: =VLOOKUP(AI251,[0]!hwvalues,2) -> 0
AH254: Age of Plant | AI254: =ROUND(('HWI-Age'!D94-'HWI-Age'!D95),0) -> 11
AH256: Year of Data | AI256: 2010 | AJ256: =VLOOKUP(AI256,hw365val,2) -> 587.5
AH257: Account 365 Vintage | AI257: =AI256-AI254 -> 1999 | AJ257: =VLOOKUP(AI257,hw365val,2) -> 336.5
AG259: Adjustment for Vintage = | AI259: H/W(2010) = | AJ259: =AJ256 -> 587.5 | AK259: =AJ256/AJ257 -> 1.745913819
AI260: H/W(1999) | AJ260: =AJ257 -> 336.5
AJ263: Vintaged Cost
AG265: Total Primary Ovhd Lines | AI265: =X113 -> 83237342.49 | AJ265: =ROUND(AI265*AK259,2) -> 145325226.5

Sheet Calc366
C1: GULF POWER COMPANY
C2: =Calc364!$C$2 -> Twelve Months Ended 12/31/10
C3: Minimum Distribution System
C4: Account 366--Underground Conduit
B6: Line | F6: -------- | G6: Primary | H6: -------- | J6: -------- | K6: Secondary | L6: -------- | N6: Notes
F7: Primary | G7: (Level F) | J7: Secondary | K7: (Level G)
D8: Total | F8: Total | G8: Customer | H8: Demand | J8: Total | K8: Customer | L8: Demand
B11: 1 | C11: Total Underground Lines from Account 367 | D11: =Calc367!C25 -> 94564919 | F11: =Calc367!E25 -> 66607961 | G11: =Calc367!F25 -> 3177238 | H11: =Calc367!G25 -> 63430723 | J11: =Calc367!I25 -> 27956958 | K11: =Calc367!J25 -> 1333563 | L11: =Calc367!K25 -> 26623395 | N11: (a)
C14: Analysis of Account 366
B16: 2 | C16: Duct Lines, Manholes, Splicing Chambers | D16: =ROUND(AF111,0) -> 994359 | F16: =ROUND($D16/$D11*F11,0) -> 700389 | G16: =ROUND(F16/F11*G11,0) -> 33409 | H16: =F16-G16 -> 666980 | J16: =D16-F16 -> 293970 | K16: =ROUND(J16/J11*K11,0) -> 14023 | L16: =J16-K16 -> 279947 | N16: (b)
B17: 3 | C17: Vaults, Sump Pumps | D17: =ROUND(AF116,0) -> 223096 | F17: 0 | G17: 0 | H17: 0 | J17: =D17 -> 223096 | K17: 0 | L17: =J17-K17 -> 223096 | N17: (c)
B19: 4 | C19: Total Account 366 | D19: =SUM(D16:D17) -> 1217455 | E19: =IF(ABS(D19-AF118)>1,"Check","") ->  | F19: =SUM(F16:F17) -> 700389 | G19: =SUM(G16:G17) -> 33409 | H19: =SUM(H16:H17) -> 666980 | J19: =SUM(J16:J17) -> 517066 | K19: =SUM(K16:K17) -> 14023 | L19: =SUM(L16:L17) -> 503043
B21: 5 | C21: Percentages at Level | G21: =G19/$F19 -> 0.04770063493 | H21: =H19/$F19 -> 0.9522993651 | K21: =K19/$J19 -> 0.02712032893 | L21: =L19/$J19 -> 0.9728796711
B22: 6 | C22: Percentages of Total | F22: =F19/$D19 -> 0.5752894357 | G22: =G19/$D19 -> 0.02744167136 | H22: =H19/$D19 -> 0.5478477644 | J22: =J19/$D19 -> 0.4247105643 | K22: =K19/$D19 -> 0.0115182902 | L22: =L19/$D19 -> 0.413192274
B25: Notes
B27: (a) | C27: From analysis of Account 367, Line 7, Total Underground Lines.
B29: (b) | C29: Allocated per Total Underground Lines from Account 367 (Line 1).
B31: (c) | C31: Assigned to Secondary Demand Component.
AC101: MASS DISTRIBUTION INVESTMENT | AH101: Account 366
AC102: GULF POWER COMPANY | AH102: Attachment 1 of 1
AC103: =Acctg!$A$9 -> Investment as of 12/31/2010
AA106: RUC | AC106: DESCRIPTION | AD106: ITEM | AE106: QUANTITY | AF106: AMOUNT ($)
AA108: 36600001000 | AC108: Duct- fiber, plastic, concrete | AD108: Duct | AE108: 526738 | AF108: 877034.65
AA109: 36600001800 | AC109: Manhole Cable w/Pri. | AD109: Manhole | AE109: 99 | AF109: 92921.33
AA110: 36600001900 | AC110: Ser.Hole/Splicing chamber | AD110: Other | AE110: 209 | AF110: 24402.69
AC111: Total Ducts, Manholes, and Other | AF111: =SUM(AF108:AF110) -> 994358.67
AA113: 36600001701 | AC113: For 1 Transformer Transformer Vault | AD113: Vault | AE113: 110 | AF113: 113356
AA114: 36600001702 | AC114: For 2 Transformers Transformer Vault | AD114: Vault | AE114: 3 | AF114: 22057.17
AA115: 36600002300 | AC115: Sump Pump | AD115: Sump Pump | AE115: 51 | AF115: 87683.16
AC116: Total Vaults and Sump Pumps | AF116: =SUM(AF113:AF115) -> 223096.33
AC118: Total Account 366 | AF118: =AF111+AF116 -> 1217455

Sheet Calc367
B1: GULF POWER COMPANY
B2: =Calc364!$C$2 -> Twelve Months Ended 12/31/10
B3: Minimum Distribution System
B4: Account 367--Underground Conductors and Devices
A7: Line | E7: -------- | F7: Underground | G7: -------- | M7: Notes
F8: Lines
E9: Total | F9: Customer | G9: Demand
B10: Component Split Analysis of Mass Account Records
A12: 1 | B12: Zero-Intercept Unit Cost of AAC/AAAC Wire ($/ft) | F12: =Calc365!F11 -> 0.3087 | M12: (a)
A13: 2 | B13: Total Feet of Primary Underground Minimum System Lines | F13: =DistGIS!E46 -> 18490560 | M13: (b)
A14: 3 | B14: Total Cost of Primary Underground Lines (adj. for vintage) | E14: =AO357 -> 119663889.9 | F14: =F13*F12 -> 5708035.872 | G14: =E14-F14 -> 113955854 | M14: (c)
A15: 4 | B15: Percentage of Total Cost of Underground Lines | F15: =F14/E14 -> 0.04770057097 | G15: =1-F15 -> 0.952299429
E18: -------- | F18: Primary | G18: -------- | I18: -------- | J18: Secondary | K18: --------
E19: Primary | F19: (Level F) | I19: Secondary | J19: (Level G)
B20: Analysis of Account 367 | C20: Total | E20: Total | F20: Customer | G20: Demand | I20: Total | J20: Customer | K20: Demand
A23: 5 | B23: Primary Lines | C23: =ROUND(AE147,0) -> 66607961 | E23: =C23 -> 66607961 | F23: =ROUND($E23/$E$14*$F$14,0) -> 3177238 | G23: =E23-F23 -> 63430723 | I23: 0 | J23: 0 | K23: 0 | M23: (d)
A24: 6 | B24: Secondary Lines | C24: =ROUND(AE122,0) -> 27956958 | E24: 0 | F24: 0 | G24: 0 | I24: =C24 -> 27956958 | J24: =ROUND($I24/$E$14*$F$14,0) -> 1333563 | K24: =I24-J24 -> 26623395 | M24: (e)
A25: 7 | B25: Total Underground Lines | C25: =SUM(C23:C24) -> 94564919 | E25: =SUM(E23:E24) -> 66607961 | F25: =SUM(F23:F24) -> 3177238 | G25: =SUM(G23:G24) -> 63430723 | I25: =SUM(I23:I24) -> 27956958 | J25: =SUM(J23:J24) -> 1333563 | K25: =SUM(K23:K24) -> 26623395
A27: 8 | B27: Neutrals | C27: =ROUND(AE156,0)+1 -> 31885 | E27: 0 | F27: 0 | G27: 0 | I27: =C27 -> 31885 | J27: =ROUND(I27/I25*J25,0) -> 1521 | K27: =I27-J27 -> 30364 | M27: ( f )
A29: 9 | B29: Primary Switchgear | C29: =ROUND(AE167,0) -> 3419583 | E29: =C29 -> 3419583 | F29: =ROUND(E29/E23*F23,0) -> 163116 | G29: =E29-F29 -> 3256467 | I29: 0 | J29: 0 | K29: 0 | M29: (g)
A30: 10 | B30: Secondary Switchgear | C30: =ROUND(AE159,0) -> 9209 | E30: 0 | F30: 0 | G30: 0 | I30: =C30 -> 9209 | J30: =ROUND(I30/I24*J24,0) -> 439 | K30: =I30-J30 -> 8770 | M30: (h)
A31: 11 | B31: Other Equipment | C31: =ROUND(AE179,0) -> 17004604 | E31: =ROUND($C31/$C25*E25,0) -> 11977401 | F31: =ROUND(E31/E25*F25,0) -> 571329 | G31: =E31-F31 -> 11406072 | I31: =ROUND($C31/$C25*I25,0) -> 5027203 | J31: =ROUND(I31/I25*J25,0) -> 239800 | K31: =I31-J31 -> 4787403 | M31: ( i )
A32: 12 | B32: Total Switchgear & Other Equipment | C32: =SUM(C29:C31) -> 20433396 | E32: =SUM(E29:E31) -> 15396984 | F32: 734445 | G32: 14662539 | I32: 5036412 | J32: 240239 | K32: 4796173
A34: 13 | B34: Subtotal | C34: =C32+C27+C25 -> 115030200 | E34: =E32+E27+E25 -> 82004945 | F34: 3911683 | G34: 78093262 | I34: 33025255 | J34: 1575323 | K34: 31449932
A36: 14 | B36: Other 367 | C36: =ROUND(AE185,0) -> 3302908 | E36: =ROUND($C36/$C34*E34,0) -> 2354641 | F36: =ROUND(E36/E34*F34,0) -> 112318 | G36: =E36-F36 -> 2242323 | I36: =ROUND($C36/$C34*I34,0) -> 948267 | J36: =ROUND(I36/I34*J34,0) -> 45233 | K36: =I36-J36 -> 903034 | M36: ( j )
A38: 15 | B38: Total Account 367 | C38: =SUM(C34:C36) -> 118333108 | D38: =IF(ABS(C38-AE187)>1,"Check","") ->  | E38: =SUM(E34:E36) -> 84359586 | F38: =SUM(F34:F36) -> 4024001 | G38: =SUM(G34:G36) -> 80335585 | I38: =SUM(I34:I36) -> 33973522 | J38: =SUM(J34:J36) -> 1620556 | K38: =SUM(K34:K36) -> 32352966
A40: 16 | B40: Percentages at Level | F40: =F38/$E38 -> 0.04770057786 | G40: =G38/$E38 -> 0.9522994221 | J40: =J38/$I38 -> 0.04770055928 | K40: =K38/$I38 -> 0.9522994407
A41: 17 | B41: Percentages of Total | E41: =E38/$C38 -> 0.7128992674 | F41: =F38/$C38 -> 0.03400570701 | G41: =G38/$C38 -> 0.6788935604 | I41: =I38/$C38 -> 0.2871007326 | J41: =J38/$C38 -> 0.01369486551 | K41: =K38/$C38 -> 0.2734058671
A45: Notes
A47: (a) | B47: From Account 365, Line 1, Zero Intercept Unit Cost of AAC/AAAC Wire.
A49: (b) | B49: Two times Total Primary Underground Circuit-Miles from DistGIS automated mapping system, converted to feet.
A51: (c) | B51: Total amount for all primary underground wire types and sizes, adjusted for vintage using Handy-Whitman ratios. Customer component equals
B52: Total Feet of Minimum Distribution Lines (Line 2) times Zero Intercept Unit Cost of AAC/AAAC Wire (Line 1). Demand component is Total minus Customer component.
A54: (d) | B54: Includes all Underground cable specified for usage at 5 KV and above. Allocated per Total Cost of Primary Underground Lines adjusted for vintage (Line 3).
A56: (e) | B56: Includes all Underground cable specified for usage at 4.9 KV and below. Allocated to component per Line 4.
A58: ( f ) | B58: Allocated per Secondary Lines (Line 6).
A60: (g) | B60: Includes all switches specified for usage at 5 KV and above. Allocated per Primary Lines (Line 5).
A62: (h) | B62: Includes all switches specified for usage at 4.9 KV and below. Allocated per Secondary Lines (Line 6).
A64: ( i ) | B64: Includes all other unitized equipment. Allocated per Total Underground Lines (Line 7).
A66: ( j ) | B66: Includes Adjustments, Interim RUCs, and Non-Unitized. Allocated per Subtotal (Line 13).
AB98: MASS DISTRIBUTION INVESTMENT | AH98: Account 367
AB99: GULF POWER COMPANY | AH99: Attachment 1 of 3
AB100: =Acctg!$A$9 -> Investment as of 12/31/2010
AA103: RUC | AB103: DESCRIPTION | AC103: Level/ID | AD103: QUANTITY | AE103: AMOUNT ($)
AH104: Page 1 of 2
AA105: 36700001551 | AB105: NLC CA 1/c 0-4.9kv 1/0 below | AC105: Secondary | AD105: 41008 | AE105: 19190.79
AA106: 36700001552 | AB106: NLC CA 1/c 2/0 -4/0 | AC106: Secondary | AD106: 160047 | AE106: 834442.17
AA107: 36700001555 | AB107: NLC CA 1/c 300 mcm | AC107: Secondary | AD107: 11442 | AE107: 60230.65
AA108: 36700001556 | AB108: NLC CA 1/c 350 mcm | AC108: Secondary | AD108: 823 | AE108: 5795.78
AA109: 36700001558 | AB109: NLC CA 1/c 500 mcm | AC109: Secondary | AD109: 67872 | AE109: 281378.09
AA110: 36700001601 | AB110: NLC CA 2/c 0-4.9kv 1/0 below | AC110: Secondary | AD110: 1910 | AE110: 2954.58
AA111: 36700001602 | AB111: NLC CA 2/c 2/0 -4/0 | AC111: Secondary | AD111: 300 | AE111: 830.96
AA112: 36700001651 | AB112: NLC CA 3/C # 1/0 and below | AC112: Secondary | AD112: 3264547 | AE112: 10008695.31
AA113: 36700001652 | AB113: NLC CA 3/c 2/0 -4/0 | AC113: Secondary | AD113: 3762117 | AE113: 15504778.91
AA114: 36700001658 | AB114: NLC CA 3/c 500 mcm | AC114: Secondary | AD114: 7342 | AE114: 81856.08
AA115: 36700001671 | AB115: NLC CA 4/C # 1/0 and below | AC115: Secondary | AD115: 34303 | AE115: 119688.03
AA116: 36700001672 | AB116: NLC CA 4/c 2/0 -4/0 | AC116: Secondary | AD116: 158219 | AE116: 888610.29
AA117: 36700001675 | AB117: NLC CA 4/C #500 mcm | AC117: Secondary | AD117: =4023+4649 -> 8672 | AE117: =55856.82+72972.79 -> 128829.61
AA118: 36700002901 | AB118: CCN CA 2/c 0-4.9kv 1/0 below | AC118: Secondary | AD118: 3045 | AE118: 3208.85
AA119: 36700002902 | AB119: CCN CA 2/c 0-4.9kv 2/0-4/0 | AC119: Secondary | AD119: 1920 | AE119: 3923.02
AA120: 36700003001 | AB120: CCN CA 3/c 0-4.9kv 1/0 below | AC120: Secondary | AD120: 11919 | AE120: 7241.09
AA121: 36700003002 | AB121: CCN CA 3/c 0-4.9kv 2/0-4/0 | AC121: Secondary | AD121: 4865 | AE121: 5304.09
AB122: Total Secondary Cable | AE122: =SUM(AE105:AE121) -> 27956958.3
AA124: 36700001201 | AB124: LC CABLE 1/c 5-15kv 1/0&bel | AC124: Primary | AD124: 361 | AE124: 3421.92
AA125: 36700001302 | AB125: LC CA 3/c 2/0 -4/0 | AC125: Primary | AD125: 1050 | AE125: 98300.74
AA126: 36700001751 | AB126: NLC CA 1/c 5-15kv 1/0 below | AC126: Primary | AD126: 46303 | AE126: 70015.41
AA127: 36700001752 | AB127: NLC CA 1/c 5-15kv 2/0-4/0 | AC127: Primary | AD127: 3730 | AE127: 484.47
AA128: 36700001758 | AB128: NLC CA 1/c 5-15kv 500mcm | AC128: Primary | AD128: 7793 | AE128: 27224.57
AA129: 36700001764 | AB129: NLC CA 1/c 5-15kv 1000mcm | AC129: Primary | AD129: 9490 | AE129: 79577.67
AA130: 36700001801 | AB130: NLC CA 2/c 5-15kv 1/0 below | AC130: Primary | AD130: 2075 | AE130: 7824.47
AA131: 36700001851 | AB131: NLC CA 3/c 5-15kv 1/0 below | AC131: Primary | AD131: 440 | AE131: 159.99
AA132: 36700001858 | AB132: NLC CA 3/c 5-15kv 500 mcm | AC132: Primary | AD132: 530 | AE132: 2512.92
AA133: 36700003101 | AB133: CCN CA 1/c 5-15kv 1/0 below | AC133: Primary | AD133: 16609094 | AE133: 55168803.43
AA134: 36700003106 | AB134: CCN CA 1/c 5-15kv 350mcm | AC134: Primary | AD134: 48490 | AE134: 258025.79
AA135: 36700003108 | AB135: CCN CA 1/c 5-15kv 500mcm | AC135: Primary | AD135: 15875 | AE135: 52196.63
AA136: 36700003301 | AB136: CCN CA 3/c 5-15kv 1/0 - below | AC136: Primary | AD136: 11475 | AE136: 9738.34
AA137: 36700003302 | AB137: CCN CA 3/c 5-15kv 2/0 - 4/0 | AC137: Primary | AD137: 8320 | AE137: 11954.07
AA138: 36700003306 | AB138: CCN CA 3/c 5-15kv 350 mcm | AC138: Primary | AD138: 7920 | AE138: 11892.98
AA139: 36700003401 | AB139: CCN CA 1/c15.1-25kv 1/0 below | AC139: Primary | AD139: 193094 | AE139: 677116.96
AA140: 36700003411 | AB140: CCN CA 1/c15.1-25kv 750mcm | AC140: Primary | AD140: 44400 | AE140: 311830.4
AA141: 36700003414 | AB141: CCN CA 1/c15.1-25kv 1000mcm | AC141: Primary | AD141: 675882 | AE141: 7472421.83
AA142: 36700004404 | AB142: Sub ca 1/c 5-15kv 250 mcm | AC142: Primary | AD142: 5100 | AE142: 34448.72
AA143: 36700004408 | AB143: Sub ca 1/c 5-15kv 500 mcm | AC143: Primary | AD143: 198 | AE143: 402.4
AA144: 36700004608 | AB144: Sub ca 3/c 5-15kv 500 mcm | AC144: Primary | AD144: 2100 | AE144: 10373.59
AA145: 36700004702 | AB145: Sub ca 1/c 15.1-25kv 2/0 - 4/0 | AC145: Primary | AD145: 1400 | AE145: 7883.4
AA146: 36700004709 | AB146: Sub ca 1/c 15.1-25kv 750 mcm | AC146: Primary | AD146: 109461 | AE146: 2291350.02
AB147: Total Primary Cable | AE147: =SUM(AE124:AE146) -> 66607960.72
AB149: Total Underground Cable | AE149: =AE147+AE122 -> 94564919.02
AA151: 36700004001 | AB151: Neu con bare-wp 1/0 below | AC151: Neutral | AD151: 17100 | AE151: 14235.68
AA152: 36700004002 | AB152: Neu con bare-wp 2/0 -4/0 | AC152: Neutral | AD152: 2576 | AE152: 10430.68
AA153: 36700004004 | AB153: Neu con bare-wp 250mcm | AC153: Neutral | AD153: 30 | AE153: 75.09
AA154: 36700004006 | AB154: Neu con bare-wp 350 mcm | AC154: Neutral | AD154: 30 | AE154: 266.73
AA155: 36700004008 | AB155: Neu con bare-wp 500 mcm | AC155: Neutral | AD155: 1329 | AE155: 6876.29
AB156: Total Neutral | AE156: =SUM(AE151:AE155) -> 31884.47
AA158: 36700007111 | AB158: 0 - 5 KV 0 Switchgear Assembly | AC158: Sec Swgear | AD158: 1 | AE158: 9208.97
AB159: Total Secondary Switchgear | AE159: =SUM(AE158) -> 9208.97
AA161: 36700007032 | AB161: Oil switch 3 pha 5-15kv | AC161: Pri Swgear | AD161: 3 | AE161: 22687.16
AA162: 36700007033 | AB162: Oil switch 3 pha 15-25kv | AC162: Pri Swgear | AD162: 2 | AE162: 4213.09
AA163: 36700007052 | AB163: Fused switch 5.1-15kv | AC163: Pri Swgear | AD163: 11 | AE163: 17556.5
AA164: 36700007112 | AB164: Switchgear enclosed 5.1-15kv | AC164: Pri Swgear | AD164: 213 | AE164: 3078019.03
AA165: 36700007113 | AB165: Switchgear enclosed 15.1-25kv | AC165: Pri Swgear | AD165: 2 | AE165: 17565.56
AA166: 36700007271 | AB166: Auto transf sw vac 3p 0-15kv | AC166: Pri Swgear | AD166: 8 | AE166: 279542.02
AB167: Total Primary Switchgear | AE167: =SUM(AE161:AE166) -> 3419583.36
AA169: 36700005000 | AB169: Silicone Cable Treatment | AD169: 138480 | AE169: 1664183.28
AA170: 36700006100 | AB170: Conductor Sensor (Insulator) | AD170: 9 | AE170: 29987.24
AA171: 36700006200 | AB171: Control Box, including wiring | AD171: 1 | AE171: 8481.2
AA172: 36700006300 | AB172: Remote Terminal Unit | AD172: 2 | AE172: 25944.28
AA173: 36700006400 | AB173: Radio | AD173: 1 | AE173: 4941.17
AA174: 36700007301 | AB174: Junction box dry | AD174: 373 | AE174: 550152.61
AA175: 36700007450 | AB175: Demand meter assembly | AD175: 1 | AE175: 3225.56
AA176: 36700007540 | AB176: Switch pad | AD176: 638 | AE176: 379765.32
AA177: 36700007571 | AB177: Terminating cabinet 1 phase | AD177: 30120 | AE177: 11887776.01
AA178: 36700007573 | AB178: Terminating cabinet 3 phase | AD178: 2454 | AE178: 2450147.25
AB179: Total Other Unitized Equipment | AE179: =SUM(AE169:AE178) -> 17004603.92
AB181: Total Switchgear and Controls | AE181: =SUM(AE159,AE167,AE179) -> 20433396.25 | AH181: Page 2 of 2
AA183: 36700006999 | AB183: Interim Retirement Unit Code | AD183: 269314 | AE183: 2222485.78
AB184: Non-Unitized Account 367 | AD184: 383 | AE184: 1080422.49
AB185: Total Other 367 | AE185: =SUM(AE183:AE184) -> 3302908.27
AB187: Total Account 367 | AE187: =AE185+AE181+AE156+AE149 -> 118333108
AO302: HANDY-WHITMAN INDICES | AS302: Account 367
AO303: FERC ACCOUNT 367 | AS303: Attachment 3 of 3
AO304: THROUGH 2009
AN306: Year | AO306: Index
AN308: =1980 -> 1980 | AO308: =VLOOKUP(AN308,[0]!hwvalues,3) -> 209
AN309: =AN308+1 -> 1981 | AO309: =VLOOKUP(AN309,[0]!hwvalues,3) -> 212
AN310: =AN309+1 -> 1982 | AO310: =VLOOKUP(AN310,[0]!hwvalues,3) -> 210
AN311: 1983 | AO311: =VLOOKUP(AN311,[0]!hwvalues,3) -> 210
AN312: 1984 | AO312: =VLOOKUP(AN312,[0]!hwvalues,3) -> 209
AN313: 1985 | AO313: =VLOOKUP(AN313,[0]!hwvalues,3) -> 213
AN314: 1986 | AO314: =VLOOKUP(AN314,[0]!hwvalues,3) -> 222
AN315: 1987 | AO315: =VLOOKUP(AN315,[0]!hwvalues,3) -> 227
AN316: 1988 | AO316: =VLOOKUP(AN316,[0]!hwvalues,3) -> 229.75
AN317: 1989 | AO317: =VLOOKUP(AN317,[0]!hwvalues,3) -> 245.75
AN318: 1990 | AO318: =VLOOKUP(AN318,[0]!hwvalues,3) -> 254.5
AN319: 1991 | AO319: =VLOOKUP(AN319,[0]!hwvalues,3) -> 259.25
AN320: 1992 | AO320: =VLOOKUP(AN320,[0]!hwvalues,3) -> 261.5
AN321: 1993 | AO321: =VLOOKUP(AN321,[0]!hwvalues,3) -> 264.25
AN322: 1994 | AO322: =VLOOKUP(AN322,[0]!hwvalues,3) -> 266
AN323: 1995 | AO323: =VLOOKUP(AN323,[0]!hwvalues,3) -> 277.25
AN324: 1996 | AO324: =VLOOKUP(AN324,[0]!hwvalues,3) -> 281.75
AN325: 1997 | AO325: =VLOOKUP(AN325,[0]!hwvalues,3) -> 283.25
AN326: 1998 | AO326: =VLOOKUP(AN326,[0]!hwvalues,3) -> 289
AN327: 1999 | AO327: =VLOOKUP(AN327,[0]!hwvalues,3) -> 294.5
AN328: 2000 | AO328: =VLOOKUP(AN328,[0]!hwvalues,3) -> 301.5
AN329: 2001 | AO329: =VLOOKUP(AN329,[0]!hwvalues,3) -> 303.5
AN330: 2002 | AO330: =VLOOKUP(AN330,[0]!hwvalues,3) -> 302
AN331: =AN330+1 -> 2003 | AO331: =VLOOKUP(AN331,[0]!hwvalues,3) -> 304
AN332: =AN331+1 -> 2004 | AO332: =VLOOKUP(AN332,[0]!hwvalues,3) -> 315.5
AN333: =AN332+1 -> 2005 | AO333: =VLOOKUP(AN333,[0]!hwvalues,3) -> 352.5
AN334: 2006 | AO334: =VLOOKUP(AN334,[0]!hwvalues,3) -> 384
AN335: 2007 | AO335: =VLOOKUP(AN335,[0]!hwvalues,3) -> 464.5
AN336: 2008 | AO336: =VLOOKUP(AN336,[0]!hwvalues,3) -> 514.5
AN337: 2009 | AO337: =VLOOKUP(AN337,[0]!hwvalues,3) -> 591
AN338: 2010 | AO338: =VLOOKUP(AN338,[0]!hwvalues,3) -> 545.25
AM339: n/a | AN339: 2011 | AO339: =VLOOKUP(AN339,[0]!hwvalues,3) -> 0
AM340: n/a | AN340: =AN339+1 -> 2012 | AO340: =VLOOKUP(AN340,[0]!hwvalues,3) -> 0
AM341: n/a | AN341: =AN340+1 -> 2013 | AO341: =VLOOKUP(AN341,[0]!hwvalues,3) -> 0
AM342: n/a | AN342: =AN341+1 -> 2014 | AO342: =VLOOKUP(AN342,[0]!hwvalues,3) -> 0
AM343: n/a | AN343: =AN342+1 -> 2015 | AO343: =VLOOKUP(AN343,[0]!hwvalues,3) -> 0
AM344: n/a | AN344: =AN343+1 -> 2016 | AO344: =VLOOKUP(AN344,[0]!hwvalues,3) -> 0
AM346: Age of Plant | AN346: =ROUND(('HWI-Age'!E94-'HWI-Age'!E95),0) -> 9
AM348: Data thru | AN348: 2010 | AO348: =VLOOKUP(AN348,hw367val,2) -> 545.25
AM349: Acct 367 Vintage | AN349: =AN348-AN346 -> 2001 | AO349: =VLOOKUP(AN349,hw367val,2) -> 303.5
AL351: Adjustment for Vintage = | AN351: H/W(2010) = | AO351: =AO348 -> 545.25 | AP351: =AO348/AO349 -> 1.796540362
AN352: H/W(2001) | AO352: =AO349 -> 303.5
AO355: Vintaged Cost
AL357: Total Primary Ungd Lines | AN357: =AE147 -> 66607960.72 | AO357: =ROUND(AN357*AP351,2) -> 119663889.9

Sheet Calc368
D1: GULF POWER COMPANY
D2: =Calc364!$C$2 -> Twelve Months Ended 12/31/10
D3: Minimum Distribution System
D4: Account 368--Line Transformers
K5: Page 1 of 2
A6: Line | K6: Notes
D7: -------- | E7: Primary | F7: -------- | H7: -------- | I7: Secondary | J7: --------
E8: (Level 4) | I8: (Level 5)
D9: Total | E9: Customer | F9: Demand | H9: Total | I9: Customer | J9: Demand
B10: Component Split Analysis of Mass Account Records
A12: 1 | B12: Unit Cost of Zero-Intercept | I12: =Regress!E79 -> 623.34 | K12: (a)
A13: 2 | B13: Total Number of Transformers (Overhead) | H13: Overhead | I13: =AM197 -> 118031 | K13: (b)
A14: 3 | B14: Total Transformers (adj for vintage) | H14: =AX413 -> 179668246.8 | I14: =I13*I12 -> 73573443.54 | J14: =H14-I14 -> 106094803.3 | K14: (c)
A15: 4 | B15: Percentage Split of Transformers | I15: =I14/H14 -> 0.4094960842 | J15: =1-I15 -> 0.5905039158
A17: 5 | B17: Unit Cost of Zero-Intercept | I17: =$I$12 -> 623.34 | K17: (a)
A18: 6 | B18: Total Number of Transformers (Pad-Mtd) | H18: Pad-Mounted | I18: =AM233 -> 29515 | K18: (b)
A19: 7 | B19: Total Transformers (adj for vintage) | H19: =BA415 -> 140054860 | I19: =I18*I17 -> 18397880.1 | J19: =H19-I19 -> 121656979.9 | K19: (c)
A20: 8 | B20: Percentage Split of Transformers | I20: =I19/H19 -> 0.1313619541 | J20: =1-I20 -> 0.8686380459
A22: 9 | B22: Unit Cost of Zero-Intercept | I22: =$I$12 -> 623.34 | K22: (a)
A23: 10 | B23: Total Number of Transformers (Vault/Dry) | H23: Vault/UG Dry | I23: =AM208 -> 119 | K23: (b)
A24: 11 | B24: Total Transformers (adj for vintage) | H24: =BA417 -> 759126.81 | I24: =I23*I22 -> 74177.46 | J24: =H24-I24 -> 684949.35 | K24: (c)
A25: 12 | B25: Percentage Split of Transformers | I25: =I24/H24 -> 0.09771418823 | J25: =1-I25 -> 0.9022858118
A28: 13 | B28: Primary Lines from Account 365 | D28: =Calc365!E21 -> 83237343 | E28: =Calc365!F21 -> 10999344 | F28: =Calc365!G21 -> 72237999 | K28: (d)
B32: Analysis of Account 368
B35: Transformers
A36: 14 | B36: Overhead Transformers | C36: =ROUND(AN197,0) -> 70209785 | D36: 0 | E36: 0 | F36: 0 | H36: =C36 -> 70209785 | I36: =ROUND($H36/$H$14*$I$14,0) -> 28750632 | J36: =H36-I36 -> 41459153 | K36: (e)
A37: 15 | B37: Pad-Mounted Transformers | C37: =ROUND(AN233,0) -> 72091984 | D37: 0 | E37: 0 | F37: 0 | H37: =C37 -> 72091984 | I37: =ROUND($H37/$H$19*$I$19,0) -> 9470144 | J37: =H37-I37 -> 62621840 | K37: ( f )
A38: 16 | B38: Vault and Underground Dry Transformers | C38: =ROUND(AN208,0) -> 390754 | D38: 0 | E38: 0 | F38: 0 | H38: =C38 -> 390754 | I38: =ROUND($H38/$H$24*$I$24,0) -> 38182 | J38: =H38-I38 -> 352572 | K38: (g)
A40: 17 | B40: Network Protectors | C40: =ROUND(AN235,0) -> 154278 | D40: 0 | E40: 0 | F40: 0 | H40: =ROUND($C$40/$C$38*H$38,0) -> 154278 | I40: =ROUND($C$40/$C$38*I$38,0) -> 15075 | J40: =H40-I40 -> 139203 | K40: (h)
A42: 18 | B42: Regulators and Capacitors | C42: =ROUND(AN252,0)-1 -> 12600650 | D42: =C42 -> 12600650 | E42: 0 | F42: =D42-E42 -> 12600650 | H42: 0 | I42: 0 | J42: 0 | K42: ( i )
A44: 19 | B44: Switches | C44: =ROUND(AN267,0) -> 2607495 | D44: =C44 -> 2607495 | E44: =ROUND(D44/D28*E28,0) -> 344566 | F44: =D44-E44 -> 2262929 | H44: 0 | I44: 0 | J44: 0 | K44: ( j )
B46: Cutouts and Arresters
A47: 20 | B47: Transformer-related | C47: =AE131 -> 35641501 | D47: 0 | E47: =D47 -> 0 | F47: =D47-E47 -> 0 | H47: =C47 -> 35641501 | I47: =ROUND($C$47/$C$36*I$36,0) -> 14595055 | J47: =H47-I47 -> 21046446 | K47: (k)
A48: 21 | B48: Regulator/Capacitor-related | C48: =AE132 -> 7806477 | D48: =C48 -> 7806477 | E48: 0 | F48: =D48-E48 -> 7806477 | H48: 0 | I48: 0 | J48: 0 | K48: ( l )
A49: 22 | B49: Line/Switch-related | C49: =AE133 -> 12973965 | D49: =C49 -> 12973965 | E49: =ROUND(D49/D28*E28,0) -> 1714436 | F49: =D49-E49 -> 11259529 | H49: 0 | I49: 0 | J49: 0 | K49: (m)
A51: 23 | B51: Other Unitized Account 368 | C51: =ROUND(AN273,0) -> 3101574 | D51: 0 | E51: =D51 -> 0 | F51: =D51-E51 -> 0 | H51: =C51 -> 3101574 | I51: =ROUND($H$51/$H$37*I$37,0) -> 407429 | J51: =H51-I51 -> 2694145 | K51: (n)
A53: 24 | B53: Subtotal | C53: =SUM(C36:C52) -> 217578463 | D53: =SUM(D36:D52) -> 35988587 | E53: =SUM(E36:E52) -> 2059002 | F53: =SUM(F36:F52) -> 33929585 | H53: =SUM(H36:H52) -> 181589876 | I53: =SUM(I36:I52) -> 53276517 | J53: =SUM(J36:J52) -> 128313359
A55: 25 | B55: Nonunitized Account 368 | C55: =ROUND(AN275,0) -> 2599316 | D55: =ROUND($C55/$C53*D53,0) -> 429940 | E55: =ROUND(D55/D53*E53,0) -> 24598 | F55: =D55-E55 -> 405342 | H55: =ROUND($C55/$C53*H53,0) -> 2169376 | I55: =ROUND(H55/H53*I53,0) -> 636472 | J55: =H55-I55 -> 1532904 | K55: (o)
A57: 26 | B57: Total Account 368 | C57: =SUM(C53:C55) -> 220177779 | D57: =SUM(D53:D55) -> 36418527 | E57: =SUM(E53:E55) -> 2083600 | F57: =SUM(F53:F55) -> 34334927 | H57: =SUM(H53:H55) -> 183759252 | I57: =SUM(I53:I55) -> 53912989 | J57: =SUM(J53:J55) -> 129846263
C58: =IF(C57-AN277>1,"Check","") -> 
A59: 27 | B59: Percentages at Level | E59: =E57/D57 -> 0.05721263795 | F59: =1-E59 -> 0.942787362 | I59: =I57/H57 -> 0.2933892493 | J59: =1-I59 -> 0.7066107507
A60: 28 | B60: Percentages of Total | D60: =D57/$C57 -> 0.1654050975 | E60: =E57/$C57 -> 0.009463261958 | F60: =F57/$C57 -> 0.1559418355 | H60: =H57/$C57 -> 0.8345949025 | I60: =I57/$C57 -> 0.2448611719 | J60: =J57/$C57 -> 0.5897337306
K63: Page 2 of 2
A65: Level/Component Allocator for Account 368
B66: Total | C66: =SUM(C67:C73) -> 1
B67: Level F Demand | C67: =F60 -> 0.1559418355
B68: Level F Customer | C68: =E60 -> 0.009463261958
B69: Level G Demand | C69: =J60 -> 0.5897337306
B70: Level G Customer | C70: =I60 -> 0.2448611719
A75: Notes
A77: (a) | B77: Y-axis intercept of regression based on cost from Maximo system of single-phase overhead transformers 100 KVA and less.
A79: (b) | B79: Includes all overhead, pad-mounted, and vault / underground dry transformers, respectively.
A81: (c) | B81: Total amount for all transformers adjusted for vintage by Handy-Whitman ratios. Customer component equals Total Number
B82: of Transformers (Line 2) times Unit Cost of Zero Intercept (Line 1). Demand component is Total minus Customer component.
A84: (d) | B84: From Analysis of Account 365, Line 5, Primary Lines.
A86: (e) | B86: Allocated per Total Transformers adjusted for vintage (Line 3, Overhead).
A88: (f) | B88: Allocated per Total Transformers adjusted for vintage (Line 7, Pad-Mounted).
A90: (g) | B90: Allocated per Total Transformers adjusted for vintage (Line 11, Vault/Dry).
A92: (h) | B92: Allocated per Vault and Underground Dry Transformers (Line 16).
A94: ( i ) | B94: Assigned to Level F Demand component.
A96: ( j ) | B96: Allocated per Primary Lines from Account 365 (Line 13).
A98: (k) | B98: From Account 368-A. Allocated per Overhead Transformers (Line 14).
A100: ( l ) | B100: From Account 368-A. Allocated per Regulators and Capacitors (Line 18).
A102: (m) | B102: From Account 368-A. Allocated per Primary Lines from Account 365 (Line 13).
A104: (n) | B104: Allocated per Pad-Mounted Transformers (Line 15).
A106: (o) | B106: Allocated per Subtotal (Line 24).
V111: GULF POWER COMPANY | AG111: Account 368
V112: ANALYSIS OF CUTOUTS AND ARRESTERS | AG112: Attachment 4 of 4
V113: =D2 -> Twelve Months Ended 12/31/10
U116: Line | W116: Item | AA116: Quantity | AC116: Percentage | AE116: Amount ($) | AG116: Notes
U119: 1 | V119: Total for Cutouts | AA119: =AM256 -> 171839 | AE119: =ROUND(AN256,0) -> 26590701 | AG119: (a)
U120: 2 | V120: Protection for Overhead Transformers | AA120: =AM197 -> 118031 | AC120: =AA120/AA$119 -> 0.6868696862 | AE120: =ROUND(AE$119*AC120,0) -> 18264346 | AG120: (b)
U121: 3 | V121: Remainder for Line Protection | AA121: =AA119-AA120 -> 53808 | AC121: =1-AC120 -> 0.3131303138 | AE121: =AE119-AE120 -> 8326355 | AG121: (c)
U123: 4 | V123: Total for Arresters | AA123: =AM263 -> 202623 | AE123: =ROUND(AN263,0) -> 29831242 | AG123: (d)
U124: 5 | V124: Protection for Overhead Transformers | AA124: =AM197 -> 118031 | AC124: =AA124/AA$123 -> 0.5825153117 | AE124: =ROUND(AE$123*AC124,0) -> 17377155 | AG124: (e)
U125: 6 | V125: Protection for Regulators and Auto-Boosters | AA125: =ROUND(2*SUM(AM237:AM244),0) -> 1346 | AC125: =AA125/AA$123 -> 0.006642878647 | AE125: =ROUND(AE$123*AC125,0) -> 198165 | AG125: (f)
U126: 7 | V126: Protection for Capacitors | AA126: =ROUND(6*SUM(AM245:AM249),0) -> 51678 | AC126: =AA126/AA$123 -> 0.2550450837 | AE126: =ROUND(AE$123*AC126,0) -> 7608312 | AG126: (g)
U127: 8 | V127: Protection for Switches | AA127: =ROUND(2*AM265,0)+ROUND(6*AM266,0) -> 7010 | AC127: =AA127/AA$123 -> 0.03459626992 | AE127: =ROUND(AE$123*AC127,0) -> 1032050 | AG127: (h)
U128: 9 | V128: Remainder for Line Protection | AA128: =AA123-SUM(AA124:AA127) -> 24558 | AC128: =1-SUM(AC124:AC127) -> 0.121200456 | AE128: =AE123-SUM(AE124:AE127) -> 3615560 | AG128: ( i )
V130: Summary for Cutouts and Arresters
U131: 10 | V131: Transformer-related | AE131: =AE120+AE124 -> 35641501 | AG131: ( j )
U132: 11 | V132: Regulator/Capacitor-related | AE132: =AE125+AE126 -> 7806477 | AG132: (k)
U133: 12 | V133: Line/Switch-related | AE133: =AE121+AE127+AE128 -> 12973965 | AG133: ( l )
U136: Notes
U138: (a) | V138: Total Number and Amount for Cutouts.
U140: (b) | V140: Assumed 1 cutout per transformer.
U142: (c) | V142: Difference between Total for Cutouts (Line 1) and Protection for Overhead Transformers (Line 2).
U144: (d) | V144: Total Number and Amount for Arresters.
U146: (e) | V146: Assumed 1 arrester per transformer.
U148: (f) | V148: Regulators and Auto-Boosters all single-phase. Assumed 2 arresters per unit (one each on load side and source side).
U150: (g) | V150: Assumed all Capacitors 3-phase. Assumed six arresters per capacitor--two per phase (one each
V151: on load side and source side) x three phases.
U153: (h) | V153: Assumed 2 arresters per single-phase switch; 6 arresters per 3-phase switch.
U155: ( i ) | V155: Difference between Total for Arresters (Line 4) and Protection for Overhead Transformers (Line 5) plus Protection
V156: for Regulators (Line 6) plus Protection for Capacitors (Line 7) plus Protection for Switches (Line 8).
U158: ( j ) | V158: Line 2 plus Line 5.
U160: (k) | V160: Line 6 plus Line 7.
U162: ( l ) | V162: Line 3 plus Line 8 plus Line 9.
AK169: MASS DISTRIBUTION INVESTMENT | AP169: Account 368
AK170: GULF POWER COMPANY | AP170: Attachment 1 of 4
AK171: =Acctg!$A$9 -> Investment as of 12/31/2010
AI174: RUC | AK174: DESCRIPTION | AL174: ITEM | AM174: QUANTITY | AN174: AMOUNT
AP175: Page 1 of 2
AI176: 36800001001 | AK176: TFM, OH, 1PH, 5KVA | AL176: Overhead Trn | AM176: 989 | AN176: 254343.57
AI177: 36800001002 | AK177: TFM, OH, 1PH, 7.5KVA | AL177: Overhead Trn | AM177: 13 | AN177: 11488.25
AI178: 36800001003 | AK178: TFM, OH, 1PH, 10KVA | AL178: Overhead Trn | AM178: 8035 | AN178: 2655246.9
AI179: 36800001004 | AK179: TFM, OH, 1PH, 15KVA | AL179: Overhead Trn | AM179: 22201 | AN179: 10141977.86
AI180: 36800001006 | AK180: TFM, OH, 1PH, 25KVA | AL180: Overhead Trn | AM180: 54828 | AN180: 29843126.87
AI181: 36800001008 | AK181: TFM, OH, 1PH, 37.5KVA | AL181: Overhead Trn | AM181: 17695 | AN181: 12633582.94
AI182: 36800001010 | AK182: TFM, OH, 1PH, 50KVA | AL182: Overhead Trn | AM182: 9776 | AN182: 8145704.1
AI183: 36800001013 | AK183: TFM, OH, 1PH, 75KVA | AL183: Overhead Trn | AM183: 2711 | AN183: 3418405.32
AI184: 36800001016 | AK184: TFM, OH, 1PH, 100KVA | AL184: Overhead Trn | AM184: 1215 | AN184: 1872326.43
AI185: 36800001020 | AK185: TFM, OH, 1PH, 150KVA | AL185: Overhead Trn | AM185: 2 | AN185: 1499.64
AI186: 36800001021 | AK186: TFM, OH, 1PH, 167KVA | AL186: Overhead Trn | AM186: 522 | AN186: 1121314.38
AI187: 36800001023 | AK187: TFM, OH, 1PH, 200KVA | AL187: Overhead Trn | AM187: 4 | AN187: 1581.33
AI188: 36800001026 | AK188: TFM, OH, 1PH, 250KVA | AL188: Overhead Trn | AM188: 5 | AN188: 21725
AI189: 36800001029 | AK189: TFM, OH, 1PH, 333KVA | AL189: Overhead Trn | AM189: 24 | AN189: 67841.82
AI190: 36800001038 | AK190: TFM, OH, 1PH, 750KVA | AL190: Overhead Trn | AM190: 1 | AN190: 4719.31
AI191: 36800001110 | AK191: TFM, OH, 3PH, 50KVA | AL191: Overhead Trn | AM191: 3 | AN191: 1080.81
AI192: 36800001113 | AK192: TFM, OH, 3PH, 75KVA | AL192: Overhead Trn | AM192: 2 | AN192: 758.51
AI193: 36800001116 | AK193: TFM, OH, 3PH, 100KVA | AL193: Overhead Trn | AM193: 1 | AN193: 435.27
AI194: 36800001120 | AK194: TFM, OH, 3PH, 150KVA | AL194: Overhead Trn | AM194: 1 | AN194: 594.84
AI195: 36800001128 | AK195: TFM, OH, 3PH, 300KVA | AL195: Overhead Trn | AM195: 2 | AN195: 1997.33
AI196: 36800001143 | AK196: TFM, OH, 3PH, 2500KVA | AL196: Overhead Trn | AM196: 1 | AN196: 10034.4
AK197: Total Overhead Transformers | AM197: =SUM(AM176:AM196) -> 118031 | AN197: =SUM(AN176:AN196) -> 70209784.88
AI199: 36800001208 | AK199: TFM Vault Type, 1PH 37.5kva | AL199: Vault Trn | AM199: 2 | AN199: 1247.1
AI200: 36800001210 | AK200: TFM Vault Type, 1PH, 50kva | AL200: Vault Trn | AM200: 4 | AN200: 3004.97
AI201: 36800001213 | AK201: TFM Vault Type, 1PH, 75kva | AL201: Vault Trn | AM201: 48 | AN201: 49562.86
AI202: 36800001216 | AK202: TFM Vault Type, 1PH, 100kva | AL202: Vault Trn | AM202: 13 | AN202: 13317.54
AI203: 36800001335 | AK203: TFM Vault Type, 3PH, 500kva | AL203: Vault Trn | AM203: 31 | AN203: 235223.32
AI204: 36800001621 | AK204: TFM Ungd Dry Type, 1PH, 167kva | AL204: Ugd Dry Trn | AM204: 7 | AN204: 14138.89
AI205: 36800001626 | AK205: TFM Ungd Dry Type, 1PH, 250kva | AL205: Ugd Dry Trn | AM205: 11 | AN205: 58086.64
AI206: 36800001629 | AK206: TFM Ungd Dry Type, 1PH, 333kva | AL206: Ugd Dry Trn | AM206: 2 | AN206: 7693.66
AI207: 36800001735 | AK207: TFM Ungd Dry Type, 3PH, 500kva | AL207: Ugd Dry Trn | AM207: 1 | AN207: 8478.74
AK208: Total Vault / Ungd Dry Transformers | AM208: =SUM(AM199:AM207) -> 119 | AN208: =SUM(AN199:AN207) -> 390753.72
AI210: 36800001406 | AK210: TFM Padmt, 1PH, 25KVA | AL210: Pad-Mt Trn | AM210: 6827 | AN210: 8407150.46
AI211: 36800001408 | AK211: TFM Padmt, 1PH, 37.5KVA | AL211: Pad-Mt Trn | AM211: 8364 | AN211: 11237550.52
AI212: 36800001410 | AK212: TFM Padmt, 1PH, 50KVA | AL212: Pad-Mt Trn | AM212: 5598 | AN212: 7993835.6
AI213: 36800001413 | AK213: TFM Padmt, 1PH, 75KVA | AL213: Pad-Mt Trn | AM213: 3310 | AN213: 5583534.8
AI214: 36800001416 | AK214: TFM Padmt, 1PH, 100KVA | AL214: Pad-Mt Trn | AM214: 1209 | AN214: 2493019.93
AI215: 36800001421 | AK215: TFM Padmt, 1PH, 167KVA | AL215: Pad-Mt Trn | AM215: 527 | AN215: 1584996.36
AI216: 36800001430 | AK216: TFM Padmt, 1PH, 333KVA | AL216: Pad-Mt Trn | AM216: 1 | AN216: 7941.17
AI217: 36800001510 | AK217: TFM Padmt, 3PH, 50KVA | AL217: Pad-Mt Trn | AM217: 1 | AN217: 1091.36
AI218: 36800001513 | AK218: TFM Padmt, 3PH, 75KVA | AL218: Pad-Mt Trn | AM218: 4 | AN218: 10067
AI219: 36800001518 | AK219: TFM Padmt, 3PH, 112.5KVA | AL219: Pad-Mt Trn | AM219: 824 | AN219: 5049481.91
AI220: 36800001520 | AK220: TFM Padmt, 3PH, 150KVA | AL220: Pad-Mt Trn | AM220: 446 | AN220: 2494113.23
AI221: 36800001524 | AK221: TFM Padmt, 3PH, 225KVA | AL221: Pad-Mt Trn | AM221: 513 | AN221: 3705818.35
AI222: 36800001528 | AK222: TFM Padmt, 3PH, 300KVA | AL222: Pad-Mt Trn | AM222: 509 | AN222: 4017247.86
AI223: 36800001535 | AK223: TFM Padmt, 3PH, 500KVA | AL223: Pad-Mt Trn | AM223: 649 | AN223: 6658981.33
AI224: 36800001538 | AK224: TFM Padmt, 3PH, 750KVA | AL224: Pad-Mt Trn | AM224: 352 | AN224: 5137636.71
AI225: 36800001540 | AK225: TFM Padmt, 3PH, 1000KVA | AL225: Pad-Mt Trn | AM225: 161 | AN225: 2625517.28
AI226: 36800001541 | AK226: TFM Padmt, 3PH, 1500KVA | AL226: Pad-Mt Trn | AM226: 114 | AN226: 2445107.07
AI227: 36800001542 | AK227: TFM Padmt, 3PH, 2000KVA | AL227: Pad-Mt Trn | AM227: 27 | AN227: 655415.19
AI228: 36800001543 | AK228: TFM Padmt, 3PH, 2500KVA | AL228: Pad-Mt Trn | AM228: 57 | AN228: 1733315.65
AI229: 36800001544 | AK229: TFM Padmt, 3PH, 3000KVA | AL229: Pad-Mt Trn | AM229: 3 | AN229: 120499.46
AI230: 36800001808 | AK230: TFM Duplex Padmt, 3PH, 37.5/10 KVA | AL230: Pad-Mt Trn | AM230: 1 | AN230: 1249.24
AI231: 36800001821 | AK231: TFM Duplex Padmt, 3PH, 167/37.5 KVA | AL231: Pad-Mt Trn | AM231: 3 | AN231: 12592.97
AI232: 36800001826 | AK232: TFM Duplex Padmt, 3PH, 250/37.5 KVA | AL232: Pad-Mt Trn | AM232: 15 | AN232: 115820.28
AK233: Total Pad-Mounted Transformers | AM233: =SUM(AM210:AM232) -> 29515 | AN233: =SUM(AN210:AN232) -> 72091983.73
AI235: 36800001905 | AK235: Network Protector, 216v-1600a | AL235: Netwk Prot | AM235: 18 | AN235: 154277.62
AI237: 36800004015 | AK237: Regulator, 1ph, 38.1kva | AL237: Regulator | AM237: 15 | AN237: 22068.57
AI238: 36800004023 | AK238: Regulator, 1ph, 76.2kva | AL238: Regulator | AM238: 182 | AN238: 1147453.06
AI239: 36800004025 | AK239: Regulator, 1ph, 100kva | AL239: Regulator | AM239: 2 | AN239: 6073.38
AI240: 36800004027 | AK240: Regulator, 1ph, 114.3kva | AL240: Regulator | AM240: 96 | AN240: 503786.37
AI241: 36800004028 | AK241: Regulator, 1ph, 167kva | AL241: Regulator | AM241: 125 | AN241: 774807.04
AI242: 36800004030 | AK242: Regulator, 1ph, 250-300kva | AL242: Regulator | AM242: 141 | AN242: 1133539.56
AI243: 36800004032 | AK243: Regulator, 1ph, 301-333kva | AL243: Regulator | AM243: 101 | AN243: 1018106.43
AI244: 36800004202 | AK244: Auto Booster, 1ph, 50a | AL244: Regulator | AM244: 11 | AN244: 9210.08
AI245: 36800004501 | AK245: Capacitor,0-75kvar, 1ph&3ph | AL245: Capacitor | AM245: 2059 | AN245: 372482.23
AI246: 36800004502 | AK246: Capacitor,100-150kvar, 1ph&3ph | AL246: Capacitor | AM246: 308 | AN246: 80766.93
AI247: 36800004503 | AK247: Capacitor,200-300kvar, 1ph&3ph | AL247: Capacitor | AM247: 6093 | AN247: 4295376.26
AI248: 36800004504 | AK248: Capacitor,400kvar, 1ph&3ph | AL248: Capacitor | AM248: 130 | AN248: 165257.94
AI249: 36800004600 | AK249: Special Capacitor Installation | AL249: Capacitor | AM249: 23 | AN249: 220243.59
AI250: 36800004700 | AK250: Capacitor control unit | AL250: Capacitor | AM250: 1433 | AN250: 1044226.13
AI251: 36800005180 | AK251: Regulator by pass switch | AL251: Regulator | AM251: 1189 | AN251: 1807253.53
AK252: Total Regulators and Capacitors | AM252: =SUM(AM237:AM251) -> 11908 | AN252: =SUM(AN237:AN251) -> 12600651.1
AI254: 36800005001 | AK254: Cutout, 0-5kv | AL254: Cutout | AM254: 3141 | AN254: 97870.52
AI255: 36800005002 | AK255: Cutout, 5.1-27 | AL255: Cutout | AM255: 168698 | AN255: 26492830.61
AK256: Total Cutouts | AM256: =SUM(AM254:AM255) -> 171839 | AN256: =SUM(AN254:AN255) -> 26590701.13
AI258: 36800005021 | AK258: Arrester 0-5kv | AL258: Arrester | AM258: 2297 | AN258: 241832.35
AI259: 36800005022 | AK259: Arrester 5.1-15kv | AL259: Arrester | AM259: 195259 | AN259: 28320907.42
AI260: 36800005023 | AK260: Arrester 15.1-25kv | AL260: Arrester | AM260: 5000 | AN260: 1262010.48
AI261: 36800005024 | AK261: Arrester over 25kv | AL261: Arrester | AM261: 3 | AN261: 3344.9
AI262: 36800005029 | AK262: Arrester, Special | AL262: Arrester | AM262: 64 | AN262: 3146.91
AK263: Total Arresters | AM263: =SUM(AM258:AM262) -> 202623 | AN263: =SUM(AN258:AN262) -> 29831242.06
AI265: 36800005060 | AK265: Oil switch, 1ph | AL265: Switch | AM265: 3499 | AN265: 2602693.03 | AP265: Page 2 of 2
AI266: 36800005070 | AK266: Oil switch, 3ph | AL266: Switch | AM266: 2 | AN266: 4802.2
AK267: Total Switches | AM267: =SUM(AM265:AM266) -> 3501 | AN267: =SUM(AN265:AN266) -> 2607495.23
AI269: 36800005129 | AK269: Transformer Enclosure-Specl | AL269: Other Pad-Mt | AM269: 1 | AN269: 4253.42
AI270: 36800005141 | AK270: Transformer Pad 1ph | AL270: Other Pad-Mt | AM270: 23326 | AN270: 2893401.1
AI271: 36800005143 | AK271: Transformer Pad 3ph | AL271: Other Pad-Mt | AM271: 637 | AN271: 200394.24
AI272: 36800005161 | AK272: Transformer Connection Cabinet, Type 1 | AL272: Other Pad-Mt | AM272: 1 | AN272: 3525.44
AK273: Total Other 368 | AM273: =SUM(AM269:AM272) -> 23965 | AN273: =SUM(AN269:AN272) -> 3101574.2
AK275: Nonunitized Account 368 | AN275: 2599316.25
AK277: Total Account 368 | AN277: =AN197+AN233+AN208+AN235+AN267+AN252+AN256+AN263+AN313+AN273+AN275 -> 220177779.9
AW357: HANDY-WHITMAN INDICES | BA357: Account 368
AW358: FERC ACCOUNT 368 | BA358: Attachment 3 of 4
AW359: THROUGH 2009
AW361: Year | AX361: Overhead | BA361: Pad-Mounted
AX362: Index | BA362: Index
... 47 more rows

Sheet Account 364
H1: GULF POWER COMPANY
H2: TWELVE MONTHS ENDED 12/31/10
H3: MINIMUM DISTRIBUTION SYSTEM - ZERO-INTERCEPT METHOD
H4: ACCOUNT 364 - POLES, TOWERS AND FIXTURES ANALYSIS (MASS ACCOUNT)
H5: SCHEDULE 6.3
H8: PRIMARY
H9: -------------------- LEVEL 4 --------------------
F10: 12-31-10 | H10: CUSTOMER- | J10: DEMAND-
F11: TOTAL | H11: RELATED | J11: RELATED
F12: LEVEL 4 COSTS | H12: COMPONENT | J12: COMPONENT | Q12: NOTES
B13: COMPONENT SPLIT ANALYSIS OF
B14: MASS ACCOUNT RECORDS
A16: 1. | B16: AVERAGE UNIT COST OF MFUS POLES | H16: =Calc364!G10 -> 206.0805924 | Q16: (A)
A17: 2. | B17: TOTAL NUMBER OF POLES | H17: =Calc364!G11 -> 255703 | Q17: (B)
A18: 3. | B18: TOTAL COST OF POLES | F18: =Calc364!F12 -> 80795233.07 | H18: =Calc364!G12 -> 52695425.71 | J18: =Calc364!H12 -> 28099807.36 | Q18: (C)
A19: 4. | B19: PERCENTAGE OF TOTAL COST OF POLES | H19: =Calc364!G13 -> 0.6522095884 | J19: =Calc364!H13 -> 0.3477904116
H22: PRIMARY | N22: SECONDARY
H23: -------------------- LEVEL 4 -------------------- | N23: -------------------- LEVEL 5 --------------------
D24: 12-31-10 | F24: 12-31-10 | H24: CUSTOMER- | J24: DEMAND- | L24: 12-31-10 | N24: CUSTOMER- | P24: DEMAND-
D25: TOTAL | F25: TOTAL | H25: RELATED | J25: RELATED | L25: TOTAL | N25: RELATED | P25: RELATED
D26: ALL COSTS | F26: LEVEL 4 COSTS | H26: COMPONENT | J26: COMPONENT | L26: LEVEL 5 COSTS | N26: COMPONENT | P26: COMPONENT
A28: 5. | B28: PRIMARY / SECONDARY SPLIT OF OVERHEAD | D28: =Calc364!D19 -> 107066574 | F28: =Calc364!F19 -> 83237343 | L28: =Calc364!J19 -> 23829231 | Q28: (D)
B29: LINES FROM ACCOUNT 365
B31: ANALYSIS OF ACCOUNT 364
A33: 6. | B33: POLES (WOOD, CONCRETE) | D33: =Calc364!D24 -> 79450041 | F33: =Calc364!F24 -> 61767273 | H33: =Calc364!G24 -> 40285208 | J33: =Calc364!H24 -> 21482065 | L33: =Calc364!J24 -> 17682768 | N33: =Calc364!K24 -> 11532871 | P33: =Calc364!L24 -> 6149897 | Q33: (E)
A34: 7. | B34: STEEL-REINFORCED POLE TRUSS | D34: =Calc364!D25 -> 1345192 | F34: =Calc364!F25 -> 1345192 | H34: =Calc364!G25 -> 877347 | J34: =Calc364!H25 -> 467845 | L34: =Calc364!J25 -> 0 | N34: =Calc364!K25 -> 0 | P34: =Calc364!L25 -> 0 | Q34: (F)
A35: 8. | B35: TOTAL POLES | D35: =Calc364!D26 -> 80795233 | F35: =Calc364!F26 -> 63112465 | H35: =Calc364!G26 -> 41162555 | J35: =Calc364!H26 -> 21949910 | L35: =Calc364!J26 -> 17682768 | N35: =Calc364!K26 -> 11532871 | P35: =Calc364!L26 -> 6149897
A37: 9. | B37: FIXTURE SETS | D37: =Calc364!D28 -> 42553058 | F37: =Calc364!F28 -> 33239936 | H37: =Calc364!G28 -> 21679405 | J37: =Calc364!H28 -> 11560531 | L37: =Calc364!J28 -> 9313122 | N37: =Calc364!K28 -> 6074108 | P37: =Calc364!L28 -> 3239014 | Q37: (G)
A38: 10. | B38: OTHER ACCOUNT 364 | D38: =Calc364!D29 -> 1971647 | F38: =Calc364!F29 -> 1540134 | H38: =Calc364!G29 -> 1004490 | J38: =Calc364!H29 -> 535644 | L38: =Calc364!J29 -> 431513 | N38: =Calc364!K29 -> 281437 | P38: =Calc364!L29 -> 150076 | Q38: (H)
A40: 11. | B40: TOTAL ACCOUNT 364 | D40: =Calc364!D31 -> 125319938 | F40: =Calc364!F31 -> 97892535 | H40: =Calc364!G31 -> 63846450 | J40: =Calc364!H31 -> 34046085 | L40: =Calc364!J31 -> 27427403 | N40: =Calc364!K31 -> 17888416 | P40: =Calc364!L31 -> 9538987
A42: 12. | B42: PERCENTAGES AT LEVEL | H42: 0.6522095888 | J42: 0.3477904112 | N42: 0.6522096168 | P42: 0.3477903832
A43: 13. | B43: PERCENTAGES OF TOTAL | F43: 0.7811409466 | H43: 0.5094676156 | J43: 0.271673331 | L43: 0.2188590534 | N43: 0.1427419793 | P43: 0.07611707404
A46: NOTES:
A48: (A) | B48: MFUS INCLUDES 35-FOOT WOODEN POLES--MOST FREQUENTLY USED--AND SMALLER.
A49: (B) | B49: INCLUDES ALL POSE SIZES.
A50: (C) | B50: TOTAL AMOUNT FOR ALL POLES. CUSTOMER COMPONENT EQUAL TOTAL NUMBER OF POLES (LINE 2) TIMES AVERAGE
B51: UNIT COST OF MFUS POLES (LINE 1). DEMAND COMPONENT IS TOTAL MINUS CUSTOMER COMPONENT.
A52: (D) | B52: FROM ACCOUNT 365, LINE 7, TOTAL OVERHEAD LINES.
A53: (E) | B53: TOTAL AMOUNT ALLOCATED TO LEVEL PER PRIMARY / SECONDARY SPLIT OF OVERHEAD LINES FROM ACCOUNT 365 (LINE 5).
B54: WITHIN LEVEL, ALLOCATED TO COMPONENT PER TOTAL COST OF POLES (LINE 3).
A55: (F) | B55: TOTAL AMOUNT ASSIGNED TO PRIMARY LEVEL. ALLOCATED TO COMPONENT PER TOTAL COST OF POLES (LINE 3).
A56: (G) | B56: ALLOCATED PER TOTAL POLES (LINE 8).
A57: (H) | B57: INCLUDES ADJUSTMENTS, INTERIM RUCs, AND NON-UNITIZED. ALLOCATED PER TOTAL POLES (LINE 8).

Sheet Account 365
I1: GULF POWER COMPANY
I2: TWELVE MONTHS ENDED 12/31/10
I3: MINIMUM DISTRIBUTION SYSTEM - ZERO-INTERCEPT METHOD
I4: ACCOUNT 365 - OVERHEAD CONDUCTORS AND DEVICES ANALYSIS (CURRENT REPLACEMENT COST BASIS)
I5: SCHEDULE 6.4
I8: PRIMARY
I9: -------------------- LEVEL 4 --------------------
G10: 12-31-10 | I10: CUSTOMER- | K10: DEMAND-
G11: TOTAL | I11: RELATED | K11: RELATED | R11: NOTES
G12: LEVEL 4 COSTS | I12: COMPONENT | K12: COMPONENT
B13: COMPONENT SPLIT ANALYSIS OF
B14: MASS ACCOUNT RECORDS
A16: 1. | B16: ZERO-INTERCEPT UNIT COST OF AAC/AAAC Wire ($/FT) | I16: =Calc365!F11 -> 0.3087 | R16: (A)
A17: 2. | B17: TOTAL FEET OF MINIMUM SYSTEM PRIMARY OVERHEAD LINES | I17: =Calc365!F12 -> 62208960 | R17: (B)
A18: 3. | B18: TOTAL COST OF PRIMARY OVERHEAD LINES (ADJ FOR VINTAGE) | G18: =Calc365!E13 -> 145325226.5 | I18: =Calc365!F13 -> 19203905.95 | K18: =Calc365!G13 -> 126121320.5 | R18: (C)
A19: 4. | B19: PERCENTAGE OF TOTAL COST OF OVERHEAD LINES | I19: =Calc365!F14 -> 0.1321443387 | K19: =Calc365!G14 -> 0.8678556613
I21: PRIMARY | O21: SECONDARY
I22: -------------------- LEVEL 4 -------------------- | O22: -------------------- LEVEL 5 --------------------
E23: 12-31-10 | G23: 12-31-10 | I23: CUSTOMER- | K23: DEMAND- | M23: 12-31-10 | O23: CUSTOMER- | Q23: DEMAND-
E24: TOTAL | G24: TOTAL | I24: RELATED | K24: RELATED | M24: TOTAL | O24: RELATED | Q24: RELATED
B25: ANALYSIS OF ACCOUNT 365 | E25: ALL COSTS | G25: LEVEL 4 COSTS | I25: COMPONENT | K25: COMPONENT | M25: LEVEL 5 COSTS | O25: COMPONENT | Q25: COMPONENT
A27: 5. | B27: PRIMARY LINES | E27: =Calc365!C21 -> 83237343 | G27: =Calc365!E21 -> 83237343 | I27: =Calc365!F21 -> 10999344 | K27: =Calc365!G21 -> 72237999 | M27: =Calc365!I21 -> 0 | O27: =Calc365!J21 -> 0 | Q27: =Calc365!K21 -> 0 | R27: (D)
A28: 6. | B28: SECONDARY LINES | E28: =Calc365!C22 -> 23829231 | G28: =Calc365!E22 -> 0 | I28: =Calc365!F22 -> 0 | K28: =Calc365!G22 -> 0 | M28: =Calc365!I22 -> 23829231 | O28: =Calc365!J22 -> 3148898 | Q28: =Calc365!K22 -> 20680333 | R28: (E)
A29: 7. | B29: TOTAL OVERHEAD LINES | E29: =Calc365!C23 -> 107066574 | G29: =Calc365!E23 -> 83237343 | I29: =Calc365!F23 -> 10999344 | K29: =Calc365!G23 -> 72237999 | M29: =Calc365!I23 -> 23829231 | O29: =Calc365!J23 -> 3148898 | Q29: =Calc365!K23 -> 20680333
A31: 8. | B31: PRIMARY SWITCHGEAR | E31: =Calc365!C25 -> 4244403 | G31: =Calc365!E25 -> 4244403 | I31: =Calc365!F25 -> 560874 | K31: =Calc365!G25 -> 3683529 | M31: =Calc365!I25 -> 0 | O31: =Calc365!J25 -> 0 | Q31: =Calc365!K25 -> 0 | R31: (F)
A32: 9. | B32: SECONDARY SWITCHGEAR | E32: =Calc365!C26 -> 100245 | G32: =Calc365!E26 -> 0 | I32: =Calc365!F26 -> 0 | K32: =Calc365!G26 -> 0 | M32: =Calc365!I26 -> 100245 | O32: =Calc365!J26 -> 13247 | Q32: =Calc365!K26 -> 86998 | R32: (G)
A33: 10. | B33: OTHER EQUIPMENT | E33: =Calc365!C27 -> 6815069 | G33: =Calc365!E27 -> 5298276 | I33: =Calc365!F27 -> 700137 | K33: =Calc365!G27 -> 4598139 | M33: =Calc365!I27 -> 1516793 | O33: =Calc365!J27 -> 200436 | Q33: =Calc365!K27 -> 1316357 | R33: (H)
A34: 11. | B34: TOTAL SWITCHGEAR AND OTHER EQUIPMENT | E34: =Calc365!C28 -> 11159717 | G34: =Calc365!E28 -> 9542679 | I34: =Calc365!F28 -> 1261011 | K34: =Calc365!G28 -> 8281668 | M34: =Calc365!I28 -> 1617038 | O34: =Calc365!J28 -> 213683 | Q34: =Calc365!K28 -> 1403355
A36: 12. | B36: SUBTOTAL | E36: =Calc365!C30 -> 118226291 | G36: =Calc365!E30 -> 92780022 | I36: =Calc365!F30 -> 12260355 | K36: =Calc365!G30 -> 80519667 | M36: =Calc365!I30 -> 25446269 | O36: =Calc365!J30 -> 3362581 | Q36: =Calc365!K30 -> 22083688
A38: 13. | B38: OTHER 365 | E38: =Calc365!C32 -> 3755240 | G38: =Calc365!E32 -> 2946986 | I38: =Calc365!F32 -> 389428 | K38: =Calc365!G32 -> 2557558 | M38: =Calc365!I32 -> 808254 | O38: =Calc365!J32 -> 106806 | Q38: =Calc365!K32 -> 701448 | R38: (I)
A40: 14. | B40: TOTAL ACCOUNT 365 | E40: =Calc365!C34 -> 121981531 | G40: =Calc365!E34 -> 95727008 | I40: =Calc365!F34 -> 12649783 | K40: =Calc365!G34 -> 83077225 | M40: =Calc365!I34 -> 26254523 | O40: =Calc365!J34 -> 3469387 | Q40: =Calc365!K34 -> 22785136
A42: 15. | B42: PERCENTAGES AT LEVEL | I42: =Calc365!F36 -> 0.1321443474 | K42: =Calc365!G36 -> 0.8678556526 | O42: =Calc365!J36 -> 0.1321443547 | Q42: =Calc365!K36 -> 0.8678556453
A43: 16. | B43: PERCENTAGES OF TOTAL | G43: =Calc365!E37 -> 0.7847664086 | I43: =Calc365!F37 -> 0.1037024449 | K43: =Calc365!G37 -> 0.6810639637 | M43: =Calc365!I37 -> 0.2152335914 | O43: =Calc365!J37 -> 0.02844190405 | Q43: =Calc365!K37 -> 0.1867916873
A46: NOTES:
A47: (A) | B47: Y-AXIS INTERCEPT OF REGRESSION BASED ON COST FROM MAXIMO SSTEM OF AAC AND AAAC WIRRE SIZES.
A48: (B) | B48: TWO TIMES TOTAL PRIMARY OVERHEAD CIRCUIT-MILES FROM DISTGIS AUTOMATED MAPPING SYSTEM, CONVERTED TO FEET.
A49: (C) | B49: TOTAL AMOUNT FOR ALL PRIMARY WIRE TYPES AND SIZES, ADJUSTED FOR VITAGE BY HANDY-WHITMAN RATIOS. CUSTOMER COMPONENT EQUALS TOTAL FEET OF
B50: MINIMUM SYSTEM OVERHEAD LINES (LINE 2) TIMES UNIT COST OF ZERO-INTERCEPT (LINE 1). DEMAND COMPONENT IS TOTAL MINUS CUSTOMER COMPONENT.
A51: (D) | B51: INCLUDES ALL OVERHEAD WIRE TYPES AND SIZES EXCEPT N-PLEX. ALLOCATED PER TOTAL COST OF PRIMARY OVERHEAD LINES (ADJ FOR VINTAGE) (LINE 3).
A52: (E) | B52: INCLUDES ALL DUPLEX, TRIPLEX, AND QUADRUPLEX. ALLOCATED TO COMPONENT PER LINE 3.
A53: (F) | B53: INCLUDES ALL SWITCHES SPECIFIED FOR USAGE AT 5 KV AND ABOVE. ALLOCATED PER PRIMARY LINES (LINE 5).
A54: (G) | B54: INCLUDES ALL SWITCHES SPECIFIED FOR USAGE AT 4.9 KV AND BELOW. ALLOCATED PER SECONDARY LINES (LINE 6).
A55: (H) | B55: INCLUDES ALL OTHER UNITIZED EQUIPMENT. ALLOCATED PER TOTAL OVERHEAD LINES (LINE 7).
A56: (I) | B56: INCLUDES ADJUSTMENTS, INTERIM RUCs, AND NON-UNITIZED. ALLOCATED PER SUBTOTAL (LINE 12).

Sheet Account 366
K1: GULF POWER COMPANY
K2: TWELVE MONTHS ENDED 12/31/10
K3: MINIMUM DISTRIBUTION SYSTEM - ZERO-INTERCEPT METHOD
K4: ACCOUNT 366 - UNDERGROUND CONDUIT ANALYSIS (MASS ACCOUNT)
K5: SCHEDULE 6.5
I9: PRIMARY | O9: SECONDARY
I10: --------------- LEVEL 4 --------------- | O10: --------------- LEVEL 5 ---------------
E11: 12-31-10 | G11: 12-31-10 | I11: CUSTOMER- | K11: DEMAND- | M11: 12-31-10 | O11: CUSTOMER- | Q11: DEMAND-
E12: TOTAL | G12: TOTAL | I12: RELATED | K12: RELATED | M12: TOTAL | O12: RELATED | Q12: RELATED | S12: NOTES
E13: ALL COSTS | G13: LEVEL 4 COSTS | I13: COMPONENT | K13: COMPONENT | M13: LEVEL 5 COSTS | O13: COMPONENT | Q13: COMPONENT
A16: 1. | B16: TOTAL UNDERGROUND LINES FROM ACCOUNT 367 | E16: =Calc366!D11 -> 94564919 | G16: =Calc366!F11 -> 66607961 | I16: =Calc366!G11 -> 3177238 | K16: =Calc366!H11 -> 63430723 | M16: =Calc366!J11 -> 27956958 | O16: =Calc366!K11 -> 1333563 | Q16: =Calc366!L11 -> 26623395 | S16: (A)
B19: ANALYSIS OF ACCOUNT 366
A21: 2. | B21: DUCT LINES, MANHOLES, AND SPLICING CHAMBERS | E21: =Calc366!D16 -> 994359 | G21: =Calc366!F16 -> 700389 | I21: =Calc366!G16 -> 33409 | K21: =Calc366!H16 -> 666980 | M21: =Calc366!J16 -> 293970 | O21: =Calc366!K16 -> 14023 | Q21: =Calc366!L16 -> 279947 | S21: (B)
A22: 3. | B22: TRANSFOMER VAULTS AND SUMP PUMPS | E22: =Calc366!D17 -> 223096 | G22: =Calc366!F17 -> 0 | I22: =Calc366!G17 -> 0 | K22: =Calc366!H17 -> 0 | M22: =Calc366!J17 -> 223096 | O22: =Calc366!K17 -> 0 | Q22: =Calc366!L17 -> 223096 | S22: (C)
A24: 4. | B24: TOTAL ACCOUNT 366 | E24: =Calc366!D19 -> 1217455 | G24: =Calc366!F19 -> 700389 | I24: =Calc366!G19 -> 33409 | K24: =Calc366!H19 -> 666980 | M24: =Calc366!J19 -> 517066 | O24: =Calc366!K19 -> 14023 | Q24: =Calc366!L19 -> 503043
A26: 5. | B26: PERCENTAGES AT LEVEL | I26: =Calc366!G21 -> 0.04770063493 | K26: =Calc366!H21 -> 0.9522993651 | O26: =Calc366!K21 -> 0.02712032893 | Q26: =Calc366!L21 -> 0.9728796711
A27: 6. | B27: PERCENTAGES OF TOTAL | G27: =Calc366!F22 -> 0.5752894357 | I27: =Calc366!G22 -> 0.02744167136 | K27: =Calc366!H22 -> 0.5478477644 | M27: =Calc366!J22 -> 0.4247105643 | O27: =Calc366!K22 -> 0.0115182902 | Q27: =Calc366!L22 -> 0.413192274
A31: NOTES:
A32: (A) | B32: FROM ANALYSIS OF ACCOUNT 367, LINE 7, TOTAL UNDERGROUND LINES.
A33: (B) | B33: ALLOCATED PER TOTAL UNDERGROUND LINES FROM ACCOUNT 367 (LINE 1).
A34: (C) | B34: ASSIGNED TO SECONDARY LEVEL 5 DEMAND-RELATED COMPONENT.

Sheet Account 367
I1: GULF POWER COMPANY
I2: TWELVE MONTHS ENDED 12/31/10
I3: MINIMUM DISTRIBUTION SYSTEM - ZERO-INTERCEPT METHOD
I4: ACCOUNT 367 - UNDERGROUND CONDUCTORS ANALYSIS (CURRENT REPLACEMENT COST BASIS)
I5: SCHEDULE 6.6
I9: PRIMARY
I10: --------------- LEVEL 4 ---------------
G11: 12-31-10 | I11: CUSTOMER- | K11: DEMAND-
G12: TOTAL | I12: RELATED | K12: RELATED | R12: NOTES
G13: LEVEL 4 COSTS | I13: COMPONENT | K13: COMPONENT
B14: COMPONENT SPLIT ANALYSIS OF
B15: MASS ACCOUNT RECORDS
A17: 1. | B17: ZERO-INTERCEPT UNIT COST OF AAC/AAAC WIRE ($/FT) | I17: =Calc367!F12 -> 0.3087 | R17: (A)
A18: 2. | B18: TOTAL FEET OF PRIMARY UNDERGROUND MINIMUM SYSTEM LINES | I18: =Calc367!F13 -> 18490560 | R18: (B)
A19: 3. | B19: TOTAL COST OF PRIMARY UNDERGROUND LINES (ADJ FOR VINTAGE) | G19: =Calc367!E14 -> 119663889.9 | I19: =Calc367!F14 -> 5708035.872 | K19: =Calc367!G14 -> 113955854 | R19: (C)
A20: 4. | B20: PERCENTAGE OF TOTAL COST OF UNDERGROUND LINES | I20: =Calc367!F15 -> 0.04770057097 | K20: =Calc367!G15 -> 0.952299429
I23: PRIMARY | O23: SECONDARY
I24: --------------- LEVEL 4 --------------- | O24: --------------- LEVEL 5 ---------------
E25: 12-31-10 | G25: 12-31-10 | I25: CUSTOMER- | K25: DEMAND- | M25: 12-31-10 | O25: CUSTOMER- | Q25: DEMAND-
E26: TOTAL | G26: TOTAL | I26: RELATED | K26: RELATED | M26: TOTAL | O26: RELATED | Q26: RELATED
B27: ANALYSIS OF ACCOUNT 367 | E27: ALL COSTS | G27: LEVEL 4 COSTS | I27: COMPONENT | K27: COMPONENT | M27: LEVEL 5 COSTS | O27: COMPONENT | Q27: COMPONENT
A29: 5. | B29: PRIMARY LINES | E29: =Calc367!C23 -> 66607961 | G29: =Calc367!E23 -> 66607961 | I29: =Calc367!F23 -> 3177238 | K29: =Calc367!G23 -> 63430723 | M29: =Calc367!I23 -> 0 | O29: =Calc367!J23 -> 0 | Q29: =Calc367!K23 -> 0 | R29: (D)
A30: 6. | B30: SECONDARY LINES | E30: =Calc367!C24 -> 27956958 | G30: =Calc367!E24 -> 0 | I30: =Calc367!F24 -> 0 | K30: =Calc367!G24 -> 0 | M30: =Calc367!I24 -> 27956958 | O30: =Calc367!J24 -> 1333563 | Q30: =Calc367!K24 -> 26623395 | R30: (E)
A31: 7. | B31: TOTAL UNDERGROUND LINES | E31: =Calc367!C25 -> 94564919 | G31: =Calc367!E25 -> 66607961 | I31: =Calc367!F25 -> 3177238 | K31: =Calc367!G25 -> 63430723 | M31: =Calc367!I25 -> 27956958 | O31: =Calc367!J25 -> 1333563 | Q31: =Calc367!K25 -> 26623395
A33: 8. | B33: NEUTRALS | E33: =Calc367!C27 -> 31885 | G33: =Calc367!E27 -> 0 | I33: =Calc367!F27 -> 0 | K33: =Calc367!G27 -> 0 | M33: =Calc367!I27 -> 31885 | O33: =Calc367!J27 -> 1521 | Q33: =Calc367!K27 -> 30364 | R33: (F)
A35: 9. | B35: PRIMARY SWITCHGEAR | E35: =Calc367!C29 -> 3419583 | G35: =Calc367!E29 -> 3419583 | I35: =Calc367!F29 -> 163116 | K35: =Calc367!G29 -> 3256467 | M35: =Calc367!I29 -> 0 | O35: =Calc367!J29 -> 0 | Q35: =Calc367!K29 -> 0 | R35: (G)
A36: 10. | B36: SECONDARY SWITCHGEAR | E36: =Calc367!C30 -> 9209 | G36: =Calc367!E30 -> 0 | I36: =Calc367!F30 -> 0 | K36: =Calc367!G30 -> 0 | M36: =Calc367!I30 -> 9209 | O36: =Calc367!J30 -> 439 | Q36: =Calc367!K30 -> 8770 | R36: (H)
A37: 11. | B37: OTHER EQUIPMENT | E37: =Calc367!C31 -> 17004604 | G37: =Calc367!E31 -> 11977401 | I37: =Calc367!F31 -> 571329 | K37: =Calc367!G31 -> 11406072 | M37: =Calc367!I31 -> 5027203 | O37: =Calc367!J31 -> 239800 | Q37: =Calc367!K31 -> 4787403 | R37: (I)
A38: 12. | B38: TOTAL SWITCHGEAR AND OTHER EQUIPMENT | E38: =Calc367!C32 -> 20433396 | G38: =Calc367!E32 -> 15396984 | I38: =Calc367!F32 -> 734445 | K38: =Calc367!G32 -> 14662539 | M38: =Calc367!I32 -> 5036412 | O38: =Calc367!J32 -> 240239 | Q38: =Calc367!K32 -> 4796173
A40: 13. | B40: SUBTOTAL | E40: =Calc367!C34 -> 115030200 | G40: =Calc367!E34 -> 82004945 | I40: =Calc367!F34 -> 3911683 | K40: =Calc367!G34 -> 78093262 | M40: =Calc367!I34 -> 33025255 | O40: =Calc367!J34 -> 1575323 | Q40: =Calc367!K34 -> 31449932
A42: 14. | B42: OTHER 367 | E42: =Calc367!C36 -> 3302908 | G42: =Calc367!E36 -> 2354641 | I42: =Calc367!F36 -> 112318 | K42: =Calc367!G36 -> 2242323 | M42: =Calc367!I36 -> 948267 | O42: =Calc367!J36 -> 45233 | Q42: =Calc367!K36 -> 903034 | R42: (J)
A44: 15. | B44: TOTAL ACCOUNT 367 | E44: =Calc367!C38 -> 118333108 | G44: =Calc367!E38 -> 84359586 | I44: =Calc367!F38 -> 4024001 | K44: =Calc367!G38 -> 80335585 | M44: =Calc367!I38 -> 33973522 | O44: =Calc367!J38 -> 1620556 | Q44: =Calc367!K38 -> 32352966
A46: 16. | B46: PERCENTAGES AT LEVEL | I46: =Calc367!F40 -> 0.04770057786 | K46: =Calc367!G40 -> 0.9522994221 | O46: =Calc367!J40 -> 0.04770055928 | Q46: =Calc367!K40 -> 0.9522994407
A47: 17. | B47: PERCENTAGES OF TOTAL | G47: =Calc367!E41 -> 0.7128992674 | I47: =Calc367!F41 -> 0.03400570701 | K47: =Calc367!G41 -> 0.6788935604 | M47: =Calc367!I41 -> 0.2871007326 | O47: =Calc367!J41 -> 0.01369486551 | Q47: =Calc367!K41 -> 0.2734058671
A51: NOTES:
A52: (A) | B52: FROM ACCOUNT 365, LINE 1, ZERO-INTERCEPT UNIT COST OF AAC/AAAC WIRE.
A53: (B) | B53: TWO TIMES TOTAL PRIMARY UNDERGROUND CIRCUIT-MILES FROM DISTGIS AUTOMATED MAPPING SYSTEM, CONVERTED TO FEET.
A54: (C) | B54: TOTAL AMOUNT FOR ALL PRIMARY WIRE TYPES AND SIZES, ADJUSTED FOR VITAGE BY HANDY-WHITMAN RATIOS. CUSTOMER COMPONENT EQUALS TOTAL FEET OF
B55: MINIMUM SYSTEM UNDERGROUND LINES (LINE 2) TIMES UNIT COST OF ZERO-INTERCEPT (LINE 1). DEMAND COMPONENT IS TOTAL MINUS CUSTOMER COMPONENT.
A56: (D) | B56: INCLUDES ALL UNDERGROUND CABLE SPECIFIED FOR USAGE AT 5 KV AND ABOVE. ALLOCATED PER TOTAL COST OF PRIMARY UNDERGOUND LINES
B57: ADJUSTED FOR VINTAGE (LINE 3).
A58: (E) | B58: INCLUDES ALL UNDERGROUND CABLE SPECIFIED FOR USAGE AT 4.9 KV AND BELOW. ALLOCATED TO COMPONENT PER LINE 4.
A59: (F) | B59: ASSIGNED TO SECONDARY. ALLOCATED TO COMPONENT PER SECONDARY LINES (LINE 6).
A60: (G) | B60: INCLUDES ALL SWITCHES SPECIFIED FOR USAGE AT 5 KV AND ABOVE. ALLOCATED PER PRIMARY LINES (LINE 5).
A61: (H) | B61: INCLUDES ALL SWITCHES SPECIFIED FOR USAGE AT 4.9 KV AND BELOW. ALLOCATED PER SECONDARY LINES (LINE 6).
A62: (I) | B62: INCLUDES ALL OTHER UNITIZED EQUIPMENT. ALLOCATED PER TOTAL UNDERGROUND LINES (LINE 7).
A63: (J) | B63: INCLUDES ADJUSTMENTS, INTERIM RUCs, AND NON-UNITIZED. ALLOCATED PER SUBTOTAL (LINE 13).

Sheet Account 368
K1: GULF POWER COMPANY | R1: PAGE 1 of 2
K2: TWELVE MONTHS ENDED 12/31/10
K3: MINIMUM DISTRIBUTION SYSTEM - ZERO-INTERCEPT METHOD
K4: ACCOUNT 368 - LINE TRANSFORMERS ANALYSIS (CURRENT REPLACEMENT COST BASIS)
K5: SCHEDULE 6.7
J9: PRIMARY | P9: SECONDARY
J10: --------------- LEVEL 4 --------------- | P10: --------------- LEVEL 5 ---------------
F11: 12-31-10 | H11: 12-31-10 | J11: CUSTOMER- | L11: DEMAND- | N11: 12-31-10 | P11: CUSTOMER- | R11: DEMAND-
F12: TOTAL | H12: TOTAL | J12: RELATED | L12: RELATED | N12: TOTAL | P12: RELATED | R12: RELATED | S12: NOTES
F13: ALL COSTS | H13: LEVEL 4 COSTS | J13: COMPONENT | L13: COMPONENT | N13: LEVEL 5 COSTS | P13: COMPONENT | R13: COMPONENT
B14: COMPONENT SPLIT ANALYSIS OF
B15: MASS ACCOUNT RECORDS
A17: 1. | B17: UNIT COST OF ZERO-INTERCEPT (1 PHASE O/H) | P17: =Calc368!I12 -> 623.34 | S17: (A)
A18: 2. | B18: TOTAL NUMBER OF O/H TRANSFORMERS | P18: =Calc368!I13 -> 118031 | S18: (B)
A19: 3. | B19: TOTAL OVERHEAD TRANSFORMERS (ADJ FOR VINTAGE) | N19: =Calc368!H14 -> 179668246.8 | P19: =Calc368!I14 -> 73573443.54 | R19: =Calc368!J14 -> 106094803.3 | S19: (C)
A20: 4. | B20: PERCENTAGE SPLIT OF OVERHEAD TRANSFORMERS | P20: =Calc368!I15 -> 0.4094960842 | R20: =Calc368!J15 -> 0.5905039158
A22: 5. | B22: UNIT COST OF ZERO-INTERCEPT (1 PHASE O/H) | P22: =Calc368!I17 -> 623.34 | S22: (A)
A23: 6. | B23: TOTAL NUMBER OF PAD-MT TRANSFORMERS | P23: =Calc368!I18 -> 29515 | S23: (B)
A24: 7. | B24: TOTAL PAD-MT TRANSFORMERS (ADJ FOR VINTAGE) | N24: =Calc368!H19 -> 140054860 | P24: =Calc368!I19 -> 18397880.1 | R24: =Calc368!J19 -> 121656979.9 | S24: (C)
A25: 8. | B25: PERCENTAGE SPLIT OF PAD-MT TRANSFORMERS | P25: =Calc368!I20 -> 0.1313619541 | R25: =Calc368!J20 -> 0.8686380459
A27: 9. | B27: UNIT COST OF ZERO-INTERCEPT (1 PHASE O/H) | P27: =Calc368!I22 -> 623.34 | S27: (A)
A28: 10. | B28: TOTAL NUMBER OF VAULT/DRY TRANSFORMERS | P28: =Calc368!I23 -> 119 | S28: (B)
A29: 11. | B29: TOTAL VAULT/DRY TRANSFORMERS (ADJ FOR VINTAGE) | N29: =Calc368!H24 -> 759126.81 | P29: =Calc368!I24 -> 74177.46 | R29: =Calc368!J24 -> 684949.35 | S29: (C)
A30: 12. | B30: PERCENTAGE SPLIT OF VAULT/DRY TRANSFORMERS | P30: =Calc368!I25 -> 0.09771418823 | R30: =Calc368!J25 -> 0.9022858118
A32: 13. | B32: PRIMARY LINES FROM ACCOUNT 365 | H32: =Calc368!D28 -> 83237343 | J32: =Calc368!E28 -> 10999344 | L32: =Calc368!F28 -> 72237999 | S32: (D)
B35: ANALYSIS OF ACCOUNT 368
B37: TRANSFORMERS
A38: 14. | B38: OVERHEAD TRANSFORMERS | F38: =Calc368!C36 -> 70209785 | H38: =Calc368!D36 -> 0 | J38: =Calc368!E36 -> 0 | L38: =Calc368!F36 -> 0 | N38: =Calc368!H36 -> 70209785 | P38: =Calc368!I36 -> 28750632 | R38: =Calc368!J36 -> 41459153 | S38: (E)
A39: 15. | B39: PAD-MOUNTED TRANSFORMERS | F39: =Calc368!C37 -> 72091984 | H39: =Calc368!D37 -> 0 | J39: =Calc368!E37 -> 0 | L39: =Calc368!F37 -> 0 | N39: =Calc368!H37 -> 72091984 | P39: =Calc368!I37 -> 9470144 | R39: =Calc368!J37 -> 62621840 | S39: (F)
A40: 16. | B40: VAULT AND UNDERGROUND DRY TRANSFORMERS | F40: =Calc368!C38 -> 390754 | H40: =Calc368!D38 -> 0 | J40: =Calc368!E38 -> 0 | L40: =Calc368!F38 -> 0 | N40: =Calc368!H38 -> 390754 | P40: =Calc368!I38 -> 38182 | R40: =Calc368!J38 -> 352572 | S40: (G)
A42: 17. | B42: NETWORK PROTECTORS | F42: =Calc368!C40 -> 154278 | H42: =Calc368!D40 -> 0 | J42: =Calc368!E40 -> 0 | L42: =Calc368!F40 -> 0 | N42: =Calc368!H40 -> 154278 | P42: =Calc368!I40 -> 15075 | R42: =Calc368!J40 -> 139203 | S42: (H)
A44: 18. | B44: REGULATORS AND CAPACITORS | F44: =Calc368!C42 -> 12600650 | H44: =Calc368!D42 -> 12600650 | J44: =Calc368!E42 -> 0 | L44: =Calc368!F42 -> 12600650 | N44: =Calc368!H42 -> 0 | P44: =Calc368!I42 -> 0 | R44: =Calc368!J42 -> 0 | S44: (I)
A46: 19. | B46: SWITCHES | F46: =Calc368!C44 -> 2607495 | H46: =Calc368!D44 -> 2607495 | J46: =Calc368!E44 -> 344566 | L46: =Calc368!F44 -> 2262929 | N46: =Calc368!H44 -> 0 | P46: =Calc368!I44 -> 0 | R46: =Calc368!J44 -> 0 | S46: (J)
B48: CUTOUTS AND ARRESTERS
A49: 20. | B49: TRANSFORMER-RELATED | F49: =Calc368!C47 -> 35641501 | H49: =Calc368!D47 -> 0 | J49: =Calc368!E47 -> 0 | L49: =Calc368!F47 -> 0 | N49: =Calc368!H47 -> 35641501 | P49: =Calc368!I47 -> 14595055 | R49: =Calc368!J47 -> 21046446 | S49: (K)
A50: 21. | B50: REGULATOR/CAPACITOR-RELATED | F50: =Calc368!C48 -> 7806477 | H50: =Calc368!D48 -> 7806477 | J50: =Calc368!E48 -> 0 | L50: =Calc368!F48 -> 7806477 | N50: =Calc368!H48 -> 0 | P50: =Calc368!I48 -> 0 | R50: =Calc368!J48 -> 0 | S50: (L)
A51: 22. | B51: LINE/SWITCH-RELATED | F51: =Calc368!C49 -> 12973965 | H51: =Calc368!D49 -> 12973965 | J51: =Calc368!E49 -> 1714436 | L51: =Calc368!F49 -> 11259529 | N51: =Calc368!H49 -> 0 | P51: =Calc368!I49 -> 0 | R51: =Calc368!J49 -> 0 | S51: (M)
A53: 23. | B53: OTHER UNITIZED ACCOUNT 368 | F53: =Calc368!C51 -> 3101574 | H53: =Calc368!D51 -> 0 | J53: =Calc368!E51 -> 0 | L53: =Calc368!F51 -> 0 | N53: =Calc368!H51 -> 3101574 | P53: =Calc368!I51 -> 407429 | R53: =Calc368!J51 -> 2694145 | S53: (N)
A55: 24. | B55: SUBTOTAL | F55: =Calc368!C53 -> 217578463 | H55: =Calc368!D53 -> 35988587 | J55: =Calc368!E53 -> 2059002 | L55: =Calc368!F53 -> 33929585 | N55: =Calc368!H53 -> 181589876 | P55: =Calc368!I53 -> 53276517 | R55: =Calc368!J53 -> 128313359
A57: 14. | B57: OTHER 367 | F57: =Calc368!C55 -> 2599316 | H57: =Calc368!D55 -> 429940 | J57: =Calc368!E55 -> 24598 | L57: =Calc368!F55 -> 405342 | N57: =Calc368!H55 -> 2169376 | P57: =Calc368!I55 -> 636472 | R57: =Calc368!J55 -> 1532904 | S57: (O)
A59: 15. | B59: TOTAL ACCOUNT 367 | F59: =Calc368!C57 -> 220177779 | H59: =Calc368!D57 -> 36418527 | J59: =Calc368!E57 -> 2083600 | L59: =Calc368!F57 -> 34334927 | N59: =Calc368!H57 -> 183759252 | P59: =Calc368!I57 -> 53912989 | R59: =Calc368!J57 -> 129846263
A61: 16. | B61: PERCENTAGES AT LEVEL | J61: =Calc368!E59 -> 0.05721263795 | L61: =Calc368!F59 -> 0.942787362 | P61: =Calc368!I59 -> 0.2933892493 | R61: =Calc368!J59 -> 0.7066107507
A62: 17. | B62: PERCENTAGES OF TOTAL | H62: =Calc368!D60 -> 0.1654050975 | J62: =Calc368!E60 -> 0.009463261958 | L62: =Calc368!F60 -> 0.1559418355 | N62: =Calc368!H60 -> 0.8345949025 | P62: =Calc368!I60 -> 0.2448611719 | R62: =Calc368!J60 -> 0.5897337306
A66: NOTES:
A67: (A) | B67: Y-AXIS INTERCEPT OF REGRESSION BASED ON COST FROM MAXIMO SYSTEM OF SINGLE-PHASE OVERHEAD TRANSFORMERS 100 KVA AND LESS.
A68: (B) | B68: INCLUDES ALL OVERHEAD, PAD-MOUNTED, AND VAULT/UNDERGROUND DRY TRANSFORMERS, RESPECTIVELY.
A69: (C) | B69: TOTAL AMOUNT FOR ALL TRANSFORMERS OF EACH RESPECTIVE TYPE ADJUSTED FOR VINTAGE USING HANDY-WHITMAN RATIOS. CUTOMER COMPONENT EQUALS
B70: TOTAL NUMBER OF TRANSFORMERS (LINE 2) TIMES UNIT COST OF ZERO-INTERCEPT (LINE 1). DEMAND COMPONENT IS TOTAL MINUS CUSTOMER COMPONENT.
A71: (D) | B71: FROM ANALYSIS OF ACCOUNT 365, LINE 5, PRIMARY LINES.
A72: (E) | B72: ALLOCATED PER TOTAL OVERHEAD TRANSFORMERS ADJUSTED FOR VINTAGE (LINE 3).
A73: (F) | B73: ALLOCATED PER TOTAL PAD-MT TRANSFORMERS ADJUSTED FOR VINTAGE (LINE 7).
A74: (G) | B74: ALLOCATED PER TOTAL VAULT/DRY TRANSFORMERS ADJUSTED FOR VINTAGE (LINE 11).
A75: (H) | B75: ALLOCATED PER VAULT AND UNDERGROUND DRY TRANSFORMERS (LINE 16).
A76: (I) | B76: ASSIGNED TO LEVEL 4 DEMAND COMPONENT.
A77: (J) | B77: ALLOCATED PER PRIMARY LINES FROM ACCOUNT 365 (LINE 13).
A78: (K) | B78: FROM ACCOUNT 368-A. ALLOCATED PER OVERHEAD TRANSFORMERS (LINE 14).
A79: (L) | B79: FROM ACCOUNT 368-A. ALLOCATED PER REGULATORS AND CAPACITORS (LINE 18).
A80: (M) | B80: FROM ACCOUNT 368-A. ALLOCATED PER PRIMARY LINES FROM ACCOUNT 365 (LINE 13).
A81: (N) | B81: ALLOCATED PER PAD-MOUNTED TRANSFORMERS (LINE 15).
A82: (O) | B82: ALLOCATED PER SUBTOTAL (LINE 24).

Sheet Account 368-A
F1: GULF POWER COMPANY | J1: PAGE 2 of 2
F2: TWELVE MONTHS ENDED 12/31/10
F3: MINIMUM DISTRIBUTION SYSTEM - ZERO-INTERCEPT METHOD
F4: ACCOUNT 368-A - CUTOUTS AND ARRESTERS ANALYSIS
F5: SCHEDULE 6.7
E9: QUANTITY | G9: PERCENTAGE | I9: AMOUNT ($) | K9: NOTES
A12: 1. | B12: TOTAL FOR CUTOUTS | E12: =Calc368!AA119 -> 171839 | I12: =Calc368!AE119 -> 26590701 | K12: (A)
A13: 2. | B13: PROTECTION FOR OVERHEAD TRANSFORMERS | E13: =Calc368!AA120 -> 118031 | G13: =Calc368!AC120 -> 0.6868696862 | I13: =Calc368!AE120 -> 18264346 | K13: (B)
A14: 3. | B14: REMAINDER FOR LINE PROTECTION | E14: =Calc368!AA121 -> 53808 | G14: =Calc368!AC121 -> 0.3131303138 | I14: =Calc368!AE121 -> 8326355 | K14: (C)
A16: 4. | B16: TOTAL FOR ARRESTERS | E16: =Calc368!AA123 -> 202623 | I16: =Calc368!AE123 -> 29831242 | K16: (D)
A17: 5. | B17: PROTECTION FOR OVERHEAD TRANSFORMERS | E17: =Calc368!AA124 -> 118031 | G17: =Calc368!AC124 -> 0.5825153117 | I17: =Calc368!AE124 -> 17377155 | K17: (E)
A18: 6. | B18: PROTECTION FOR REGULATORS AND AUTO-BOOSTERS | E18: =Calc368!AA125 -> 1346 | G18: =Calc368!AC125 -> 0.006642878647 | I18: =Calc368!AE125 -> 198165 | K18: (F)
A19: 7. | B19: PROTECTION FOR CAPACITORS | E19: =Calc368!AA126 -> 51678 | G19: =Calc368!AC126 -> 0.2550450837 | I19: =Calc368!AE126 -> 7608312 | K19: (G)
A20: 8. | B20: PROTECTION FOR SWITCHES | E20: =Calc368!AA127 -> 7010 | G20: =Calc368!AC127 -> 0.03459626992 | I20: =Calc368!AE127 -> 1032050 | K20: (H)
A21: 9. | B21: REMAINDER FOR LINE PROTECTION | E21: =Calc368!AA128 -> 24558 | G21: =Calc368!AC128 -> 0.121200456 | I21: =Calc368!AE128 -> 3615560 | K21: (I)
B23: SUMMARY FOR CUTOUTS AND ARRESTERS
A24: 10. | B24: Transformer-related | I24: =Calc368!AE131 -> 35641501 | K24: (J)
A25: 11. | B25: Regulator/Capacitor-related | I25: =Calc368!AE132 -> 7806477 | K25: (K)
A26: 12. | B26: Line/Switch-related | I26: =Calc368!AE133 -> 12973965 | K26: (L)
A30: NOTES:
A31: (A) | B31: TOTAL NUMBER AND AMOUNT FOR CUTOUTS
A32: (B) | B32: ASSUMED 1 CUTOUT PER TRANSFORMER.
A33: (C) | B33: DIFFERENCE BETWEEN TOTAL FOR CUTOUTS (LINE 1) AND PROTECTION FOR OVERHEAD TRANSFORMERS (LINE 2).
A34: (D) | B34: TOTAL NUMBER AND AMOUNT FOR ARRESTERS.
A35: (E) | B35: ASSUMED 1 ARRESTER PER TRANSFORMER.
A36: (F) | B36: REGULATORS AND AUTO-BOOSTERS ALL SINGLE-PHASE. ASSUMED 2 ARRESTERS PER UNIT (ONE EACH ON LOAD
B37: SIDE AND SOURCE SIDE).
A38: (G) | B38: ASSUMED ALL CAPACITORS 3-PHASE. ASSUMED SIX ARRESTERS PER CAPACITOR--TWO PER PHASE (ONE EACH ON
B39: LOAD SIDE AND SOURCE SIDE).
A40: (H) | B40: ASSUMED TWO ARRESTERS PER SINGLE-PHASE SWITCH AND 6 ARRESTERS PER 3-PHASE SWITCH.
A41: (I) | B41: DIFFERENCE BETWEEN TOTAL FOR ARRESTERS (LINE 4) AND [PROTECTION FOR OVERHEAD TRANSFORMERS (LINE 5) PLUS
B42: PROTECTION FOR REGULATORS (LINE 6) PLUS PROTECTION FOR CAPACITORS (LINE 7) PLUS PROTECTION FOR
B43: SWITCHES (LINE 8)].
A44: (J) | B44: LINE 2 PLUS LINE 5
A45: (K) | B45: LINE 6 PLUS LINE 7.
A46: (L) | B46: LINE 3 PLUS LINE 8 PLUS LINE 9.

Sheet Account 369
G1: GULF POWER COMPANY
G2: TWELVE MONTHS ENDED 12/31/10
G3: MINIMUM DISTRIBUTION SYSTEM - ZERO-INTERCEPT METHOD
G4: ACCOUNT 369 - SERVICES ANALYSIS (MASS ACCOUNT)
G5: SCHEDULE 6.8
G9: SECONDARY
G10: --------------- LEVEL 5 ---------------
E11: 12-31-10 | G11: CUSTOMER- | I11: DEMAND-
E12: TOTAL | G12: RELATED | I12: RELATED | J12: NOTES
E13: ALL COSTS | G13: COMPONENT | I13: COMPONENT
A16: 1. | B16: ALL SERVICES | E16: 93066265 | G16: =E16 -> 93066265 | I16: 0 | J16: (A)
A19: 2. | B19: TOTAL ACCOUNT 369 | E19: =E16 -> 93066265 | G19: =G16 -> 93066265 | I19: 0
A21: 3. | B21: PERCENTAGES | G21: 1
A23: NOTES
A24: (A) | B24: ASSIGNED TO SECONDARY LEVEL 5 CUSTOMER-RELATED COMPONENT.

Sheet Account 370
G1: GULF POWER COMPANY
G2: TWELVE MONTHS ENDED 12/31/10
G3: MINIMUM DISTRIBUTION SYSTEM - ZERO-INTERCEPT METHOD
G4: ACCOUNT 370 - METERS ANALYSIS (MASS ACCOUNT)
G5: SCHEDULE 6.9
G9: SECONDARY
G10: --------------- LEVEL 5 ---------------
E11: 12-31-10 | G11: CUSTOMER- | I11: DEMAND-
E12: TOTAL | G12: RELATED | I12: RELATED | J12: NOTES
E13: ALL COSTS | G13: COMPONENT | I13: COMPONENT
A16: 1. | B16: ALL METERS | E16: 57547263 | G16: =E16 -> 57547263 | I16: 0 | J16: (A)
A19: 2. | B19: TOTAL ACCOUNT 370 | E19: =E16 -> 57547263 | G19: =G16 -> 57547263 | I19: =SUM(I16:I18) -> 0
A21: 3. | B21: PERCENTAGES | G21: 1
A23: NOTES
A24: (A) | B24: ASSIGNED TO SECONDARY LEVEL 5 CUSTOMER-RELATED COMPONENT.
